Body Name,Date Paid,Transaction Number,Amount,Supplier Name,Supplier Type,Expense Area,Cost Centre Description,Expense Type
Cambridgeshire County Council,14-Feb-24,51301507920,-700.00,Redacted Personal Data,INDIVIDUAL,OPPD - Cost of Care - East Cambs - Over 65,East Cambs - O P Team - Care,Residential Care
Cambridgeshire County Council,09-Feb-24,51301908690,"-1,219.25",ASKHAM PLACE PD,CARE ESTABLISHMENT,OPPD - Under 65 - City South,Countywide PD Service - Care,Residential Care
Cambridgeshire County Council,09-Feb-24,51301908690,"-1,219.25",ASKHAM PLACE PD,CARE ESTABLISHMENT,OPPD - Under 65 - City South,Countywide PD Service - Care,Residential Care
Cambridgeshire County Council,09-Feb-24,51301908690,"-1,219.25",ASKHAM PLACE PD,CARE ESTABLISHMENT,OPPD - Under 65 - City South,Countywide PD Service - Care,Residential Care
Cambridgeshire County Council,09-Feb-24,51301908690,"-1,219.25",ASKHAM PLACE PD,CARE ESTABLISHMENT,OPPD - Under 65 - City South,Countywide PD Service - Care,Residential Care
Cambridgeshire County Council,09-Feb-24,51301908690,"-1,219.25",ASKHAM PLACE PD,CARE ESTABLISHMENT,OPPD - Under 65 - City South,Countywide PD Service - Care,Residential Care
Cambridgeshire County Council,09-Feb-24,51301908690,"-1,219.25",ASKHAM PLACE PD,CARE ESTABLISHMENT,OPPD - Under 65 - City South,Countywide PD Service - Care,Residential Care
Cambridgeshire County Council,09-Feb-24,51301908690,"-1,219.25",ASKHAM PLACE PD,CARE ESTABLISHMENT,OPPD - Under 65 - City South,Countywide PD Service - Care,Residential Care
Cambridgeshire County Council,09-Feb-24,51301908690,"-1,219.25",ASKHAM PLACE PD,CARE ESTABLISHMENT,OPPD - Under 65 - City South,Countywide PD Service - Care,Residential Care
Cambridgeshire County Council,09-Feb-24,51301908690,"-1,219.25",ASKHAM PLACE PD,CARE ESTABLISHMENT,OPPD - Under 65 - City South,Countywide PD Service - Care,Residential Care
Cambridgeshire County Council,09-Feb-24,51301908690,"-1,219.25",ASKHAM PLACE PD,CARE ESTABLISHMENT,OPPD - Under 65 - City South,Countywide PD Service - Care,Residential Care
Cambridgeshire County Council,09-Feb-24,51301908690,"-1,219.25",ASKHAM PLACE PD,CARE ESTABLISHMENT,OPPD - Under 65 - City South,Countywide PD Service - Care,Residential Care
Cambridgeshire County Council,09-Feb-24,51301908690,"-1,219.25",ASKHAM PLACE PD,CARE ESTABLISHMENT,OPPD - Under 65 - City South,Countywide PD Service - Care,Residential Care
Cambridgeshire County Council,09-Feb-24,51301908690,"-1,219.25",ASKHAM PLACE PD,CARE ESTABLISHMENT,OPPD - Under 65 - City South,Countywide PD Service - Care,Residential Care
Cambridgeshire County Council,09-Feb-24,51301908690,"-1,219.25",ASKHAM PLACE PD,CARE ESTABLISHMENT,OPPD - Under 65 - City South,Countywide PD Service - Care,Residential Care
Cambridgeshire County Council,09-Feb-24,51301908690,"-1,219.25",ASKHAM PLACE PD,CARE ESTABLISHMENT,OPPD - Under 65 - City South,Countywide PD Service - Care,Residential Care
Cambridgeshire County Council,09-Feb-24,51301908690,"-1,219.25",ASKHAM PLACE PD,CARE ESTABLISHMENT,OPPD - Under 65 - City South,Countywide PD Service - Care,Residential Care
Cambridgeshire County Council,09-Feb-24,51301908690,"-1,219.25",ASKHAM PLACE PD,CARE ESTABLISHMENT,OPPD - Under 65 - City South,Countywide PD Service - Care,Residential Care
Cambridgeshire County Council,09-Feb-24,51301908690,"-1,219.25",ASKHAM PLACE PD,CARE ESTABLISHMENT,OPPD - Under 65 - City South,Countywide PD Service - Care,Residential Care
Cambridgeshire County Council,09-Feb-24,51301908690,"-1,219.25",ASKHAM PLACE PD,CARE ESTABLISHMENT,OPPD - Under 65 - City South,Countywide PD Service - Care,Residential Care
Cambridgeshire County Council,09-Feb-24,51301908690,"-1,219.25",ASKHAM PLACE PD,CARE ESTABLISHMENT,OPPD - Under 65 - City South,Countywide PD Service - Care,Residential Care
Cambridgeshire County Council,09-Feb-24,51301908690,"-1,219.25",ASKHAM PLACE PD,CARE ESTABLISHMENT,OPPD - Under 65 - City South,Countywide PD Service - Care,Residential Care
Cambridgeshire County Council,09-Feb-24,51301908690,"-1,219.25",ASKHAM PLACE PD,CARE ESTABLISHMENT,OPPD - Under 65 - City South,Countywide PD Service - Care,Residential Care
Cambridgeshire County Council,09-Feb-24,51301908690,"-1,219.25",ASKHAM PLACE PD,CARE ESTABLISHMENT,OPPD - Under 65 - City South,Countywide PD Service - Care,Residential Care
Cambridgeshire County Council,09-Feb-24,51301908690,"-1,219.25",ASKHAM PLACE PD,CARE ESTABLISHMENT,OPPD - Under 65 - City South,Countywide PD Service - Care,Residential Care
Cambridgeshire County Council,09-Feb-24,51301908690,"-1,219.25",ASKHAM PLACE PD,CARE ESTABLISHMENT,OPPD - Under 65 - City South,Countywide PD Service - Care,Residential Care
Cambridgeshire County Council,09-Feb-24,51301908690,"-1,219.25",ASKHAM PLACE PD,CARE ESTABLISHMENT,OPPD - Under 65 - City South,Countywide PD Service - Care,Residential Care
Cambridgeshire County Council,09-Feb-24,51301908690,"-1,219.25",ASKHAM PLACE PD,CARE ESTABLISHMENT,OPPD - Under 65 - City South,Countywide PD Service - Care,Residential Care
Cambridgeshire County Council,09-Feb-24,51301908690,"-1,219.25",ASKHAM PLACE PD,CARE ESTABLISHMENT,OPPD - Under 65 - City South,Countywide PD Service - Care,Residential Care
Cambridgeshire County Council,09-Feb-24,51301908690,"-1,219.25",ASKHAM PLACE PD,CARE ESTABLISHMENT,OPPD - Under 65 - City South,Countywide PD Service - Care,Residential Care
Cambridgeshire County Council,09-Feb-24,51301908690,"-1,219.25",ASKHAM PLACE PD,CARE ESTABLISHMENT,OPPD - Under 65 - City South,Countywide PD Service - Care,Residential Care
Cambridgeshire County Council,09-Feb-24,51301908690,"-1,219.25",ASKHAM PLACE PD,CARE ESTABLISHMENT,OPPD - Under 65 - City South,Countywide PD Service - Care,Residential Care
Cambridgeshire County Council,09-Feb-24,51301908690,"-1,219.25",ASKHAM PLACE PD,CARE ESTABLISHMENT,OPPD - Under 65 - City South,Countywide PD Service - Care,Residential Care
Cambridgeshire County Council,09-Feb-24,51301908690,"-1,219.25",ASKHAM PLACE PD,CARE ESTABLISHMENT,OPPD - Under 65 - City South,Countywide PD Service - Care,Residential Care
Cambridgeshire County Council,09-Feb-24,51301908690,"-1,219.25",ASKHAM PLACE PD,CARE ESTABLISHMENT,OPPD - Under 65 - City South,Countywide PD Service - Care,Residential Care
Cambridgeshire County Council,09-Feb-24,51301908690,"-1,219.25",ASKHAM PLACE PD,CARE ESTABLISHMENT,OPPD - Under 65 - City South,Countywide PD Service - Care,Residential Care
Cambridgeshire County Council,09-Feb-24,51301908743,"1,219.25",ASKHAM PLACE PD,CARE ESTABLISHMENT,OPPD - Cost of Care - Fenland - Under 65,OPPD - Under 65 - Fenland,Residential Care
Cambridgeshire County Council,09-Feb-24,51301908743,"1,219.25",ASKHAM PLACE PD,CARE ESTABLISHMENT,OPPD - Cost of Care - Fenland - Under 65,OPPD - Under 65 - Fenland,Residential Care
Cambridgeshire County Council,09-Feb-24,51301908743,"1,219.25",ASKHAM PLACE PD,CARE ESTABLISHMENT,OPPD - Cost of Care - Fenland - Under 65,OPPD - Under 65 - Fenland,Residential Care
Cambridgeshire County Council,09-Feb-24,51301908743,"1,219.25",ASKHAM PLACE PD,CARE ESTABLISHMENT,OPPD - Cost of Care - Fenland - Under 65,OPPD - Under 65 - Fenland,Residential Care
Cambridgeshire County Council,09-Feb-24,51301908743,"1,219.25",ASKHAM PLACE PD,CARE ESTABLISHMENT,OPPD - Cost of Care - Fenland - Under 65,OPPD - Under 65 - Fenland,Residential Care
Cambridgeshire County Council,09-Feb-24,51301908743,"1,219.25",ASKHAM PLACE PD,CARE ESTABLISHMENT,OPPD - Cost of Care - Fenland - Under 65,OPPD - Under 65 - Fenland,Residential Care
Cambridgeshire County Council,09-Feb-24,51301908743,"1,219.25",ASKHAM PLACE PD,CARE ESTABLISHMENT,OPPD - Cost of Care - Fenland - Under 65,OPPD - Under 65 - Fenland,Residential Care
Cambridgeshire County Council,09-Feb-24,51301908743,"1,219.25",ASKHAM PLACE PD,CARE ESTABLISHMENT,OPPD - Cost of Care - Fenland - Under 65,OPPD - Under 65 - Fenland,Residential Care
Cambridgeshire County Council,09-Feb-24,51301908743,"1,219.25",ASKHAM PLACE PD,CARE ESTABLISHMENT,OPPD - Cost of Care - Fenland - Under 65,OPPD - Under 65 - Fenland,Residential Care
Cambridgeshire County Council,09-Feb-24,51301908743,"1,219.25",ASKHAM PLACE PD,CARE ESTABLISHMENT,OPPD - Cost of Care - Fenland - Under 65,OPPD - Under 65 - Fenland,Residential Care
Cambridgeshire County Council,09-Feb-24,51301908743,"1,219.25",ASKHAM PLACE PD,CARE ESTABLISHMENT,OPPD - Cost of Care - Fenland - Under 65,OPPD - Under 65 - Fenland,Residential Care
Cambridgeshire County Council,09-Feb-24,51301908743,"1,219.25",ASKHAM PLACE PD,CARE ESTABLISHMENT,OPPD - Cost of Care - Fenland - Under 65,OPPD - Under 65 - Fenland,Residential Care
Cambridgeshire County Council,09-Feb-24,51301908743,"1,219.25",ASKHAM PLACE PD,CARE ESTABLISHMENT,OPPD - Cost of Care - Fenland - Under 65,OPPD - Under 65 - Fenland,Residential Care
Cambridgeshire County Council,09-Feb-24,51301908743,"1,219.25",ASKHAM PLACE PD,CARE ESTABLISHMENT,OPPD - Cost of Care - Fenland - Under 65,OPPD - Under 65 - Fenland,Residential Care
Cambridgeshire County Council,09-Feb-24,51301908743,"1,219.25",ASKHAM PLACE PD,CARE ESTABLISHMENT,OPPD - Cost of Care - Fenland - Under 65,OPPD - Under 65 - Fenland,Residential Care
Cambridgeshire County Council,09-Feb-24,51301908743,"1,219.25",ASKHAM PLACE PD,CARE ESTABLISHMENT,OPPD - Cost of Care - Fenland - Under 65,OPPD - Under 65 - Fenland,Residential Care
Cambridgeshire County Council,09-Feb-24,51301908743,"1,219.25",ASKHAM PLACE PD,CARE ESTABLISHMENT,OPPD - Cost of Care - Fenland - Under 65,OPPD - Under 65 - Fenland,Residential Care
Cambridgeshire County Council,09-Feb-24,51301908743,"1,219.25",ASKHAM PLACE PD,CARE ESTABLISHMENT,OPPD - Cost of Care - Fenland - Under 65,OPPD - Under 65 - Fenland,Residential Care
Cambridgeshire County Council,09-Feb-24,51301908743,"1,219.25",ASKHAM PLACE PD,CARE ESTABLISHMENT,OPPD - Cost of Care - Fenland - Under 65,OPPD - Under 65 - Fenland,Residential Care
Cambridgeshire County Council,09-Feb-24,51301908743,"1,219.25",ASKHAM PLACE PD,CARE ESTABLISHMENT,OPPD - Cost of Care - Fenland - Under 65,OPPD - Under 65 - Fenland,Residential Care
Cambridgeshire County Council,09-Feb-24,51301908743,"1,219.25",ASKHAM PLACE PD,CARE ESTABLISHMENT,OPPD - Cost of Care - Fenland - Under 65,OPPD - Under 65 - Fenland,Residential Care
Cambridgeshire County Council,09-Feb-24,51301908743,"1,219.25",ASKHAM PLACE PD,CARE ESTABLISHMENT,OPPD - Cost of Care - Fenland - Under 65,OPPD - Under 65 - Fenland,Residential Care
Cambridgeshire County Council,09-Feb-24,51301908743,"1,219.25",ASKHAM PLACE PD,CARE ESTABLISHMENT,OPPD - Cost of Care - Fenland - Under 65,OPPD - Under 65 - Fenland,Residential Care
Cambridgeshire County Council,09-Feb-24,51301908743,"1,219.25",ASKHAM PLACE PD,CARE ESTABLISHMENT,OPPD - Cost of Care - Fenland - Under 65,OPPD - Under 65 - Fenland,Residential Care
Cambridgeshire County Council,09-Feb-24,51301908743,"1,219.25",ASKHAM PLACE PD,CARE ESTABLISHMENT,OPPD - Cost of Care - Fenland - Under 65,OPPD - Under 65 - Fenland,Residential Care
Cambridgeshire County Council,09-Feb-24,51301908743,"1,219.25",ASKHAM PLACE PD,CARE ESTABLISHMENT,OPPD - Cost of Care - Fenland - Under 65,OPPD - Under 65 - Fenland,Residential Care
Cambridgeshire County Council,09-Feb-24,51301908743,"1,219.25",ASKHAM PLACE PD,CARE ESTABLISHMENT,OPPD - Cost of Care - Fenland - Under 65,OPPD - Under 65 - Fenland,Residential Care
Cambridgeshire County Council,09-Feb-24,51301908743,"1,219.25",ASKHAM PLACE PD,CARE ESTABLISHMENT,OPPD - Cost of Care - Fenland - Under 65,OPPD - Under 65 - Fenland,Residential Care
Cambridgeshire County Council,09-Feb-24,51301908743,"1,219.25",ASKHAM PLACE PD,CARE ESTABLISHMENT,OPPD - Cost of Care - Fenland - Under 65,OPPD - Under 65 - Fenland,Residential Care
Cambridgeshire County Council,09-Feb-24,51301908743,"1,219.25",ASKHAM PLACE PD,CARE ESTABLISHMENT,OPPD - Cost of Care - Fenland - Under 65,OPPD - Under 65 - Fenland,Residential Care
Cambridgeshire County Council,09-Feb-24,51301908743,"1,219.25",ASKHAM PLACE PD,CARE ESTABLISHMENT,OPPD - Cost of Care - Fenland - Under 65,OPPD - Under 65 - Fenland,Residential Care
Cambridgeshire County Council,09-Feb-24,51301908743,"1,219.25",ASKHAM PLACE PD,CARE ESTABLISHMENT,OPPD - Cost of Care - Fenland - Under 65,OPPD - Under 65 - Fenland,Residential Care
Cambridgeshire County Council,09-Feb-24,51301908743,"1,219.25",ASKHAM PLACE PD,CARE ESTABLISHMENT,OPPD - Cost of Care - Fenland - Under 65,OPPD - Under 65 - Fenland,Residential Care
Cambridgeshire County Council,09-Feb-24,51301908743,"1,219.25",ASKHAM PLACE PD,CARE ESTABLISHMENT,OPPD - Cost of Care - Fenland - Under 65,OPPD - Under 65 - Fenland,Residential Care
Cambridgeshire County Council,09-Feb-24,51301908743,"1,219.25",ASKHAM PLACE PD,CARE ESTABLISHMENT,OPPD - Cost of Care - Fenland - Under 65,OPPD - Under 65 - Fenland,Residential Care
Cambridgeshire County Council,07-Feb-24,51301929444,"3,361.34",COMPASS MINERALS UK LIMITED,TRADE SUPPLIER,Winter Maintenance,West Winter,Salt for Highways
Cambridgeshire County Council,07-Feb-24,51301929631,"8,898.00",ZIPPORAH LTD,TRADE SUPPLIER,Registrars,Registrars General,Computer software - annual licence agreement
Cambridgeshire County Council,09-Feb-24,51301934146,"-1,162.40",ASKHAM VILLAGE COMMUNITY LTD,CARE ESTABLISHMENT,OPPD - Under 65 - City South,Countywide PD Service - Care,Nursing Care
Cambridgeshire County Council,09-Feb-24,51301934146,"-1,162.40",ASKHAM VILLAGE COMMUNITY LTD,CARE ESTABLISHMENT,OPPD - Under 65 - City South,Countywide PD Service - Care,Nursing Care
Cambridgeshire County Council,09-Feb-24,51301934146,"-1,162.40",ASKHAM VILLAGE COMMUNITY LTD,CARE ESTABLISHMENT,OPPD - Under 65 - City South,Countywide PD Service - Care,Nursing Care
Cambridgeshire County Council,09-Feb-24,51301934146,"-1,162.40",ASKHAM VILLAGE COMMUNITY LTD,CARE ESTABLISHMENT,OPPD - Under 65 - City South,Countywide PD Service - Care,Nursing Care
Cambridgeshire County Council,09-Feb-24,51301934146,"-1,162.40",ASKHAM VILLAGE COMMUNITY LTD,CARE ESTABLISHMENT,OPPD - Under 65 - City South,Countywide PD Service - Care,Nursing Care
Cambridgeshire County Council,09-Feb-24,51301934146,-830.29,ASKHAM VILLAGE COMMUNITY LTD,CARE ESTABLISHMENT,OPPD - Under 65 - City South,Countywide PD Service - Care,Nursing Care
Cambridgeshire County Council,09-Feb-24,51301934252,830.29,ASKHAM VILLAGE COMMUNITY LTD,CARE ESTABLISHMENT,OPPD - Cost of Care - Fenland - Over 65,Older People - Fenland - Care,Nursing Care
Cambridgeshire County Council,09-Feb-24,51301934252,"1,162.40",ASKHAM VILLAGE COMMUNITY LTD,CARE ESTABLISHMENT,OPPD - Cost of Care - Fenland - Over 65,Older People - Fenland - Care,Nursing Care
Cambridgeshire County Council,09-Feb-24,51301934252,"1,162.40",ASKHAM VILLAGE COMMUNITY LTD,CARE ESTABLISHMENT,OPPD - Cost of Care - Fenland - Over 65,Older People - Fenland - Care,Nursing Care
Cambridgeshire County Council,09-Feb-24,51301934252,"1,162.40",ASKHAM VILLAGE COMMUNITY LTD,CARE ESTABLISHMENT,OPPD - Cost of Care - Fenland - Over 65,Older People - Fenland - Care,Nursing Care
Cambridgeshire County Council,09-Feb-24,51301934252,"1,162.40",ASKHAM VILLAGE COMMUNITY LTD,CARE ESTABLISHMENT,OPPD - Cost of Care - Fenland - Over 65,Older People - Fenland - Care,Nursing Care
Cambridgeshire County Council,09-Feb-24,51301934252,"1,162.40",ASKHAM VILLAGE COMMUNITY LTD,CARE ESTABLISHMENT,OPPD - Cost of Care - Fenland - Over 65,Older People - Fenland - Care,Nursing Care
Cambridgeshire County Council,15-Feb-24,51301934892,764.43,PETERBOROUGH CITY COUNCIL,OTHER PUBLIC BODIES,Enduring Transmission Grant,Enduring Transmission Grant,Partnership Costs and Expenses
Cambridgeshire County Council,20-Feb-24,51301940041,"2,400.00",Pathfinder Legal Services Limited,TRADE SUPPLIER,"County Planning, Minerals & Waste","County Planning, Minerals & Waste",External Legal Fees
Cambridgeshire County Council,20-Feb-24,51301940042,900.00,Pathfinder Legal Services Limited,TRADE SUPPLIER,"County Planning, Minerals & Waste","County Planning, Minerals & Waste",External Legal Fees
Cambridgeshire County Council,15-Feb-24,51301940043,"69,000.00",The Appropriate Adult Service,COMPANY,Youth Offending Service,YOT Project,Professional Fees and Hired Services
Cambridgeshire County Council,20-Feb-24,51301940044,990.00,Pathfinder Legal Services Limited,TRADE SUPPLIER,Capital Receipts Expenses,Capital Receipts Expenses,External Legal Fees
Cambridgeshire County Council,20-Feb-24,51301940057,831.64,Pathfinder Legal Services Limited,TRADE SUPPLIER,GCP - Energy,GCP - Energy,Consultancy
Cambridgeshire County Council,21-Feb-24,51301946938,826.54,SILKS FARM DAY NURSERY,NURSERY,Nursery Schools,Early Years - Funded 3s/4s,Care & Ed Childcare Settings
Cambridgeshire County Council,21-Feb-24,51301947981,"987,864.00",Cambridgeshire and Peterborough Combined Authority,OTHER PUBLIC BODIES,Financing items,Combined Authority,Agency Precepts and Levies
Cambridgeshire County Council,09-Feb-24,51302001286,-621.00,NELSON LODGE,CARE ESTABLISHMENT,OPPD - Cost of Care - Huntingdon - Over 65,Hunts OP Team - Care,Residential Care
Cambridgeshire County Council,09-Feb-24,51302001286,-621.00,NELSON LODGE,CARE ESTABLISHMENT,OPPD - Cost of Care - Huntingdon - Over 65,Hunts OP Team - Care,Residential Care
Cambridgeshire County Council,09-Feb-24,51302001286,-621.00,NELSON LODGE,CARE ESTABLISHMENT,OPPD - Cost of Care - Huntingdon - Over 65,Hunts OP Team - Care,Residential Care
Cambridgeshire County Council,09-Feb-24,51302001286,-621.00,NELSON LODGE,CARE ESTABLISHMENT,OPPD - Cost of Care - Huntingdon - Over 65,Hunts OP Team - Care,Residential Care
Cambridgeshire County Council,09-Feb-24,51302001286,-621.00,NELSON LODGE,CARE ESTABLISHMENT,OPPD - Cost of Care - Huntingdon - Over 65,Hunts OP Team - Care,Residential Care
Cambridgeshire County Council,09-Feb-24,51302001286,-621.00,NELSON LODGE,CARE ESTABLISHMENT,OPPD - Cost of Care - Huntingdon - Over 65,Hunts OP Team - Care,Residential Care
Cambridgeshire County Council,09-Feb-24,51302001286,-621.00,NELSON LODGE,CARE ESTABLISHMENT,OPPD - Cost of Care - Huntingdon - Over 65,Hunts OP Team - Care,Residential Care
Cambridgeshire County Council,09-Feb-24,51302001286,-621.00,NELSON LODGE,CARE ESTABLISHMENT,OPPD - Cost of Care - Huntingdon - Over 65,Hunts OP Team - Care,Residential Care
Cambridgeshire County Council,09-Feb-24,51302001286,-621.00,NELSON LODGE,CARE ESTABLISHMENT,OPPD - Cost of Care - Huntingdon - Over 65,Hunts OP Team - Care,Residential Care
Cambridgeshire County Council,09-Feb-24,51302001286,-621.00,NELSON LODGE,CARE ESTABLISHMENT,OPPD - Cost of Care - Huntingdon - Over 65,Hunts OP Team - Care,Residential Care
Cambridgeshire County Council,09-Feb-24,51302001286,-621.00,NELSON LODGE,CARE ESTABLISHMENT,OPPD - Cost of Care - Huntingdon - Over 65,Hunts OP Team - Care,Residential Care
Cambridgeshire County Council,09-Feb-24,51302001286,-621.00,NELSON LODGE,CARE ESTABLISHMENT,OPPD - Cost of Care - Huntingdon - Over 65,Hunts OP Team - Care,Residential Care
Cambridgeshire County Council,09-Feb-24,51302001286,-621.00,NELSON LODGE,CARE ESTABLISHMENT,OPPD - Cost of Care - Huntingdon - Over 65,Hunts OP Team - Care,Residential Care
Cambridgeshire County Council,09-Feb-24,51302001286,-621.00,NELSON LODGE,CARE ESTABLISHMENT,OPPD - Cost of Care - Huntingdon - Over 65,Hunts OP Team - Care,Residential Care
Cambridgeshire County Council,09-Feb-24,51302001286,-621.00,NELSON LODGE,CARE ESTABLISHMENT,OPPD - Cost of Care - Huntingdon - Over 65,Hunts OP Team - Care,Residential Care
Cambridgeshire County Council,09-Feb-24,51302001286,-621.00,NELSON LODGE,CARE ESTABLISHMENT,OPPD - Cost of Care - Huntingdon - Over 65,Hunts OP Team - Care,Residential Care
Cambridgeshire County Council,09-Feb-24,51302001286,-621.00,NELSON LODGE,CARE ESTABLISHMENT,OPPD - Cost of Care - Huntingdon - Over 65,Hunts OP Team - Care,Residential Care
Cambridgeshire County Council,09-Feb-24,51302001286,-621.00,NELSON LODGE,CARE ESTABLISHMENT,OPPD - Cost of Care - Huntingdon - Over 65,Hunts OP Team - Care,Residential Care
Cambridgeshire County Council,09-Feb-24,51302001286,-621.00,NELSON LODGE,CARE ESTABLISHMENT,OPPD - Cost of Care - Huntingdon - Over 65,Hunts OP Team - Care,Residential Care
Cambridgeshire County Council,09-Feb-24,51302001286,-621.00,NELSON LODGE,CARE ESTABLISHMENT,OPPD - Cost of Care - Huntingdon - Over 65,Hunts OP Team - Care,Residential Care
Cambridgeshire County Council,09-Feb-24,51302001286,-621.00,NELSON LODGE,CARE ESTABLISHMENT,OPPD - Cost of Care - Huntingdon - Over 65,Hunts OP Team - Care,Residential Care
Cambridgeshire County Council,09-Feb-24,51302001286,-621.00,NELSON LODGE,CARE ESTABLISHMENT,OPPD - Cost of Care - Huntingdon - Over 65,Hunts OP Team - Care,Residential Care
Cambridgeshire County Council,09-Feb-24,51302001286,-621.00,NELSON LODGE,CARE ESTABLISHMENT,OPPD - Cost of Care - Huntingdon - Over 65,Hunts OP Team - Care,Residential Care
Cambridgeshire County Council,09-Feb-24,51302001286,-621.00,NELSON LODGE,CARE ESTABLISHMENT,OPPD - Cost of Care - Huntingdon - Over 65,Hunts OP Team - Care,Residential Care
Cambridgeshire County Council,09-Feb-24,51302001286,-621.00,NELSON LODGE,CARE ESTABLISHMENT,OPPD - Cost of Care - Huntingdon - Over 65,Hunts OP Team - Care,Residential Care
Cambridgeshire County Council,09-Feb-24,51302001286,-621.00,NELSON LODGE,CARE ESTABLISHMENT,OPPD - Cost of Care - Huntingdon - Over 65,Hunts OP Team - Care,Residential Care
Cambridgeshire County Council,09-Feb-24,51302001286,-621.00,NELSON LODGE,CARE ESTABLISHMENT,OPPD - Cost of Care - Huntingdon - Over 65,Hunts OP Team - Care,Residential Care
Cambridgeshire County Council,09-Feb-24,51302001286,-621.00,NELSON LODGE,CARE ESTABLISHMENT,OPPD - Cost of Care - Huntingdon - Over 65,Hunts OP Team - Care,Residential Care
Cambridgeshire County Council,09-Feb-24,51302001286,-621.00,NELSON LODGE,CARE ESTABLISHMENT,OPPD - Cost of Care - Huntingdon - Over 65,Hunts OP Team - Care,Residential Care
Cambridgeshire County Council,09-Feb-24,51302001286,-621.00,NELSON LODGE,CARE ESTABLISHMENT,OPPD - Cost of Care - Huntingdon - Over 65,Hunts OP Team - Care,Residential Care
Cambridgeshire County Council,09-Feb-24,51302001286,-621.00,NELSON LODGE,CARE ESTABLISHMENT,OPPD - Cost of Care - Huntingdon - Over 65,Hunts OP Team - Care,Residential Care
Cambridgeshire County Council,09-Feb-24,51302001286,-621.00,NELSON LODGE,CARE ESTABLISHMENT,OPPD - Cost of Care - Huntingdon - Over 65,Hunts OP Team - Care,Residential Care
Cambridgeshire County Council,09-Feb-24,51302001286,-621.00,NELSON LODGE,CARE ESTABLISHMENT,OPPD - Cost of Care - Huntingdon - Over 65,Hunts OP Team - Care,Residential Care
Cambridgeshire County Council,09-Feb-24,51302001286,-621.00,NELSON LODGE,CARE ESTABLISHMENT,OPPD - Cost of Care - Huntingdon - Over 65,Hunts OP Team - Care,Residential Care
Cambridgeshire County Council,09-Feb-24,51302001286,-621.00,NELSON LODGE,CARE ESTABLISHMENT,OPPD - Cost of Care - Huntingdon - Over 65,Hunts OP Team - Care,Residential Care
Cambridgeshire County Council,09-Feb-24,51302001286,-621.00,NELSON LODGE,CARE ESTABLISHMENT,OPPD - Cost of Care - Huntingdon - Over 65,Hunts OP Team - Care,Residential Care
Cambridgeshire County Council,09-Feb-24,51302001286,-621.00,NELSON LODGE,CARE ESTABLISHMENT,OPPD - Cost of Care - Huntingdon - Over 65,Hunts OP Team - Care,Residential Care
Cambridgeshire County Council,09-Feb-24,51302001286,-621.00,NELSON LODGE,CARE ESTABLISHMENT,OPPD - Cost of Care - Huntingdon - Over 65,Hunts OP Team - Care,Residential Care
Cambridgeshire County Council,09-Feb-24,51302001286,-621.00,NELSON LODGE,CARE ESTABLISHMENT,OPPD - Cost of Care - Huntingdon - Over 65,Hunts OP Team - Care,Residential Care
Cambridgeshire County Council,09-Feb-24,51302001286,-621.00,NELSON LODGE,CARE ESTABLISHMENT,OPPD - Cost of Care - Huntingdon - Over 65,Hunts OP Team - Care,Residential Care
Cambridgeshire County Council,09-Feb-24,51302001286,-621.00,NELSON LODGE,CARE ESTABLISHMENT,OPPD - Cost of Care - Huntingdon - Over 65,Hunts OP Team - Care,Residential Care
Cambridgeshire County Council,09-Feb-24,51302001286,-621.00,NELSON LODGE,CARE ESTABLISHMENT,OPPD - Cost of Care - Huntingdon - Over 65,Hunts OP Team - Care,Residential Care
Cambridgeshire County Council,09-Feb-24,51302001286,-621.00,NELSON LODGE,CARE ESTABLISHMENT,OPPD - Cost of Care - Huntingdon - Over 65,Hunts OP Team - Care,Residential Care
Cambridgeshire County Council,09-Feb-24,51302001286,-621.00,NELSON LODGE,CARE ESTABLISHMENT,OPPD - Cost of Care - Huntingdon - Over 65,Hunts OP Team - Care,Residential Care
Cambridgeshire County Council,09-Feb-24,51302001286,-621.00,NELSON LODGE,CARE ESTABLISHMENT,OPPD - Cost of Care - Huntingdon - Over 65,Hunts OP Team - Care,Residential Care
Cambridgeshire County Council,09-Feb-24,51302001286,-621.00,NELSON LODGE,CARE ESTABLISHMENT,OPPD - Cost of Care - Huntingdon - Over 65,Hunts OP Team - Care,Residential Care
Cambridgeshire County Council,09-Feb-24,51302001286,-621.00,NELSON LODGE,CARE ESTABLISHMENT,OPPD - Cost of Care - Huntingdon - Over 65,Hunts OP Team - Care,Residential Care
Cambridgeshire County Council,09-Feb-24,51302001286,-621.00,NELSON LODGE,CARE ESTABLISHMENT,OPPD - Cost of Care - Huntingdon - Over 65,Hunts OP Team - Care,Residential Care
Cambridgeshire County Council,09-Feb-24,51302001286,-621.00,NELSON LODGE,CARE ESTABLISHMENT,OPPD - Cost of Care - Huntingdon - Over 65,Hunts OP Team - Care,Residential Care
Cambridgeshire County Council,09-Feb-24,51302001286,-621.00,NELSON LODGE,CARE ESTABLISHMENT,OPPD - Cost of Care - Huntingdon - Over 65,Hunts OP Team - Care,Residential Care
Cambridgeshire County Council,09-Feb-24,51302001286,-621.00,NELSON LODGE,CARE ESTABLISHMENT,OPPD - Cost of Care - Huntingdon - Over 65,Hunts OP Team - Care,Residential Care
Cambridgeshire County Council,09-Feb-24,51302001286,-621.00,NELSON LODGE,CARE ESTABLISHMENT,OPPD - Cost of Care - Huntingdon - Over 65,Hunts OP Team - Care,Residential Care
Cambridgeshire County Council,09-Feb-24,51302001286,-621.00,NELSON LODGE,CARE ESTABLISHMENT,OPPD - Cost of Care - Huntingdon - Over 65,Hunts OP Team - Care,Residential Care
Cambridgeshire County Council,09-Feb-24,51302001286,-621.00,NELSON LODGE,CARE ESTABLISHMENT,OPPD - Cost of Care - Huntingdon - Over 65,Hunts OP Team - Care,Residential Care
Cambridgeshire County Council,09-Feb-24,51302001286,-621.00,NELSON LODGE,CARE ESTABLISHMENT,OPPD - Cost of Care - Huntingdon - Over 65,Hunts OP Team - Care,Residential Care
Cambridgeshire County Council,09-Feb-24,51302001286,-621.00,NELSON LODGE,CARE ESTABLISHMENT,OPPD - Cost of Care - Huntingdon - Over 65,Hunts OP Team - Care,Residential Care
Cambridgeshire County Council,09-Feb-24,51302001286,-621.00,NELSON LODGE,CARE ESTABLISHMENT,OPPD - Cost of Care - Huntingdon - Over 65,Hunts OP Team - Care,Residential Care
Cambridgeshire County Council,09-Feb-24,51302001286,-621.00,NELSON LODGE,CARE ESTABLISHMENT,OPPD - Cost of Care - Huntingdon - Over 65,Hunts OP Team - Care,Residential Care
Cambridgeshire County Council,09-Feb-24,51302001286,-621.00,NELSON LODGE,CARE ESTABLISHMENT,OPPD - Cost of Care - Huntingdon - Over 65,Hunts OP Team - Care,Residential Care
Cambridgeshire County Council,09-Feb-24,51302001296,-650.00,NELSON LODGE,CARE ESTABLISHMENT,OPPD - Cost of Care - Huntingdon - Over 65,Hunts OP Team - Care,Residential Care
Cambridgeshire County Council,09-Feb-24,51302001296,-650.00,NELSON LODGE,CARE ESTABLISHMENT,OPPD - Cost of Care - Huntingdon - Over 65,Hunts OP Team - Care,Residential Care
Cambridgeshire County Council,09-Feb-24,51302001296,-650.00,NELSON LODGE,CARE ESTABLISHMENT,OPPD - Cost of Care - Huntingdon - Over 65,Hunts OP Team - Care,Residential Care
Cambridgeshire County Council,09-Feb-24,51302001296,-650.00,NELSON LODGE,CARE ESTABLISHMENT,OPPD - Cost of Care - Huntingdon - Over 65,Hunts OP Team - Care,Residential Care
Cambridgeshire County Council,09-Feb-24,51302001296,-650.00,NELSON LODGE,CARE ESTABLISHMENT,OPPD - Cost of Care - Huntingdon - Over 65,Hunts OP Team - Care,Residential Care
Cambridgeshire County Council,09-Feb-24,51302001296,-650.00,NELSON LODGE,CARE ESTABLISHMENT,OPPD - Cost of Care - Huntingdon - Over 65,Hunts OP Team - Care,Residential Care
Cambridgeshire County Council,09-Feb-24,51302001296,-650.00,NELSON LODGE,CARE ESTABLISHMENT,OPPD - Cost of Care - Huntingdon - Over 65,Hunts OP Team - Care,Residential Care
Cambridgeshire County Council,09-Feb-24,51302001296,-650.00,NELSON LODGE,CARE ESTABLISHMENT,OPPD - Cost of Care - Huntingdon - Over 65,Hunts OP Team - Care,Residential Care
Cambridgeshire County Council,09-Feb-24,51302001296,-650.00,NELSON LODGE,CARE ESTABLISHMENT,OPPD - Cost of Care - Huntingdon - Over 65,Hunts OP Team - Care,Residential Care
Cambridgeshire County Council,09-Feb-24,51302001296,-650.00,NELSON LODGE,CARE ESTABLISHMENT,OPPD - Cost of Care - Huntingdon - Over 65,Hunts OP Team - Care,Residential Care
Cambridgeshire County Council,09-Feb-24,51302001296,-650.00,NELSON LODGE,CARE ESTABLISHMENT,OPPD - Cost of Care - Huntingdon - Over 65,Hunts OP Team - Care,Residential Care
Cambridgeshire County Council,09-Feb-24,51302001296,-650.00,NELSON LODGE,CARE ESTABLISHMENT,OPPD - Cost of Care - Huntingdon - Over 65,Hunts OP Team - Care,Residential Care
Cambridgeshire County Council,09-Feb-24,51302001296,-650.00,NELSON LODGE,CARE ESTABLISHMENT,OPPD - Cost of Care - Huntingdon - Over 65,Hunts OP Team - Care,Residential Care
Cambridgeshire County Council,09-Feb-24,51302001296,-650.00,NELSON LODGE,CARE ESTABLISHMENT,OPPD - Cost of Care - Huntingdon - Over 65,Hunts OP Team - Care,Residential Care
Cambridgeshire County Council,09-Feb-24,51302001296,-650.00,NELSON LODGE,CARE ESTABLISHMENT,OPPD - Cost of Care - Huntingdon - Over 65,Hunts OP Team - Care,Residential Care
Cambridgeshire County Council,09-Feb-24,51302001296,-650.00,NELSON LODGE,CARE ESTABLISHMENT,OPPD - Cost of Care - Huntingdon - Over 65,Hunts OP Team - Care,Residential Care
Cambridgeshire County Council,09-Feb-24,51302001296,-650.00,NELSON LODGE,CARE ESTABLISHMENT,OPPD - Cost of Care - Huntingdon - Over 65,Hunts OP Team - Care,Residential Care
Cambridgeshire County Council,09-Feb-24,51302001296,-650.00,NELSON LODGE,CARE ESTABLISHMENT,OPPD - Cost of Care - Huntingdon - Over 65,Hunts OP Team - Care,Residential Care
Cambridgeshire County Council,09-Feb-24,51302001296,-650.00,NELSON LODGE,CARE ESTABLISHMENT,OPPD - Cost of Care - Huntingdon - Over 65,Hunts OP Team - Care,Residential Care
Cambridgeshire County Council,09-Feb-24,51302001296,-650.00,NELSON LODGE,CARE ESTABLISHMENT,OPPD - Cost of Care - Huntingdon - Over 65,Hunts OP Team - Care,Residential Care
Cambridgeshire County Council,09-Feb-24,51302001296,-650.00,NELSON LODGE,CARE ESTABLISHMENT,OPPD - Cost of Care - Huntingdon - Over 65,Hunts OP Team - Care,Residential Care
Cambridgeshire County Council,09-Feb-24,51302001296,-650.00,NELSON LODGE,CARE ESTABLISHMENT,OPPD - Cost of Care - Huntingdon - Over 65,Hunts OP Team - Care,Residential Care
Cambridgeshire County Council,09-Feb-24,51302001296,-650.00,NELSON LODGE,CARE ESTABLISHMENT,OPPD - Cost of Care - Huntingdon - Over 65,Hunts OP Team - Care,Residential Care
Cambridgeshire County Council,09-Feb-24,51302001296,-650.00,NELSON LODGE,CARE ESTABLISHMENT,OPPD - Cost of Care - Huntingdon - Over 65,Hunts OP Team - Care,Residential Care
Cambridgeshire County Council,09-Feb-24,51302001296,-650.00,NELSON LODGE,CARE ESTABLISHMENT,OPPD - Cost of Care - Huntingdon - Over 65,Hunts OP Team - Care,Residential Care
Cambridgeshire County Council,09-Feb-24,51302001296,-650.00,NELSON LODGE,CARE ESTABLISHMENT,OPPD - Cost of Care - Huntingdon - Over 65,Hunts OP Team - Care,Residential Care
Cambridgeshire County Council,09-Feb-24,51302001296,-650.00,NELSON LODGE,CARE ESTABLISHMENT,OPPD - Cost of Care - Huntingdon - Over 65,Hunts OP Team - Care,Residential Care
Cambridgeshire County Council,09-Feb-24,51302001296,-650.00,NELSON LODGE,CARE ESTABLISHMENT,OPPD - Cost of Care - Huntingdon - Over 65,Hunts OP Team - Care,Residential Care
Cambridgeshire County Council,09-Feb-24,51302001296,-650.00,NELSON LODGE,CARE ESTABLISHMENT,OPPD - Cost of Care - Huntingdon - Over 65,Hunts OP Team - Care,Residential Care
Cambridgeshire County Council,09-Feb-24,51302001296,-650.00,NELSON LODGE,CARE ESTABLISHMENT,OPPD - Cost of Care - Huntingdon - Over 65,Hunts OP Team - Care,Residential Care
Cambridgeshire County Council,09-Feb-24,51302001296,-650.00,NELSON LODGE,CARE ESTABLISHMENT,OPPD - Cost of Care - Huntingdon - Over 65,Hunts OP Team - Care,Residential Care
Cambridgeshire County Council,09-Feb-24,51302001296,-650.00,NELSON LODGE,CARE ESTABLISHMENT,OPPD - Cost of Care - Huntingdon - Over 65,Hunts OP Team - Care,Residential Care
Cambridgeshire County Council,09-Feb-24,51302001296,-650.00,NELSON LODGE,CARE ESTABLISHMENT,OPPD - Cost of Care - Huntingdon - Over 65,Hunts OP Team - Care,Residential Care
Cambridgeshire County Council,09-Feb-24,51302001296,-650.00,NELSON LODGE,CARE ESTABLISHMENT,OPPD - Cost of Care - Huntingdon - Over 65,Hunts OP Team - Care,Residential Care
Cambridgeshire County Council,09-Feb-24,51302001296,-650.00,NELSON LODGE,CARE ESTABLISHMENT,OPPD - Cost of Care - Huntingdon - Over 65,Hunts OP Team - Care,Residential Care
Cambridgeshire County Council,09-Feb-24,51302001296,-650.00,NELSON LODGE,CARE ESTABLISHMENT,OPPD - Cost of Care - Huntingdon - Over 65,Hunts OP Team - Care,Residential Care
Cambridgeshire County Council,09-Feb-24,51302001296,-650.00,NELSON LODGE,CARE ESTABLISHMENT,OPPD - Cost of Care - Huntingdon - Over 65,Hunts OP Team - Care,Residential Care
Cambridgeshire County Council,09-Feb-24,51302001296,-650.00,NELSON LODGE,CARE ESTABLISHMENT,OPPD - Cost of Care - Huntingdon - Over 65,Hunts OP Team - Care,Residential Care
Cambridgeshire County Council,09-Feb-24,51302001296,-650.00,NELSON LODGE,CARE ESTABLISHMENT,OPPD - Cost of Care - Huntingdon - Over 65,Hunts OP Team - Care,Residential Care
Cambridgeshire County Council,09-Feb-24,51302001296,-650.00,NELSON LODGE,CARE ESTABLISHMENT,OPPD - Cost of Care - Huntingdon - Over 65,Hunts OP Team - Care,Residential Care
Cambridgeshire County Council,09-Feb-24,51302001296,-650.00,NELSON LODGE,CARE ESTABLISHMENT,OPPD - Cost of Care - Huntingdon - Over 65,Hunts OP Team - Care,Residential Care
Cambridgeshire County Council,09-Feb-24,51302001296,-650.00,NELSON LODGE,CARE ESTABLISHMENT,OPPD - Cost of Care - Huntingdon - Over 65,Hunts OP Team - Care,Residential Care
Cambridgeshire County Council,09-Feb-24,51302001296,-650.00,NELSON LODGE,CARE ESTABLISHMENT,OPPD - Cost of Care - Huntingdon - Over 65,Hunts OP Team - Care,Residential Care
Cambridgeshire County Council,09-Feb-24,51302001296,-650.00,NELSON LODGE,CARE ESTABLISHMENT,OPPD - Cost of Care - Huntingdon - Over 65,Hunts OP Team - Care,Residential Care
Cambridgeshire County Council,09-Feb-24,51302001296,-650.00,NELSON LODGE,CARE ESTABLISHMENT,OPPD - Cost of Care - Huntingdon - Over 65,Hunts OP Team - Care,Residential Care
Cambridgeshire County Council,09-Feb-24,51302001296,-650.00,NELSON LODGE,CARE ESTABLISHMENT,OPPD - Cost of Care - Huntingdon - Over 65,Hunts OP Team - Care,Residential Care
Cambridgeshire County Council,09-Feb-24,51302001296,-650.00,NELSON LODGE,CARE ESTABLISHMENT,OPPD - Cost of Care - Huntingdon - Over 65,Hunts OP Team - Care,Residential Care
Cambridgeshire County Council,09-Feb-24,51302001296,-650.00,NELSON LODGE,CARE ESTABLISHMENT,OPPD - Cost of Care - Huntingdon - Over 65,Hunts OP Team - Care,Residential Care
Cambridgeshire County Council,09-Feb-24,51302001296,-650.00,NELSON LODGE,CARE ESTABLISHMENT,OPPD - Cost of Care - Huntingdon - Over 65,Hunts OP Team - Care,Residential Care
Cambridgeshire County Council,09-Feb-24,51302001296,-650.00,NELSON LODGE,CARE ESTABLISHMENT,OPPD - Cost of Care - Huntingdon - Over 65,Hunts OP Team - Care,Residential Care
Cambridgeshire County Council,09-Feb-24,51302001296,-650.00,NELSON LODGE,CARE ESTABLISHMENT,OPPD - Cost of Care - Huntingdon - Over 65,Hunts OP Team - Care,Residential Care
Cambridgeshire County Council,09-Feb-24,51302001296,-650.00,NELSON LODGE,CARE ESTABLISHMENT,OPPD - Cost of Care - Huntingdon - Over 65,Hunts OP Team - Care,Residential Care
Cambridgeshire County Council,09-Feb-24,51302001296,-650.00,NELSON LODGE,CARE ESTABLISHMENT,OPPD - Cost of Care - Huntingdon - Over 65,Hunts OP Team - Care,Residential Care
Cambridgeshire County Council,09-Feb-24,51302001296,-650.00,NELSON LODGE,CARE ESTABLISHMENT,OPPD - Cost of Care - Huntingdon - Over 65,Hunts OP Team - Care,Residential Care
Cambridgeshire County Council,09-Feb-24,51302001296,-650.00,NELSON LODGE,CARE ESTABLISHMENT,OPPD - Cost of Care - Huntingdon - Over 65,Hunts OP Team - Care,Residential Care
Cambridgeshire County Council,09-Feb-24,51302001296,-650.00,NELSON LODGE,CARE ESTABLISHMENT,OPPD - Cost of Care - Huntingdon - Over 65,Hunts OP Team - Care,Residential Care
Cambridgeshire County Council,09-Feb-24,51302001296,-650.00,NELSON LODGE,CARE ESTABLISHMENT,OPPD - Cost of Care - Huntingdon - Over 65,Hunts OP Team - Care,Residential Care
Cambridgeshire County Council,09-Feb-24,51302001296,-650.00,NELSON LODGE,CARE ESTABLISHMENT,OPPD - Cost of Care - Huntingdon - Over 65,Hunts OP Team - Care,Residential Care
Cambridgeshire County Council,09-Feb-24,51302001296,-650.00,NELSON LODGE,CARE ESTABLISHMENT,OPPD - Cost of Care - Huntingdon - Over 65,Hunts OP Team - Care,Residential Care
Cambridgeshire County Council,09-Feb-24,51302001308,-650.00,NELSON LODGE,CARE ESTABLISHMENT,OPPD - Cost of Care - Huntingdon - Over 65,Hunts OP Team - Care,Residential Care
Cambridgeshire County Council,09-Feb-24,51302001308,-650.00,NELSON LODGE,CARE ESTABLISHMENT,OPPD - Cost of Care - Huntingdon - Over 65,Hunts OP Team - Care,Residential Care
Cambridgeshire County Council,09-Feb-24,51302001308,-650.00,NELSON LODGE,CARE ESTABLISHMENT,OPPD - Cost of Care - Huntingdon - Over 65,Hunts OP Team - Care,Residential Care
Cambridgeshire County Council,09-Feb-24,51302001308,-650.00,NELSON LODGE,CARE ESTABLISHMENT,OPPD - Cost of Care - Huntingdon - Over 65,Hunts OP Team - Care,Residential Care
Cambridgeshire County Council,09-Feb-24,51302001308,-650.00,NELSON LODGE,CARE ESTABLISHMENT,OPPD - Cost of Care - Huntingdon - Over 65,Hunts OP Team - Care,Residential Care
Cambridgeshire County Council,09-Feb-24,51302001308,-650.00,NELSON LODGE,CARE ESTABLISHMENT,OPPD - Cost of Care - Huntingdon - Over 65,Hunts OP Team - Care,Residential Care
Cambridgeshire County Council,09-Feb-24,51302001308,-650.00,NELSON LODGE,CARE ESTABLISHMENT,OPPD - Cost of Care - Huntingdon - Over 65,Hunts OP Team - Care,Residential Care
Cambridgeshire County Council,09-Feb-24,51302001308,-650.00,NELSON LODGE,CARE ESTABLISHMENT,OPPD - Cost of Care - Huntingdon - Over 65,Hunts OP Team - Care,Residential Care
Cambridgeshire County Council,09-Feb-24,51302001308,-650.00,NELSON LODGE,CARE ESTABLISHMENT,OPPD - Cost of Care - Huntingdon - Over 65,Hunts OP Team - Care,Residential Care
Cambridgeshire County Council,09-Feb-24,51302001308,-650.00,NELSON LODGE,CARE ESTABLISHMENT,OPPD - Cost of Care - Huntingdon - Over 65,Hunts OP Team - Care,Residential Care
Cambridgeshire County Council,09-Feb-24,51302001308,-650.00,NELSON LODGE,CARE ESTABLISHMENT,OPPD - Cost of Care - Huntingdon - Over 65,Hunts OP Team - Care,Residential Care
Cambridgeshire County Council,09-Feb-24,51302001308,-650.00,NELSON LODGE,CARE ESTABLISHMENT,OPPD - Cost of Care - Huntingdon - Over 65,Hunts OP Team - Care,Residential Care
Cambridgeshire County Council,09-Feb-24,51302001308,-650.00,NELSON LODGE,CARE ESTABLISHMENT,OPPD - Cost of Care - Huntingdon - Over 65,Hunts OP Team - Care,Residential Care
Cambridgeshire County Council,09-Feb-24,51302001308,-650.00,NELSON LODGE,CARE ESTABLISHMENT,OPPD - Cost of Care - Huntingdon - Over 65,Hunts OP Team - Care,Residential Care
Cambridgeshire County Council,09-Feb-24,51302001308,-650.00,NELSON LODGE,CARE ESTABLISHMENT,OPPD - Cost of Care - Huntingdon - Over 65,Hunts OP Team - Care,Residential Care
Cambridgeshire County Council,09-Feb-24,51302001308,-650.00,NELSON LODGE,CARE ESTABLISHMENT,OPPD - Cost of Care - Huntingdon - Over 65,Hunts OP Team - Care,Residential Care
Cambridgeshire County Council,09-Feb-24,51302001308,-650.00,NELSON LODGE,CARE ESTABLISHMENT,OPPD - Cost of Care - Huntingdon - Over 65,Hunts OP Team - Care,Residential Care
Cambridgeshire County Council,09-Feb-24,51302001308,-650.00,NELSON LODGE,CARE ESTABLISHMENT,OPPD - Cost of Care - Huntingdon - Over 65,Hunts OP Team - Care,Residential Care
Cambridgeshire County Council,09-Feb-24,51302001308,-650.00,NELSON LODGE,CARE ESTABLISHMENT,OPPD - Cost of Care - Huntingdon - Over 65,Hunts OP Team - Care,Residential Care
Cambridgeshire County Council,09-Feb-24,51302001308,-650.00,NELSON LODGE,CARE ESTABLISHMENT,OPPD - Cost of Care - Huntingdon - Over 65,Hunts OP Team - Care,Residential Care
Cambridgeshire County Council,09-Feb-24,51302001308,-650.00,NELSON LODGE,CARE ESTABLISHMENT,OPPD - Cost of Care - Huntingdon - Over 65,Hunts OP Team - Care,Residential Care
Cambridgeshire County Council,09-Feb-24,51302001308,-650.00,NELSON LODGE,CARE ESTABLISHMENT,OPPD - Cost of Care - Huntingdon - Over 65,Hunts OP Team - Care,Residential Care
Cambridgeshire County Council,09-Feb-24,51302001308,-650.00,NELSON LODGE,CARE ESTABLISHMENT,OPPD - Cost of Care - Huntingdon - Over 65,Hunts OP Team - Care,Residential Care
Cambridgeshire County Council,09-Feb-24,51302001308,-650.00,NELSON LODGE,CARE ESTABLISHMENT,OPPD - Cost of Care - Huntingdon - Over 65,Hunts OP Team - Care,Residential Care
Cambridgeshire County Council,09-Feb-24,51302001308,-650.00,NELSON LODGE,CARE ESTABLISHMENT,OPPD - Cost of Care - Huntingdon - Over 65,Hunts OP Team - Care,Residential Care
Cambridgeshire County Council,09-Feb-24,51302001308,-650.00,NELSON LODGE,CARE ESTABLISHMENT,OPPD - Cost of Care - Huntingdon - Over 65,Hunts OP Team - Care,Residential Care
Cambridgeshire County Council,09-Feb-24,51302001308,-650.00,NELSON LODGE,CARE ESTABLISHMENT,OPPD - Cost of Care - Huntingdon - Over 65,Hunts OP Team - Care,Residential Care
Cambridgeshire County Council,09-Feb-24,51302001308,-650.00,NELSON LODGE,CARE ESTABLISHMENT,OPPD - Cost of Care - Huntingdon - Over 65,Hunts OP Team - Care,Residential Care
Cambridgeshire County Council,09-Feb-24,51302001308,-650.00,NELSON LODGE,CARE ESTABLISHMENT,OPPD - Cost of Care - Huntingdon - Over 65,Hunts OP Team - Care,Residential Care
Cambridgeshire County Council,09-Feb-24,51302001308,-650.00,NELSON LODGE,CARE ESTABLISHMENT,OPPD - Cost of Care - Huntingdon - Over 65,Hunts OP Team - Care,Residential Care
Cambridgeshire County Council,09-Feb-24,51302001308,-650.00,NELSON LODGE,CARE ESTABLISHMENT,OPPD - Cost of Care - Huntingdon - Over 65,Hunts OP Team - Care,Residential Care
Cambridgeshire County Council,09-Feb-24,51302001308,-650.00,NELSON LODGE,CARE ESTABLISHMENT,OPPD - Cost of Care - Huntingdon - Over 65,Hunts OP Team - Care,Residential Care
Cambridgeshire County Council,09-Feb-24,51302001308,-650.00,NELSON LODGE,CARE ESTABLISHMENT,OPPD - Cost of Care - Huntingdon - Over 65,Hunts OP Team - Care,Residential Care
Cambridgeshire County Council,09-Feb-24,51302001308,-650.00,NELSON LODGE,CARE ESTABLISHMENT,OPPD - Cost of Care - Huntingdon - Over 65,Hunts OP Team - Care,Residential Care
Cambridgeshire County Council,09-Feb-24,51302001308,-650.00,NELSON LODGE,CARE ESTABLISHMENT,OPPD - Cost of Care - Huntingdon - Over 65,Hunts OP Team - Care,Residential Care
Cambridgeshire County Council,09-Feb-24,51302001308,-650.00,NELSON LODGE,CARE ESTABLISHMENT,OPPD - Cost of Care - Huntingdon - Over 65,Hunts OP Team - Care,Residential Care
Cambridgeshire County Council,09-Feb-24,51302001308,-650.00,NELSON LODGE,CARE ESTABLISHMENT,OPPD - Cost of Care - Huntingdon - Over 65,Hunts OP Team - Care,Residential Care
Cambridgeshire County Council,09-Feb-24,51302001308,-650.00,NELSON LODGE,CARE ESTABLISHMENT,OPPD - Cost of Care - Huntingdon - Over 65,Hunts OP Team - Care,Residential Care
Cambridgeshire County Council,09-Feb-24,51302001308,-650.00,NELSON LODGE,CARE ESTABLISHMENT,OPPD - Cost of Care - Huntingdon - Over 65,Hunts OP Team - Care,Residential Care
Cambridgeshire County Council,09-Feb-24,51302001308,-650.00,NELSON LODGE,CARE ESTABLISHMENT,OPPD - Cost of Care - Huntingdon - Over 65,Hunts OP Team - Care,Residential Care
Cambridgeshire County Council,09-Feb-24,51302001308,-650.00,NELSON LODGE,CARE ESTABLISHMENT,OPPD - Cost of Care - Huntingdon - Over 65,Hunts OP Team - Care,Residential Care
Cambridgeshire County Council,09-Feb-24,51302001308,-650.00,NELSON LODGE,CARE ESTABLISHMENT,OPPD - Cost of Care - Huntingdon - Over 65,Hunts OP Team - Care,Residential Care
Cambridgeshire County Council,09-Feb-24,51302001308,-650.00,NELSON LODGE,CARE ESTABLISHMENT,OPPD - Cost of Care - Huntingdon - Over 65,Hunts OP Team - Care,Residential Care
Cambridgeshire County Council,09-Feb-24,51302001308,-650.00,NELSON LODGE,CARE ESTABLISHMENT,OPPD - Cost of Care - Huntingdon - Over 65,Hunts OP Team - Care,Residential Care
Cambridgeshire County Council,09-Feb-24,51302001308,-650.00,NELSON LODGE,CARE ESTABLISHMENT,OPPD - Cost of Care - Huntingdon - Over 65,Hunts OP Team - Care,Residential Care
Cambridgeshire County Council,09-Feb-24,51302001308,-650.00,NELSON LODGE,CARE ESTABLISHMENT,OPPD - Cost of Care - Huntingdon - Over 65,Hunts OP Team - Care,Residential Care
Cambridgeshire County Council,09-Feb-24,51302001308,-650.00,NELSON LODGE,CARE ESTABLISHMENT,OPPD - Cost of Care - Huntingdon - Over 65,Hunts OP Team - Care,Residential Care
Cambridgeshire County Council,09-Feb-24,51302001308,-650.00,NELSON LODGE,CARE ESTABLISHMENT,OPPD - Cost of Care - Huntingdon - Over 65,Hunts OP Team - Care,Residential Care
Cambridgeshire County Council,09-Feb-24,51302001308,-650.00,NELSON LODGE,CARE ESTABLISHMENT,OPPD - Cost of Care - Huntingdon - Over 65,Hunts OP Team - Care,Residential Care
Cambridgeshire County Council,09-Feb-24,51302001308,-650.00,NELSON LODGE,CARE ESTABLISHMENT,OPPD - Cost of Care - Huntingdon - Over 65,Hunts OP Team - Care,Residential Care
Cambridgeshire County Council,09-Feb-24,51302001308,-650.00,NELSON LODGE,CARE ESTABLISHMENT,OPPD - Cost of Care - Huntingdon - Over 65,Hunts OP Team - Care,Residential Care
Cambridgeshire County Council,09-Feb-24,51302001308,-650.00,NELSON LODGE,CARE ESTABLISHMENT,OPPD - Cost of Care - Huntingdon - Over 65,Hunts OP Team - Care,Residential Care
Cambridgeshire County Council,09-Feb-24,51302001308,-650.00,NELSON LODGE,CARE ESTABLISHMENT,OPPD - Cost of Care - Huntingdon - Over 65,Hunts OP Team - Care,Residential Care
Cambridgeshire County Council,09-Feb-24,51302001308,-650.00,NELSON LODGE,CARE ESTABLISHMENT,OPPD - Cost of Care - Huntingdon - Over 65,Hunts OP Team - Care,Residential Care
Cambridgeshire County Council,09-Feb-24,51302001308,-650.00,NELSON LODGE,CARE ESTABLISHMENT,OPPD - Cost of Care - Huntingdon - Over 65,Hunts OP Team - Care,Residential Care
Cambridgeshire County Council,09-Feb-24,51302001308,-650.00,NELSON LODGE,CARE ESTABLISHMENT,OPPD - Cost of Care - Huntingdon - Over 65,Hunts OP Team - Care,Residential Care
Cambridgeshire County Council,09-Feb-24,51302001308,-650.00,NELSON LODGE,CARE ESTABLISHMENT,OPPD - Cost of Care - Huntingdon - Over 65,Hunts OP Team - Care,Residential Care
Cambridgeshire County Council,09-Feb-24,51302001308,-650.00,NELSON LODGE,CARE ESTABLISHMENT,OPPD - Cost of Care - Huntingdon - Over 65,Hunts OP Team - Care,Residential Care
Cambridgeshire County Council,09-Feb-24,51302001308,-650.00,NELSON LODGE,CARE ESTABLISHMENT,OPPD - Cost of Care - Huntingdon - Over 65,Hunts OP Team - Care,Residential Care
Cambridgeshire County Council,09-Feb-24,51302001308,-650.00,NELSON LODGE,CARE ESTABLISHMENT,OPPD - Cost of Care - Huntingdon - Over 65,Hunts OP Team - Care,Residential Care
Cambridgeshire County Council,09-Feb-24,51302001308,-650.00,NELSON LODGE,CARE ESTABLISHMENT,OPPD - Cost of Care - Huntingdon - Over 65,Hunts OP Team - Care,Residential Care
Cambridgeshire County Council,09-Feb-24,51302001308,-650.00,NELSON LODGE,CARE ESTABLISHMENT,OPPD - Cost of Care - Huntingdon - Over 65,Hunts OP Team - Care,Residential Care
Cambridgeshire County Council,09-Feb-24,51302001308,-650.00,NELSON LODGE,CARE ESTABLISHMENT,OPPD - Cost of Care - Huntingdon - Over 65,Hunts OP Team - Care,Residential Care
Cambridgeshire County Council,09-Feb-24,51302001308,-650.00,NELSON LODGE,CARE ESTABLISHMENT,OPPD - Cost of Care - Huntingdon - Over 65,Hunts OP Team - Care,Residential Care
Cambridgeshire County Council,09-Feb-24,51302001308,-650.00,NELSON LODGE,CARE ESTABLISHMENT,OPPD - Cost of Care - Huntingdon - Over 65,Hunts OP Team - Care,Residential Care
Cambridgeshire County Council,09-Feb-24,51302001308,-650.00,NELSON LODGE,CARE ESTABLISHMENT,OPPD - Cost of Care - Huntingdon - Over 65,Hunts OP Team - Care,Residential Care
Cambridgeshire County Council,09-Feb-24,51302001308,-650.00,NELSON LODGE,CARE ESTABLISHMENT,OPPD - Cost of Care - Huntingdon - Over 65,Hunts OP Team - Care,Residential Care
Cambridgeshire County Council,09-Feb-24,51302001370,-700.00,NELSON LODGE,CARE ESTABLISHMENT,OPPD - Cost of Care - Huntingdon - Over 65,Hunts OP Team - Care,Residential Care
Cambridgeshire County Council,09-Feb-24,51302001370,-700.00,NELSON LODGE,CARE ESTABLISHMENT,OPPD - Cost of Care - Huntingdon - Over 65,Hunts OP Team - Care,Residential Care
Cambridgeshire County Council,09-Feb-24,51302001370,-700.00,NELSON LODGE,CARE ESTABLISHMENT,OPPD - Cost of Care - Huntingdon - Over 65,Hunts OP Team - Care,Residential Care
Cambridgeshire County Council,09-Feb-24,51302001370,-700.00,NELSON LODGE,CARE ESTABLISHMENT,OPPD - Cost of Care - Huntingdon - Over 65,Hunts OP Team - Care,Residential Care
Cambridgeshire County Council,09-Feb-24,51302001370,-700.00,NELSON LODGE,CARE ESTABLISHMENT,OPPD - Cost of Care - Huntingdon - Over 65,Hunts OP Team - Care,Residential Care
Cambridgeshire County Council,09-Feb-24,51302001370,-700.00,NELSON LODGE,CARE ESTABLISHMENT,OPPD - Cost of Care - Huntingdon - Over 65,Hunts OP Team - Care,Residential Care
Cambridgeshire County Council,09-Feb-24,51302001370,-700.00,NELSON LODGE,CARE ESTABLISHMENT,OPPD - Cost of Care - Huntingdon - Over 65,Hunts OP Team - Care,Residential Care
Cambridgeshire County Council,09-Feb-24,51302001370,-700.00,NELSON LODGE,CARE ESTABLISHMENT,OPPD - Cost of Care - Huntingdon - Over 65,Hunts OP Team - Care,Residential Care
Cambridgeshire County Council,09-Feb-24,51302001370,-700.00,NELSON LODGE,CARE ESTABLISHMENT,OPPD - Cost of Care - Huntingdon - Over 65,Hunts OP Team - Care,Residential Care
Cambridgeshire County Council,09-Feb-24,51302001370,-700.00,NELSON LODGE,CARE ESTABLISHMENT,OPPD - Cost of Care - Huntingdon - Over 65,Hunts OP Team - Care,Residential Care
Cambridgeshire County Council,09-Feb-24,51302001370,-700.00,NELSON LODGE,CARE ESTABLISHMENT,OPPD - Cost of Care - Huntingdon - Over 65,Hunts OP Team - Care,Residential Care
Cambridgeshire County Council,09-Feb-24,51302001370,-700.00,NELSON LODGE,CARE ESTABLISHMENT,OPPD - Cost of Care - Huntingdon - Over 65,Hunts OP Team - Care,Residential Care
Cambridgeshire County Council,09-Feb-24,51302001370,-700.00,NELSON LODGE,CARE ESTABLISHMENT,OPPD - Cost of Care - Huntingdon - Over 65,Hunts OP Team - Care,Residential Care
Cambridgeshire County Council,09-Feb-24,51302001370,-700.00,NELSON LODGE,CARE ESTABLISHMENT,OPPD - Cost of Care - Huntingdon - Over 65,Hunts OP Team - Care,Residential Care
Cambridgeshire County Council,09-Feb-24,51302001370,-700.00,NELSON LODGE,CARE ESTABLISHMENT,OPPD - Cost of Care - Huntingdon - Over 65,Hunts OP Team - Care,Residential Care
Cambridgeshire County Council,09-Feb-24,51302001370,-700.00,NELSON LODGE,CARE ESTABLISHMENT,OPPD - Cost of Care - Huntingdon - Over 65,Hunts OP Team - Care,Residential Care
Cambridgeshire County Council,09-Feb-24,51302001370,-700.00,NELSON LODGE,CARE ESTABLISHMENT,OPPD - Cost of Care - Huntingdon - Over 65,Hunts OP Team - Care,Residential Care
Cambridgeshire County Council,09-Feb-24,51302001370,-700.00,NELSON LODGE,CARE ESTABLISHMENT,OPPD - Cost of Care - Huntingdon - Over 65,Hunts OP Team - Care,Residential Care
Cambridgeshire County Council,09-Feb-24,51302001370,-700.00,NELSON LODGE,CARE ESTABLISHMENT,OPPD - Cost of Care - Huntingdon - Over 65,Hunts OP Team - Care,Residential Care
Cambridgeshire County Council,09-Feb-24,51302001370,-700.00,NELSON LODGE,CARE ESTABLISHMENT,OPPD - Cost of Care - Huntingdon - Over 65,Hunts OP Team - Care,Residential Care
Cambridgeshire County Council,09-Feb-24,51302001370,-700.00,NELSON LODGE,CARE ESTABLISHMENT,OPPD - Cost of Care - Huntingdon - Over 65,Hunts OP Team - Care,Residential Care
Cambridgeshire County Council,09-Feb-24,51302001370,-700.00,NELSON LODGE,CARE ESTABLISHMENT,OPPD - Cost of Care - Huntingdon - Over 65,Hunts OP Team - Care,Residential Care
Cambridgeshire County Council,09-Feb-24,51302001370,-700.00,NELSON LODGE,CARE ESTABLISHMENT,OPPD - Cost of Care - Huntingdon - Over 65,Hunts OP Team - Care,Residential Care
Cambridgeshire County Council,09-Feb-24,51302001370,-700.00,NELSON LODGE,CARE ESTABLISHMENT,OPPD - Cost of Care - Huntingdon - Over 65,Hunts OP Team - Care,Residential Care
Cambridgeshire County Council,09-Feb-24,51302001370,-700.00,NELSON LODGE,CARE ESTABLISHMENT,OPPD - Cost of Care - Huntingdon - Over 65,Hunts OP Team - Care,Residential Care
Cambridgeshire County Council,09-Feb-24,51302001370,-600.00,NELSON LODGE,CARE ESTABLISHMENT,OPPD - Cost of Care - Huntingdon - Over 65,Hunts OP Team - Care,Residential Care
Cambridgeshire County Council,09-Feb-24,51302001431,600.00,NELSON LODGE,CARE ESTABLISHMENT,OPPD - Cost of Care - Huntingdon - Over 65,Hunts OP Team - Care,Residential Care
Cambridgeshire County Council,09-Feb-24,51302001431,700.00,NELSON LODGE,CARE ESTABLISHMENT,OPPD - Cost of Care - Huntingdon - Over 65,Hunts OP Team - Care,Residential Care
Cambridgeshire County Council,09-Feb-24,51302001431,700.00,NELSON LODGE,CARE ESTABLISHMENT,OPPD - Cost of Care - Huntingdon - Over 65,Hunts OP Team - Care,Residential Care
Cambridgeshire County Council,09-Feb-24,51302001431,700.00,NELSON LODGE,CARE ESTABLISHMENT,OPPD - Cost of Care - Huntingdon - Over 65,Hunts OP Team - Care,Residential Care
Cambridgeshire County Council,09-Feb-24,51302001431,700.00,NELSON LODGE,CARE ESTABLISHMENT,OPPD - Cost of Care - Huntingdon - Over 65,Hunts OP Team - Care,Residential Care
Cambridgeshire County Council,09-Feb-24,51302001431,700.00,NELSON LODGE,CARE ESTABLISHMENT,OPPD - Cost of Care - Huntingdon - Over 65,Hunts OP Team - Care,Residential Care
Cambridgeshire County Council,09-Feb-24,51302001431,700.00,NELSON LODGE,CARE ESTABLISHMENT,OPPD - Cost of Care - Huntingdon - Over 65,Hunts OP Team - Care,Residential Care
Cambridgeshire County Council,09-Feb-24,51302001431,700.00,NELSON LODGE,CARE ESTABLISHMENT,OPPD - Cost of Care - Huntingdon - Over 65,Hunts OP Team - Care,Residential Care
Cambridgeshire County Council,09-Feb-24,51302001431,700.00,NELSON LODGE,CARE ESTABLISHMENT,OPPD - Cost of Care - Huntingdon - Over 65,Hunts OP Team - Care,Residential Care
Cambridgeshire County Council,09-Feb-24,51302001431,700.00,NELSON LODGE,CARE ESTABLISHMENT,OPPD - Cost of Care - Huntingdon - Over 65,Hunts OP Team - Care,Residential Care
Cambridgeshire County Council,09-Feb-24,51302001431,700.00,NELSON LODGE,CARE ESTABLISHMENT,OPPD - Cost of Care - Huntingdon - Over 65,Hunts OP Team - Care,Residential Care
Cambridgeshire County Council,09-Feb-24,51302001431,700.00,NELSON LODGE,CARE ESTABLISHMENT,OPPD - Cost of Care - Huntingdon - Over 65,Hunts OP Team - Care,Residential Care
Cambridgeshire County Council,09-Feb-24,51302001431,700.00,NELSON LODGE,CARE ESTABLISHMENT,OPPD - Cost of Care - Huntingdon - Over 65,Hunts OP Team - Care,Residential Care
Cambridgeshire County Council,09-Feb-24,51302001431,700.00,NELSON LODGE,CARE ESTABLISHMENT,OPPD - Cost of Care - Huntingdon - Over 65,Hunts OP Team - Care,Residential Care
Cambridgeshire County Council,09-Feb-24,51302001431,700.00,NELSON LODGE,CARE ESTABLISHMENT,OPPD - Cost of Care - Huntingdon - Over 65,Hunts OP Team - Care,Residential Care
Cambridgeshire County Council,09-Feb-24,51302001431,700.00,NELSON LODGE,CARE ESTABLISHMENT,OPPD - Cost of Care - Huntingdon - Over 65,Hunts OP Team - Care,Residential Care
Cambridgeshire County Council,09-Feb-24,51302001431,700.00,NELSON LODGE,CARE ESTABLISHMENT,OPPD - Cost of Care - Huntingdon - Over 65,Hunts OP Team - Care,Residential Care
Cambridgeshire County Council,09-Feb-24,51302001431,700.00,NELSON LODGE,CARE ESTABLISHMENT,OPPD - Cost of Care - Huntingdon - Over 65,Hunts OP Team - Care,Residential Care
Cambridgeshire County Council,09-Feb-24,51302001431,700.00,NELSON LODGE,CARE ESTABLISHMENT,OPPD - Cost of Care - Huntingdon - Over 65,Hunts OP Team - Care,Residential Care
Cambridgeshire County Council,09-Feb-24,51302001431,700.00,NELSON LODGE,CARE ESTABLISHMENT,OPPD - Cost of Care - Huntingdon - Over 65,Hunts OP Team - Care,Residential Care
Cambridgeshire County Council,09-Feb-24,51302001431,700.00,NELSON LODGE,CARE ESTABLISHMENT,OPPD - Cost of Care - Huntingdon - Over 65,Hunts OP Team - Care,Residential Care
Cambridgeshire County Council,09-Feb-24,51302001431,700.00,NELSON LODGE,CARE ESTABLISHMENT,OPPD - Cost of Care - Huntingdon - Over 65,Hunts OP Team - Care,Residential Care
Cambridgeshire County Council,09-Feb-24,51302001431,700.00,NELSON LODGE,CARE ESTABLISHMENT,OPPD - Cost of Care - Huntingdon - Over 65,Hunts OP Team - Care,Residential Care
Cambridgeshire County Council,09-Feb-24,51302001431,700.00,NELSON LODGE,CARE ESTABLISHMENT,OPPD - Cost of Care - Huntingdon - Over 65,Hunts OP Team - Care,Residential Care
Cambridgeshire County Council,09-Feb-24,51302001431,700.00,NELSON LODGE,CARE ESTABLISHMENT,OPPD - Cost of Care - Huntingdon - Over 65,Hunts OP Team - Care,Residential Care
Cambridgeshire County Council,09-Feb-24,51302001431,700.00,NELSON LODGE,CARE ESTABLISHMENT,OPPD - Cost of Care - Huntingdon - Over 65,Hunts OP Team - Care,Residential Care
Cambridgeshire County Council,09-Feb-24,51302001432,700.00,NELSON LODGE,CARE ESTABLISHMENT,OPPD - Cost of Care - Huntingdon - Over 65,Hunts OP Team - Care,Residential Care
Cambridgeshire County Council,09-Feb-24,51302001432,700.00,NELSON LODGE,CARE ESTABLISHMENT,OPPD - Cost of Care - Huntingdon - Over 65,Hunts OP Team - Care,Residential Care
Cambridgeshire County Council,09-Feb-24,51302001432,700.00,NELSON LODGE,CARE ESTABLISHMENT,OPPD - Cost of Care - Huntingdon - Over 65,Hunts OP Team - Care,Residential Care
Cambridgeshire County Council,09-Feb-24,51302001433,621.00,NELSON LODGE,CARE ESTABLISHMENT,OPPD - Cost of Care - Huntingdon - Over 65,Hunts OP Team - Care,Residential Care
Cambridgeshire County Council,09-Feb-24,51302001433,621.00,NELSON LODGE,CARE ESTABLISHMENT,OPPD - Cost of Care - Huntingdon - Over 65,Hunts OP Team - Care,Residential Care
Cambridgeshire County Council,09-Feb-24,51302001433,621.00,NELSON LODGE,CARE ESTABLISHMENT,OPPD - Cost of Care - Huntingdon - Over 65,Hunts OP Team - Care,Residential Care
Cambridgeshire County Council,09-Feb-24,51302001433,621.00,NELSON LODGE,CARE ESTABLISHMENT,OPPD - Cost of Care - Huntingdon - Over 65,Hunts OP Team - Care,Residential Care
Cambridgeshire County Council,09-Feb-24,51302001433,621.00,NELSON LODGE,CARE ESTABLISHMENT,OPPD - Cost of Care - Huntingdon - Over 65,Hunts OP Team - Care,Residential Care
Cambridgeshire County Council,09-Feb-24,51302001433,621.00,NELSON LODGE,CARE ESTABLISHMENT,OPPD - Cost of Care - Huntingdon - Over 65,Hunts OP Team - Care,Residential Care
Cambridgeshire County Council,09-Feb-24,51302001433,621.00,NELSON LODGE,CARE ESTABLISHMENT,OPPD - Cost of Care - Huntingdon - Over 65,Hunts OP Team - Care,Residential Care
Cambridgeshire County Council,09-Feb-24,51302001433,621.00,NELSON LODGE,CARE ESTABLISHMENT,OPPD - Cost of Care - Huntingdon - Over 65,Hunts OP Team - Care,Residential Care
Cambridgeshire County Council,09-Feb-24,51302001433,621.00,NELSON LODGE,CARE ESTABLISHMENT,OPPD - Cost of Care - Huntingdon - Over 65,Hunts OP Team - Care,Residential Care
Cambridgeshire County Council,09-Feb-24,51302001433,621.00,NELSON LODGE,CARE ESTABLISHMENT,OPPD - Cost of Care - Huntingdon - Over 65,Hunts OP Team - Care,Residential Care
Cambridgeshire County Council,09-Feb-24,51302001433,621.00,NELSON LODGE,CARE ESTABLISHMENT,OPPD - Cost of Care - Huntingdon - Over 65,Hunts OP Team - Care,Residential Care
Cambridgeshire County Council,09-Feb-24,51302001433,621.00,NELSON LODGE,CARE ESTABLISHMENT,OPPD - Cost of Care - Huntingdon - Over 65,Hunts OP Team - Care,Residential Care
Cambridgeshire County Council,09-Feb-24,51302001433,621.00,NELSON LODGE,CARE ESTABLISHMENT,OPPD - Cost of Care - Huntingdon - Over 65,Hunts OP Team - Care,Residential Care
Cambridgeshire County Council,09-Feb-24,51302001433,621.00,NELSON LODGE,CARE ESTABLISHMENT,OPPD - Cost of Care - Huntingdon - Over 65,Hunts OP Team - Care,Residential Care
Cambridgeshire County Council,09-Feb-24,51302001433,621.00,NELSON LODGE,CARE ESTABLISHMENT,OPPD - Cost of Care - Huntingdon - Over 65,Hunts OP Team - Care,Residential Care
Cambridgeshire County Council,09-Feb-24,51302001433,621.00,NELSON LODGE,CARE ESTABLISHMENT,OPPD - Cost of Care - Huntingdon - Over 65,Hunts OP Team - Care,Residential Care
Cambridgeshire County Council,09-Feb-24,51302001433,621.00,NELSON LODGE,CARE ESTABLISHMENT,OPPD - Cost of Care - Huntingdon - Over 65,Hunts OP Team - Care,Residential Care
Cambridgeshire County Council,09-Feb-24,51302001433,621.00,NELSON LODGE,CARE ESTABLISHMENT,OPPD - Cost of Care - Huntingdon - Over 65,Hunts OP Team - Care,Residential Care
Cambridgeshire County Council,09-Feb-24,51302001433,621.00,NELSON LODGE,CARE ESTABLISHMENT,OPPD - Cost of Care - Huntingdon - Over 65,Hunts OP Team - Care,Residential Care
Cambridgeshire County Council,09-Feb-24,51302001433,621.00,NELSON LODGE,CARE ESTABLISHMENT,OPPD - Cost of Care - Huntingdon - Over 65,Hunts OP Team - Care,Residential Care
Cambridgeshire County Council,09-Feb-24,51302001433,621.00,NELSON LODGE,CARE ESTABLISHMENT,OPPD - Cost of Care - Huntingdon - Over 65,Hunts OP Team - Care,Residential Care
Cambridgeshire County Council,09-Feb-24,51302001433,621.00,NELSON LODGE,CARE ESTABLISHMENT,OPPD - Cost of Care - Huntingdon - Over 65,Hunts OP Team - Care,Residential Care
Cambridgeshire County Council,09-Feb-24,51302001433,621.00,NELSON LODGE,CARE ESTABLISHMENT,OPPD - Cost of Care - Huntingdon - Over 65,Hunts OP Team - Care,Residential Care
Cambridgeshire County Council,09-Feb-24,51302001433,621.00,NELSON LODGE,CARE ESTABLISHMENT,OPPD - Cost of Care - Huntingdon - Over 65,Hunts OP Team - Care,Residential Care
Cambridgeshire County Council,09-Feb-24,51302001433,621.00,NELSON LODGE,CARE ESTABLISHMENT,OPPD - Cost of Care - Huntingdon - Over 65,Hunts OP Team - Care,Residential Care
Cambridgeshire County Council,09-Feb-24,51302001433,621.00,NELSON LODGE,CARE ESTABLISHMENT,OPPD - Cost of Care - Huntingdon - Over 65,Hunts OP Team - Care,Residential Care
Cambridgeshire County Council,09-Feb-24,51302001433,621.00,NELSON LODGE,CARE ESTABLISHMENT,OPPD - Cost of Care - Huntingdon - Over 65,Hunts OP Team - Care,Residential Care
Cambridgeshire County Council,09-Feb-24,51302001433,621.00,NELSON LODGE,CARE ESTABLISHMENT,OPPD - Cost of Care - Huntingdon - Over 65,Hunts OP Team - Care,Residential Care
Cambridgeshire County Council,09-Feb-24,51302001433,621.00,NELSON LODGE,CARE ESTABLISHMENT,OPPD - Cost of Care - Huntingdon - Over 65,Hunts OP Team - Care,Residential Care
Cambridgeshire County Council,09-Feb-24,51302001433,621.00,NELSON LODGE,CARE ESTABLISHMENT,OPPD - Cost of Care - Huntingdon - Over 65,Hunts OP Team - Care,Residential Care
Cambridgeshire County Council,09-Feb-24,51302001433,621.00,NELSON LODGE,CARE ESTABLISHMENT,OPPD - Cost of Care - Huntingdon - Over 65,Hunts OP Team - Care,Residential Care
Cambridgeshire County Council,09-Feb-24,51302001433,621.00,NELSON LODGE,CARE ESTABLISHMENT,OPPD - Cost of Care - Huntingdon - Over 65,Hunts OP Team - Care,Residential Care
Cambridgeshire County Council,09-Feb-24,51302001433,621.00,NELSON LODGE,CARE ESTABLISHMENT,OPPD - Cost of Care - Huntingdon - Over 65,Hunts OP Team - Care,Residential Care
Cambridgeshire County Council,09-Feb-24,51302001433,621.00,NELSON LODGE,CARE ESTABLISHMENT,OPPD - Cost of Care - Huntingdon - Over 65,Hunts OP Team - Care,Residential Care
Cambridgeshire County Council,09-Feb-24,51302001433,621.00,NELSON LODGE,CARE ESTABLISHMENT,OPPD - Cost of Care - Huntingdon - Over 65,Hunts OP Team - Care,Residential Care
Cambridgeshire County Council,09-Feb-24,51302001433,621.00,NELSON LODGE,CARE ESTABLISHMENT,OPPD - Cost of Care - Huntingdon - Over 65,Hunts OP Team - Care,Residential Care
Cambridgeshire County Council,09-Feb-24,51302001433,621.00,NELSON LODGE,CARE ESTABLISHMENT,OPPD - Cost of Care - Huntingdon - Over 65,Hunts OP Team - Care,Residential Care
Cambridgeshire County Council,09-Feb-24,51302001433,621.00,NELSON LODGE,CARE ESTABLISHMENT,OPPD - Cost of Care - Huntingdon - Over 65,Hunts OP Team - Care,Residential Care
Cambridgeshire County Council,09-Feb-24,51302001433,621.00,NELSON LODGE,CARE ESTABLISHMENT,OPPD - Cost of Care - Huntingdon - Over 65,Hunts OP Team - Care,Residential Care
Cambridgeshire County Council,09-Feb-24,51302001433,621.00,NELSON LODGE,CARE ESTABLISHMENT,OPPD - Cost of Care - Huntingdon - Over 65,Hunts OP Team - Care,Residential Care
Cambridgeshire County Council,09-Feb-24,51302001433,621.00,NELSON LODGE,CARE ESTABLISHMENT,OPPD - Cost of Care - Huntingdon - Over 65,Hunts OP Team - Care,Residential Care
Cambridgeshire County Council,09-Feb-24,51302001433,621.00,NELSON LODGE,CARE ESTABLISHMENT,OPPD - Cost of Care - Huntingdon - Over 65,Hunts OP Team - Care,Residential Care
Cambridgeshire County Council,09-Feb-24,51302001433,621.00,NELSON LODGE,CARE ESTABLISHMENT,OPPD - Cost of Care - Huntingdon - Over 65,Hunts OP Team - Care,Residential Care
Cambridgeshire County Council,09-Feb-24,51302001433,621.00,NELSON LODGE,CARE ESTABLISHMENT,OPPD - Cost of Care - Huntingdon - Over 65,Hunts OP Team - Care,Residential Care
Cambridgeshire County Council,09-Feb-24,51302001433,621.00,NELSON LODGE,CARE ESTABLISHMENT,OPPD - Cost of Care - Huntingdon - Over 65,Hunts OP Team - Care,Residential Care
Cambridgeshire County Council,09-Feb-24,51302001433,621.00,NELSON LODGE,CARE ESTABLISHMENT,OPPD - Cost of Care - Huntingdon - Over 65,Hunts OP Team - Care,Residential Care
Cambridgeshire County Council,09-Feb-24,51302001433,621.00,NELSON LODGE,CARE ESTABLISHMENT,OPPD - Cost of Care - Huntingdon - Over 65,Hunts OP Team - Care,Residential Care
Cambridgeshire County Council,09-Feb-24,51302001433,621.00,NELSON LODGE,CARE ESTABLISHMENT,OPPD - Cost of Care - Huntingdon - Over 65,Hunts OP Team - Care,Residential Care
Cambridgeshire County Council,09-Feb-24,51302001433,621.00,NELSON LODGE,CARE ESTABLISHMENT,OPPD - Cost of Care - Huntingdon - Over 65,Hunts OP Team - Care,Residential Care
Cambridgeshire County Council,09-Feb-24,51302001433,621.00,NELSON LODGE,CARE ESTABLISHMENT,OPPD - Cost of Care - Huntingdon - Over 65,Hunts OP Team - Care,Residential Care
Cambridgeshire County Council,09-Feb-24,51302001433,621.00,NELSON LODGE,CARE ESTABLISHMENT,OPPD - Cost of Care - Huntingdon - Over 65,Hunts OP Team - Care,Residential Care
Cambridgeshire County Council,09-Feb-24,51302001433,621.00,NELSON LODGE,CARE ESTABLISHMENT,OPPD - Cost of Care - Huntingdon - Over 65,Hunts OP Team - Care,Residential Care
Cambridgeshire County Council,09-Feb-24,51302001433,621.00,NELSON LODGE,CARE ESTABLISHMENT,OPPD - Cost of Care - Huntingdon - Over 65,Hunts OP Team - Care,Residential Care
Cambridgeshire County Council,09-Feb-24,51302001433,621.00,NELSON LODGE,CARE ESTABLISHMENT,OPPD - Cost of Care - Huntingdon - Over 65,Hunts OP Team - Care,Residential Care
Cambridgeshire County Council,09-Feb-24,51302001433,621.00,NELSON LODGE,CARE ESTABLISHMENT,OPPD - Cost of Care - Huntingdon - Over 65,Hunts OP Team - Care,Residential Care
Cambridgeshire County Council,09-Feb-24,51302001433,621.00,NELSON LODGE,CARE ESTABLISHMENT,OPPD - Cost of Care - Huntingdon - Over 65,Hunts OP Team - Care,Residential Care
Cambridgeshire County Council,09-Feb-24,51302001433,621.00,NELSON LODGE,CARE ESTABLISHMENT,OPPD - Cost of Care - Huntingdon - Over 65,Hunts OP Team - Care,Residential Care
Cambridgeshire County Council,09-Feb-24,51302001433,621.00,NELSON LODGE,CARE ESTABLISHMENT,OPPD - Cost of Care - Huntingdon - Over 65,Hunts OP Team - Care,Residential Care
Cambridgeshire County Council,09-Feb-24,51302001433,621.00,NELSON LODGE,CARE ESTABLISHMENT,OPPD - Cost of Care - Huntingdon - Over 65,Hunts OP Team - Care,Residential Care
Cambridgeshire County Council,09-Feb-24,51302001434,650.00,NELSON LODGE,CARE ESTABLISHMENT,OPPD - Cost of Care - Huntingdon - Over 65,Hunts OP Team - Care,Residential Care
Cambridgeshire County Council,09-Feb-24,51302001434,650.00,NELSON LODGE,CARE ESTABLISHMENT,OPPD - Cost of Care - Huntingdon - Over 65,Hunts OP Team - Care,Residential Care
Cambridgeshire County Council,09-Feb-24,51302001434,650.00,NELSON LODGE,CARE ESTABLISHMENT,OPPD - Cost of Care - Huntingdon - Over 65,Hunts OP Team - Care,Residential Care
Cambridgeshire County Council,09-Feb-24,51302001434,650.00,NELSON LODGE,CARE ESTABLISHMENT,OPPD - Cost of Care - Huntingdon - Over 65,Hunts OP Team - Care,Residential Care
Cambridgeshire County Council,09-Feb-24,51302001434,650.00,NELSON LODGE,CARE ESTABLISHMENT,OPPD - Cost of Care - Huntingdon - Over 65,Hunts OP Team - Care,Residential Care
Cambridgeshire County Council,09-Feb-24,51302001434,650.00,NELSON LODGE,CARE ESTABLISHMENT,OPPD - Cost of Care - Huntingdon - Over 65,Hunts OP Team - Care,Residential Care
Cambridgeshire County Council,09-Feb-24,51302001434,650.00,NELSON LODGE,CARE ESTABLISHMENT,OPPD - Cost of Care - Huntingdon - Over 65,Hunts OP Team - Care,Residential Care
Cambridgeshire County Council,09-Feb-24,51302001434,650.00,NELSON LODGE,CARE ESTABLISHMENT,OPPD - Cost of Care - Huntingdon - Over 65,Hunts OP Team - Care,Residential Care
Cambridgeshire County Council,09-Feb-24,51302001434,650.00,NELSON LODGE,CARE ESTABLISHMENT,OPPD - Cost of Care - Huntingdon - Over 65,Hunts OP Team - Care,Residential Care
Cambridgeshire County Council,09-Feb-24,51302001434,650.00,NELSON LODGE,CARE ESTABLISHMENT,OPPD - Cost of Care - Huntingdon - Over 65,Hunts OP Team - Care,Residential Care
Cambridgeshire County Council,09-Feb-24,51302001434,650.00,NELSON LODGE,CARE ESTABLISHMENT,OPPD - Cost of Care - Huntingdon - Over 65,Hunts OP Team - Care,Residential Care
Cambridgeshire County Council,09-Feb-24,51302001434,650.00,NELSON LODGE,CARE ESTABLISHMENT,OPPD - Cost of Care - Huntingdon - Over 65,Hunts OP Team - Care,Residential Care
Cambridgeshire County Council,09-Feb-24,51302001434,650.00,NELSON LODGE,CARE ESTABLISHMENT,OPPD - Cost of Care - Huntingdon - Over 65,Hunts OP Team - Care,Residential Care
Cambridgeshire County Council,09-Feb-24,51302001434,650.00,NELSON LODGE,CARE ESTABLISHMENT,OPPD - Cost of Care - Huntingdon - Over 65,Hunts OP Team - Care,Residential Care
Cambridgeshire County Council,09-Feb-24,51302001434,650.00,NELSON LODGE,CARE ESTABLISHMENT,OPPD - Cost of Care - Huntingdon - Over 65,Hunts OP Team - Care,Residential Care
Cambridgeshire County Council,09-Feb-24,51302001434,650.00,NELSON LODGE,CARE ESTABLISHMENT,OPPD - Cost of Care - Huntingdon - Over 65,Hunts OP Team - Care,Residential Care
Cambridgeshire County Council,09-Feb-24,51302001434,650.00,NELSON LODGE,CARE ESTABLISHMENT,OPPD - Cost of Care - Huntingdon - Over 65,Hunts OP Team - Care,Residential Care
Cambridgeshire County Council,09-Feb-24,51302001434,650.00,NELSON LODGE,CARE ESTABLISHMENT,OPPD - Cost of Care - Huntingdon - Over 65,Hunts OP Team - Care,Residential Care
Cambridgeshire County Council,09-Feb-24,51302001434,650.00,NELSON LODGE,CARE ESTABLISHMENT,OPPD - Cost of Care - Huntingdon - Over 65,Hunts OP Team - Care,Residential Care
Cambridgeshire County Council,09-Feb-24,51302001434,650.00,NELSON LODGE,CARE ESTABLISHMENT,OPPD - Cost of Care - Huntingdon - Over 65,Hunts OP Team - Care,Residential Care
Cambridgeshire County Council,09-Feb-24,51302001434,650.00,NELSON LODGE,CARE ESTABLISHMENT,OPPD - Cost of Care - Huntingdon - Over 65,Hunts OP Team - Care,Residential Care
Cambridgeshire County Council,09-Feb-24,51302001434,650.00,NELSON LODGE,CARE ESTABLISHMENT,OPPD - Cost of Care - Huntingdon - Over 65,Hunts OP Team - Care,Residential Care
Cambridgeshire County Council,09-Feb-24,51302001434,650.00,NELSON LODGE,CARE ESTABLISHMENT,OPPD - Cost of Care - Huntingdon - Over 65,Hunts OP Team - Care,Residential Care
Cambridgeshire County Council,09-Feb-24,51302001434,650.00,NELSON LODGE,CARE ESTABLISHMENT,OPPD - Cost of Care - Huntingdon - Over 65,Hunts OP Team - Care,Residential Care
Cambridgeshire County Council,09-Feb-24,51302001434,650.00,NELSON LODGE,CARE ESTABLISHMENT,OPPD - Cost of Care - Huntingdon - Over 65,Hunts OP Team - Care,Residential Care
Cambridgeshire County Council,09-Feb-24,51302001434,650.00,NELSON LODGE,CARE ESTABLISHMENT,OPPD - Cost of Care - Huntingdon - Over 65,Hunts OP Team - Care,Residential Care
Cambridgeshire County Council,09-Feb-24,51302001434,650.00,NELSON LODGE,CARE ESTABLISHMENT,OPPD - Cost of Care - Huntingdon - Over 65,Hunts OP Team - Care,Residential Care
Cambridgeshire County Council,09-Feb-24,51302001434,650.00,NELSON LODGE,CARE ESTABLISHMENT,OPPD - Cost of Care - Huntingdon - Over 65,Hunts OP Team - Care,Residential Care
Cambridgeshire County Council,09-Feb-24,51302001434,650.00,NELSON LODGE,CARE ESTABLISHMENT,OPPD - Cost of Care - Huntingdon - Over 65,Hunts OP Team - Care,Residential Care
Cambridgeshire County Council,09-Feb-24,51302001434,650.00,NELSON LODGE,CARE ESTABLISHMENT,OPPD - Cost of Care - Huntingdon - Over 65,Hunts OP Team - Care,Residential Care
Cambridgeshire County Council,09-Feb-24,51302001434,650.00,NELSON LODGE,CARE ESTABLISHMENT,OPPD - Cost of Care - Huntingdon - Over 65,Hunts OP Team - Care,Residential Care
Cambridgeshire County Council,09-Feb-24,51302001434,650.00,NELSON LODGE,CARE ESTABLISHMENT,OPPD - Cost of Care - Huntingdon - Over 65,Hunts OP Team - Care,Residential Care
Cambridgeshire County Council,09-Feb-24,51302001434,650.00,NELSON LODGE,CARE ESTABLISHMENT,OPPD - Cost of Care - Huntingdon - Over 65,Hunts OP Team - Care,Residential Care
Cambridgeshire County Council,09-Feb-24,51302001434,650.00,NELSON LODGE,CARE ESTABLISHMENT,OPPD - Cost of Care - Huntingdon - Over 65,Hunts OP Team - Care,Residential Care
Cambridgeshire County Council,09-Feb-24,51302001434,650.00,NELSON LODGE,CARE ESTABLISHMENT,OPPD - Cost of Care - Huntingdon - Over 65,Hunts OP Team - Care,Residential Care
Cambridgeshire County Council,09-Feb-24,51302001434,650.00,NELSON LODGE,CARE ESTABLISHMENT,OPPD - Cost of Care - Huntingdon - Over 65,Hunts OP Team - Care,Residential Care
Cambridgeshire County Council,09-Feb-24,51302001434,650.00,NELSON LODGE,CARE ESTABLISHMENT,OPPD - Cost of Care - Huntingdon - Over 65,Hunts OP Team - Care,Residential Care
Cambridgeshire County Council,09-Feb-24,51302001434,650.00,NELSON LODGE,CARE ESTABLISHMENT,OPPD - Cost of Care - Huntingdon - Over 65,Hunts OP Team - Care,Residential Care
Cambridgeshire County Council,09-Feb-24,51302001434,650.00,NELSON LODGE,CARE ESTABLISHMENT,OPPD - Cost of Care - Huntingdon - Over 65,Hunts OP Team - Care,Residential Care
Cambridgeshire County Council,09-Feb-24,51302001434,650.00,NELSON LODGE,CARE ESTABLISHMENT,OPPD - Cost of Care - Huntingdon - Over 65,Hunts OP Team - Care,Residential Care
Cambridgeshire County Council,09-Feb-24,51302001434,650.00,NELSON LODGE,CARE ESTABLISHMENT,OPPD - Cost of Care - Huntingdon - Over 65,Hunts OP Team - Care,Residential Care
Cambridgeshire County Council,09-Feb-24,51302001434,650.00,NELSON LODGE,CARE ESTABLISHMENT,OPPD - Cost of Care - Huntingdon - Over 65,Hunts OP Team - Care,Residential Care
Cambridgeshire County Council,09-Feb-24,51302001434,650.00,NELSON LODGE,CARE ESTABLISHMENT,OPPD - Cost of Care - Huntingdon - Over 65,Hunts OP Team - Care,Residential Care
Cambridgeshire County Council,09-Feb-24,51302001434,650.00,NELSON LODGE,CARE ESTABLISHMENT,OPPD - Cost of Care - Huntingdon - Over 65,Hunts OP Team - Care,Residential Care
Cambridgeshire County Council,09-Feb-24,51302001434,650.00,NELSON LODGE,CARE ESTABLISHMENT,OPPD - Cost of Care - Huntingdon - Over 65,Hunts OP Team - Care,Residential Care
Cambridgeshire County Council,09-Feb-24,51302001434,650.00,NELSON LODGE,CARE ESTABLISHMENT,OPPD - Cost of Care - Huntingdon - Over 65,Hunts OP Team - Care,Residential Care
Cambridgeshire County Council,09-Feb-24,51302001434,650.00,NELSON LODGE,CARE ESTABLISHMENT,OPPD - Cost of Care - Huntingdon - Over 65,Hunts OP Team - Care,Residential Care
Cambridgeshire County Council,09-Feb-24,51302001434,650.00,NELSON LODGE,CARE ESTABLISHMENT,OPPD - Cost of Care - Huntingdon - Over 65,Hunts OP Team - Care,Residential Care
Cambridgeshire County Council,09-Feb-24,51302001434,650.00,NELSON LODGE,CARE ESTABLISHMENT,OPPD - Cost of Care - Huntingdon - Over 65,Hunts OP Team - Care,Residential Care
Cambridgeshire County Council,09-Feb-24,51302001434,650.00,NELSON LODGE,CARE ESTABLISHMENT,OPPD - Cost of Care - Huntingdon - Over 65,Hunts OP Team - Care,Residential Care
Cambridgeshire County Council,09-Feb-24,51302001434,650.00,NELSON LODGE,CARE ESTABLISHMENT,OPPD - Cost of Care - Huntingdon - Over 65,Hunts OP Team - Care,Residential Care
Cambridgeshire County Council,09-Feb-24,51302001434,650.00,NELSON LODGE,CARE ESTABLISHMENT,OPPD - Cost of Care - Huntingdon - Over 65,Hunts OP Team - Care,Residential Care
Cambridgeshire County Council,09-Feb-24,51302001434,650.00,NELSON LODGE,CARE ESTABLISHMENT,OPPD - Cost of Care - Huntingdon - Over 65,Hunts OP Team - Care,Residential Care
Cambridgeshire County Council,09-Feb-24,51302001434,650.00,NELSON LODGE,CARE ESTABLISHMENT,OPPD - Cost of Care - Huntingdon - Over 65,Hunts OP Team - Care,Residential Care
Cambridgeshire County Council,09-Feb-24,51302001434,650.00,NELSON LODGE,CARE ESTABLISHMENT,OPPD - Cost of Care - Huntingdon - Over 65,Hunts OP Team - Care,Residential Care
Cambridgeshire County Council,09-Feb-24,51302001434,650.00,NELSON LODGE,CARE ESTABLISHMENT,OPPD - Cost of Care - Huntingdon - Over 65,Hunts OP Team - Care,Residential Care
Cambridgeshire County Council,09-Feb-24,51302001434,650.00,NELSON LODGE,CARE ESTABLISHMENT,OPPD - Cost of Care - Huntingdon - Over 65,Hunts OP Team - Care,Residential Care
Cambridgeshire County Council,09-Feb-24,51302001434,650.00,NELSON LODGE,CARE ESTABLISHMENT,OPPD - Cost of Care - Huntingdon - Over 65,Hunts OP Team - Care,Residential Care
Cambridgeshire County Council,09-Feb-24,51302001434,650.00,NELSON LODGE,CARE ESTABLISHMENT,OPPD - Cost of Care - Huntingdon - Over 65,Hunts OP Team - Care,Residential Care
Cambridgeshire County Council,09-Feb-24,51302001434,650.00,NELSON LODGE,CARE ESTABLISHMENT,OPPD - Cost of Care - Huntingdon - Over 65,Hunts OP Team - Care,Residential Care
Cambridgeshire County Council,09-Feb-24,51302001434,650.00,NELSON LODGE,CARE ESTABLISHMENT,OPPD - Cost of Care - Huntingdon - Over 65,Hunts OP Team - Care,Residential Care
Cambridgeshire County Council,09-Feb-24,51302001434,650.00,NELSON LODGE,CARE ESTABLISHMENT,OPPD - Cost of Care - Huntingdon - Over 65,Hunts OP Team - Care,Residential Care
Cambridgeshire County Council,09-Feb-24,51302001434,650.00,NELSON LODGE,CARE ESTABLISHMENT,OPPD - Cost of Care - Huntingdon - Over 65,Hunts OP Team - Care,Residential Care
Cambridgeshire County Council,09-Feb-24,51302001434,650.00,NELSON LODGE,CARE ESTABLISHMENT,OPPD - Cost of Care - Huntingdon - Over 65,Hunts OP Team - Care,Residential Care
Cambridgeshire County Council,09-Feb-24,51302001434,650.00,NELSON LODGE,CARE ESTABLISHMENT,OPPD - Cost of Care - Huntingdon - Over 65,Hunts OP Team - Care,Residential Care
Cambridgeshire County Council,09-Feb-24,51302001434,650.00,NELSON LODGE,CARE ESTABLISHMENT,OPPD - Cost of Care - Huntingdon - Over 65,Hunts OP Team - Care,Residential Care
Cambridgeshire County Council,09-Feb-24,51302001434,650.00,NELSON LODGE,CARE ESTABLISHMENT,OPPD - Cost of Care - Huntingdon - Over 65,Hunts OP Team - Care,Residential Care
Cambridgeshire County Council,09-Feb-24,51302001436,-621.00,NELSON LODGE,CARE ESTABLISHMENT,OPPD - Cost of Care - Huntingdon - Over 65,Hunts OP Team - Care,Residential Care
Cambridgeshire County Council,09-Feb-24,51302001436,-621.00,NELSON LODGE,CARE ESTABLISHMENT,OPPD - Cost of Care - Huntingdon - Over 65,Hunts OP Team - Care,Residential Care
Cambridgeshire County Council,09-Feb-24,51302001436,-621.00,NELSON LODGE,CARE ESTABLISHMENT,OPPD - Cost of Care - Huntingdon - Over 65,Hunts OP Team - Care,Residential Care
Cambridgeshire County Council,09-Feb-24,51302001436,-621.00,NELSON LODGE,CARE ESTABLISHMENT,OPPD - Cost of Care - Huntingdon - Over 65,Hunts OP Team - Care,Residential Care
Cambridgeshire County Council,09-Feb-24,51302001436,-621.00,NELSON LODGE,CARE ESTABLISHMENT,OPPD - Cost of Care - Huntingdon - Over 65,Hunts OP Team - Care,Residential Care
Cambridgeshire County Council,09-Feb-24,51302001436,-621.00,NELSON LODGE,CARE ESTABLISHMENT,OPPD - Cost of Care - Huntingdon - Over 65,Hunts OP Team - Care,Residential Care
Cambridgeshire County Council,09-Feb-24,51302001436,-621.00,NELSON LODGE,CARE ESTABLISHMENT,OPPD - Cost of Care - Huntingdon - Over 65,Hunts OP Team - Care,Residential Care
Cambridgeshire County Council,09-Feb-24,51302001436,-621.00,NELSON LODGE,CARE ESTABLISHMENT,OPPD - Cost of Care - Huntingdon - Over 65,Hunts OP Team - Care,Residential Care
Cambridgeshire County Council,09-Feb-24,51302001436,-621.00,NELSON LODGE,CARE ESTABLISHMENT,OPPD - Cost of Care - Huntingdon - Over 65,Hunts OP Team - Care,Residential Care
Cambridgeshire County Council,09-Feb-24,51302001436,-621.00,NELSON LODGE,CARE ESTABLISHMENT,OPPD - Cost of Care - Huntingdon - Over 65,Hunts OP Team - Care,Residential Care
Cambridgeshire County Council,09-Feb-24,51302001436,-621.00,NELSON LODGE,CARE ESTABLISHMENT,OPPD - Cost of Care - Huntingdon - Over 65,Hunts OP Team - Care,Residential Care
Cambridgeshire County Council,09-Feb-24,51302001436,-621.00,NELSON LODGE,CARE ESTABLISHMENT,OPPD - Cost of Care - Huntingdon - Over 65,Hunts OP Team - Care,Residential Care
Cambridgeshire County Council,09-Feb-24,51302001436,-621.00,NELSON LODGE,CARE ESTABLISHMENT,OPPD - Cost of Care - Huntingdon - Over 65,Hunts OP Team - Care,Residential Care
Cambridgeshire County Council,09-Feb-24,51302001436,-621.00,NELSON LODGE,CARE ESTABLISHMENT,OPPD - Cost of Care - Huntingdon - Over 65,Hunts OP Team - Care,Residential Care
Cambridgeshire County Council,09-Feb-24,51302001436,-621.00,NELSON LODGE,CARE ESTABLISHMENT,OPPD - Cost of Care - Huntingdon - Over 65,Hunts OP Team - Care,Residential Care
Cambridgeshire County Council,09-Feb-24,51302001436,-621.00,NELSON LODGE,CARE ESTABLISHMENT,OPPD - Cost of Care - Huntingdon - Over 65,Hunts OP Team - Care,Residential Care
Cambridgeshire County Council,09-Feb-24,51302001436,-621.00,NELSON LODGE,CARE ESTABLISHMENT,OPPD - Cost of Care - Huntingdon - Over 65,Hunts OP Team - Care,Residential Care
Cambridgeshire County Council,09-Feb-24,51302001436,-621.00,NELSON LODGE,CARE ESTABLISHMENT,OPPD - Cost of Care - Huntingdon - Over 65,Hunts OP Team - Care,Residential Care
Cambridgeshire County Council,09-Feb-24,51302001436,-621.00,NELSON LODGE,CARE ESTABLISHMENT,OPPD - Cost of Care - Huntingdon - Over 65,Hunts OP Team - Care,Residential Care
Cambridgeshire County Council,09-Feb-24,51302001436,-621.00,NELSON LODGE,CARE ESTABLISHMENT,OPPD - Cost of Care - Huntingdon - Over 65,Hunts OP Team - Care,Residential Care
Cambridgeshire County Council,09-Feb-24,51302001436,-621.00,NELSON LODGE,CARE ESTABLISHMENT,OPPD - Cost of Care - Huntingdon - Over 65,Hunts OP Team - Care,Residential Care
Cambridgeshire County Council,09-Feb-24,51302001436,-621.00,NELSON LODGE,CARE ESTABLISHMENT,OPPD - Cost of Care - Huntingdon - Over 65,Hunts OP Team - Care,Residential Care
Cambridgeshire County Council,09-Feb-24,51302001436,-621.00,NELSON LODGE,CARE ESTABLISHMENT,OPPD - Cost of Care - Huntingdon - Over 65,Hunts OP Team - Care,Residential Care
Cambridgeshire County Council,09-Feb-24,51302001436,-621.00,NELSON LODGE,CARE ESTABLISHMENT,OPPD - Cost of Care - Huntingdon - Over 65,Hunts OP Team - Care,Residential Care
Cambridgeshire County Council,09-Feb-24,51302001436,-621.00,NELSON LODGE,CARE ESTABLISHMENT,OPPD - Cost of Care - Huntingdon - Over 65,Hunts OP Team - Care,Residential Care
Cambridgeshire County Council,09-Feb-24,51302001436,-621.00,NELSON LODGE,CARE ESTABLISHMENT,OPPD - Cost of Care - Huntingdon - Over 65,Hunts OP Team - Care,Residential Care
Cambridgeshire County Council,09-Feb-24,51302001436,-621.00,NELSON LODGE,CARE ESTABLISHMENT,OPPD - Cost of Care - Huntingdon - Over 65,Hunts OP Team - Care,Residential Care
Cambridgeshire County Council,09-Feb-24,51302001436,-621.00,NELSON LODGE,CARE ESTABLISHMENT,OPPD - Cost of Care - Huntingdon - Over 65,Hunts OP Team - Care,Residential Care
Cambridgeshire County Council,09-Feb-24,51302001436,-621.00,NELSON LODGE,CARE ESTABLISHMENT,OPPD - Cost of Care - Huntingdon - Over 65,Hunts OP Team - Care,Residential Care
Cambridgeshire County Council,09-Feb-24,51302001436,-621.00,NELSON LODGE,CARE ESTABLISHMENT,OPPD - Cost of Care - Huntingdon - Over 65,Hunts OP Team - Care,Residential Care
Cambridgeshire County Council,09-Feb-24,51302001436,-621.00,NELSON LODGE,CARE ESTABLISHMENT,OPPD - Cost of Care - Huntingdon - Over 65,Hunts OP Team - Care,Residential Care
Cambridgeshire County Council,09-Feb-24,51302001436,-621.00,NELSON LODGE,CARE ESTABLISHMENT,OPPD - Cost of Care - Huntingdon - Over 65,Hunts OP Team - Care,Residential Care
Cambridgeshire County Council,09-Feb-24,51302001436,-621.00,NELSON LODGE,CARE ESTABLISHMENT,OPPD - Cost of Care - Huntingdon - Over 65,Hunts OP Team - Care,Residential Care
Cambridgeshire County Council,09-Feb-24,51302001436,-621.00,NELSON LODGE,CARE ESTABLISHMENT,OPPD - Cost of Care - Huntingdon - Over 65,Hunts OP Team - Care,Residential Care
Cambridgeshire County Council,09-Feb-24,51302001436,-621.00,NELSON LODGE,CARE ESTABLISHMENT,OPPD - Cost of Care - Huntingdon - Over 65,Hunts OP Team - Care,Residential Care
Cambridgeshire County Council,09-Feb-24,51302001436,-621.00,NELSON LODGE,CARE ESTABLISHMENT,OPPD - Cost of Care - Huntingdon - Over 65,Hunts OP Team - Care,Residential Care
Cambridgeshire County Council,09-Feb-24,51302001436,-621.00,NELSON LODGE,CARE ESTABLISHMENT,OPPD - Cost of Care - Huntingdon - Over 65,Hunts OP Team - Care,Residential Care
Cambridgeshire County Council,09-Feb-24,51302001436,-621.00,NELSON LODGE,CARE ESTABLISHMENT,OPPD - Cost of Care - Huntingdon - Over 65,Hunts OP Team - Care,Residential Care
Cambridgeshire County Council,09-Feb-24,51302001436,-621.00,NELSON LODGE,CARE ESTABLISHMENT,OPPD - Cost of Care - Huntingdon - Over 65,Hunts OP Team - Care,Residential Care
Cambridgeshire County Council,09-Feb-24,51302001436,-621.00,NELSON LODGE,CARE ESTABLISHMENT,OPPD - Cost of Care - Huntingdon - Over 65,Hunts OP Team - Care,Residential Care
Cambridgeshire County Council,09-Feb-24,51302001436,-621.00,NELSON LODGE,CARE ESTABLISHMENT,OPPD - Cost of Care - Huntingdon - Over 65,Hunts OP Team - Care,Residential Care
Cambridgeshire County Council,09-Feb-24,51302001436,-621.00,NELSON LODGE,CARE ESTABLISHMENT,OPPD - Cost of Care - Huntingdon - Over 65,Hunts OP Team - Care,Residential Care
Cambridgeshire County Council,09-Feb-24,51302001436,-621.00,NELSON LODGE,CARE ESTABLISHMENT,OPPD - Cost of Care - Huntingdon - Over 65,Hunts OP Team - Care,Residential Care
Cambridgeshire County Council,09-Feb-24,51302001436,-621.00,NELSON LODGE,CARE ESTABLISHMENT,OPPD - Cost of Care - Huntingdon - Over 65,Hunts OP Team - Care,Residential Care
Cambridgeshire County Council,09-Feb-24,51302001436,-621.00,NELSON LODGE,CARE ESTABLISHMENT,OPPD - Cost of Care - Huntingdon - Over 65,Hunts OP Team - Care,Residential Care
Cambridgeshire County Council,09-Feb-24,51302001436,-621.00,NELSON LODGE,CARE ESTABLISHMENT,OPPD - Cost of Care - Huntingdon - Over 65,Hunts OP Team - Care,Residential Care
Cambridgeshire County Council,09-Feb-24,51302001436,-621.00,NELSON LODGE,CARE ESTABLISHMENT,OPPD - Cost of Care - Huntingdon - Over 65,Hunts OP Team - Care,Residential Care
Cambridgeshire County Council,09-Feb-24,51302001436,-621.00,NELSON LODGE,CARE ESTABLISHMENT,OPPD - Cost of Care - Huntingdon - Over 65,Hunts OP Team - Care,Residential Care
Cambridgeshire County Council,09-Feb-24,51302001436,-621.00,NELSON LODGE,CARE ESTABLISHMENT,OPPD - Cost of Care - Huntingdon - Over 65,Hunts OP Team - Care,Residential Care
Cambridgeshire County Council,09-Feb-24,51302001436,-621.00,NELSON LODGE,CARE ESTABLISHMENT,OPPD - Cost of Care - Huntingdon - Over 65,Hunts OP Team - Care,Residential Care
Cambridgeshire County Council,09-Feb-24,51302001436,-621.00,NELSON LODGE,CARE ESTABLISHMENT,OPPD - Cost of Care - Huntingdon - Over 65,Hunts OP Team - Care,Residential Care
Cambridgeshire County Council,09-Feb-24,51302001436,-621.00,NELSON LODGE,CARE ESTABLISHMENT,OPPD - Cost of Care - Huntingdon - Over 65,Hunts OP Team - Care,Residential Care
Cambridgeshire County Council,09-Feb-24,51302001436,-621.00,NELSON LODGE,CARE ESTABLISHMENT,OPPD - Cost of Care - Huntingdon - Over 65,Hunts OP Team - Care,Residential Care
Cambridgeshire County Council,09-Feb-24,51302001436,-621.00,NELSON LODGE,CARE ESTABLISHMENT,OPPD - Cost of Care - Huntingdon - Over 65,Hunts OP Team - Care,Residential Care
Cambridgeshire County Council,09-Feb-24,51302001436,-621.00,NELSON LODGE,CARE ESTABLISHMENT,OPPD - Cost of Care - Huntingdon - Over 65,Hunts OP Team - Care,Residential Care
Cambridgeshire County Council,09-Feb-24,51302001436,-621.00,NELSON LODGE,CARE ESTABLISHMENT,OPPD - Cost of Care - Huntingdon - Over 65,Hunts OP Team - Care,Residential Care
Cambridgeshire County Council,09-Feb-24,51302001436,-621.00,NELSON LODGE,CARE ESTABLISHMENT,OPPD - Cost of Care - Huntingdon - Over 65,Hunts OP Team - Care,Residential Care
Cambridgeshire County Council,09-Feb-24,51302001436,-621.00,NELSON LODGE,CARE ESTABLISHMENT,OPPD - Cost of Care - Huntingdon - Over 65,Hunts OP Team - Care,Residential Care
Cambridgeshire County Council,09-Feb-24,51302001436,-621.00,NELSON LODGE,CARE ESTABLISHMENT,OPPD - Cost of Care - Huntingdon - Over 65,Hunts OP Team - Care,Residential Care
Cambridgeshire County Council,09-Feb-24,51302001556,-700.00,NELSON LODGE,CARE ESTABLISHMENT,OPPD - Cost of Care - City South - Over 65,Older People - City & South - Care,Residential Care
Cambridgeshire County Council,09-Feb-24,51302001556,-700.00,NELSON LODGE,CARE ESTABLISHMENT,OPPD - Cost of Care - City South - Over 65,Older People - City & South - Care,Residential Care
Cambridgeshire County Council,09-Feb-24,51302001556,-700.00,NELSON LODGE,CARE ESTABLISHMENT,OPPD - Cost of Care - City South - Over 65,Older People - City & South - Care,Residential Care
Cambridgeshire County Council,09-Feb-24,51302001560,621.00,NELSON LODGE,CARE ESTABLISHMENT,OPPD - Cost of Care - Huntingdon - Over 65,Hunts OP Team - Care,Residential Care
Cambridgeshire County Council,09-Feb-24,51302001560,621.00,NELSON LODGE,CARE ESTABLISHMENT,OPPD - Cost of Care - Huntingdon - Over 65,Hunts OP Team - Care,Residential Care
Cambridgeshire County Council,09-Feb-24,51302001560,621.00,NELSON LODGE,CARE ESTABLISHMENT,OPPD - Cost of Care - Huntingdon - Over 65,Hunts OP Team - Care,Residential Care
Cambridgeshire County Council,09-Feb-24,51302001560,621.00,NELSON LODGE,CARE ESTABLISHMENT,OPPD - Cost of Care - Huntingdon - Over 65,Hunts OP Team - Care,Residential Care
Cambridgeshire County Council,09-Feb-24,51302001560,621.00,NELSON LODGE,CARE ESTABLISHMENT,OPPD - Cost of Care - Huntingdon - Over 65,Hunts OP Team - Care,Residential Care
Cambridgeshire County Council,09-Feb-24,51302001560,621.00,NELSON LODGE,CARE ESTABLISHMENT,OPPD - Cost of Care - Huntingdon - Over 65,Hunts OP Team - Care,Residential Care
Cambridgeshire County Council,09-Feb-24,51302001560,621.00,NELSON LODGE,CARE ESTABLISHMENT,OPPD - Cost of Care - Huntingdon - Over 65,Hunts OP Team - Care,Residential Care
Cambridgeshire County Council,09-Feb-24,51302001560,621.00,NELSON LODGE,CARE ESTABLISHMENT,OPPD - Cost of Care - Huntingdon - Over 65,Hunts OP Team - Care,Residential Care
Cambridgeshire County Council,09-Feb-24,51302001560,621.00,NELSON LODGE,CARE ESTABLISHMENT,OPPD - Cost of Care - Huntingdon - Over 65,Hunts OP Team - Care,Residential Care
Cambridgeshire County Council,09-Feb-24,51302001560,621.00,NELSON LODGE,CARE ESTABLISHMENT,OPPD - Cost of Care - Huntingdon - Over 65,Hunts OP Team - Care,Residential Care
Cambridgeshire County Council,09-Feb-24,51302001560,621.00,NELSON LODGE,CARE ESTABLISHMENT,OPPD - Cost of Care - Huntingdon - Over 65,Hunts OP Team - Care,Residential Care
Cambridgeshire County Council,09-Feb-24,51302001560,621.00,NELSON LODGE,CARE ESTABLISHMENT,OPPD - Cost of Care - Huntingdon - Over 65,Hunts OP Team - Care,Residential Care
Cambridgeshire County Council,09-Feb-24,51302001560,621.00,NELSON LODGE,CARE ESTABLISHMENT,OPPD - Cost of Care - Huntingdon - Over 65,Hunts OP Team - Care,Residential Care
Cambridgeshire County Council,09-Feb-24,51302001560,621.00,NELSON LODGE,CARE ESTABLISHMENT,OPPD - Cost of Care - Huntingdon - Over 65,Hunts OP Team - Care,Residential Care
Cambridgeshire County Council,09-Feb-24,51302001560,621.00,NELSON LODGE,CARE ESTABLISHMENT,OPPD - Cost of Care - Huntingdon - Over 65,Hunts OP Team - Care,Residential Care
Cambridgeshire County Council,09-Feb-24,51302001560,621.00,NELSON LODGE,CARE ESTABLISHMENT,OPPD - Cost of Care - Huntingdon - Over 65,Hunts OP Team - Care,Residential Care
Cambridgeshire County Council,09-Feb-24,51302001560,621.00,NELSON LODGE,CARE ESTABLISHMENT,OPPD - Cost of Care - Huntingdon - Over 65,Hunts OP Team - Care,Residential Care
Cambridgeshire County Council,09-Feb-24,51302001560,621.00,NELSON LODGE,CARE ESTABLISHMENT,OPPD - Cost of Care - Huntingdon - Over 65,Hunts OP Team - Care,Residential Care
Cambridgeshire County Council,09-Feb-24,51302001560,621.00,NELSON LODGE,CARE ESTABLISHMENT,OPPD - Cost of Care - Huntingdon - Over 65,Hunts OP Team - Care,Residential Care
Cambridgeshire County Council,09-Feb-24,51302001560,621.00,NELSON LODGE,CARE ESTABLISHMENT,OPPD - Cost of Care - Huntingdon - Over 65,Hunts OP Team - Care,Residential Care
Cambridgeshire County Council,09-Feb-24,51302001560,621.00,NELSON LODGE,CARE ESTABLISHMENT,OPPD - Cost of Care - Huntingdon - Over 65,Hunts OP Team - Care,Residential Care
Cambridgeshire County Council,09-Feb-24,51302001560,621.00,NELSON LODGE,CARE ESTABLISHMENT,OPPD - Cost of Care - Huntingdon - Over 65,Hunts OP Team - Care,Residential Care
Cambridgeshire County Council,09-Feb-24,51302001560,621.00,NELSON LODGE,CARE ESTABLISHMENT,OPPD - Cost of Care - Huntingdon - Over 65,Hunts OP Team - Care,Residential Care
Cambridgeshire County Council,09-Feb-24,51302001560,621.00,NELSON LODGE,CARE ESTABLISHMENT,OPPD - Cost of Care - Huntingdon - Over 65,Hunts OP Team - Care,Residential Care
Cambridgeshire County Council,09-Feb-24,51302001560,621.00,NELSON LODGE,CARE ESTABLISHMENT,OPPD - Cost of Care - Huntingdon - Over 65,Hunts OP Team - Care,Residential Care
Cambridgeshire County Council,09-Feb-24,51302001560,621.00,NELSON LODGE,CARE ESTABLISHMENT,OPPD - Cost of Care - Huntingdon - Over 65,Hunts OP Team - Care,Residential Care
Cambridgeshire County Council,09-Feb-24,51302001560,621.00,NELSON LODGE,CARE ESTABLISHMENT,OPPD - Cost of Care - Huntingdon - Over 65,Hunts OP Team - Care,Residential Care
Cambridgeshire County Council,09-Feb-24,51302001560,621.00,NELSON LODGE,CARE ESTABLISHMENT,OPPD - Cost of Care - Huntingdon - Over 65,Hunts OP Team - Care,Residential Care
Cambridgeshire County Council,09-Feb-24,51302001560,621.00,NELSON LODGE,CARE ESTABLISHMENT,OPPD - Cost of Care - Huntingdon - Over 65,Hunts OP Team - Care,Residential Care
Cambridgeshire County Council,09-Feb-24,51302001560,621.00,NELSON LODGE,CARE ESTABLISHMENT,OPPD - Cost of Care - Huntingdon - Over 65,Hunts OP Team - Care,Residential Care
Cambridgeshire County Council,09-Feb-24,51302001560,621.00,NELSON LODGE,CARE ESTABLISHMENT,OPPD - Cost of Care - Huntingdon - Over 65,Hunts OP Team - Care,Residential Care
Cambridgeshire County Council,09-Feb-24,51302001560,621.00,NELSON LODGE,CARE ESTABLISHMENT,OPPD - Cost of Care - Huntingdon - Over 65,Hunts OP Team - Care,Residential Care
Cambridgeshire County Council,09-Feb-24,51302001560,621.00,NELSON LODGE,CARE ESTABLISHMENT,OPPD - Cost of Care - Huntingdon - Over 65,Hunts OP Team - Care,Residential Care
Cambridgeshire County Council,09-Feb-24,51302001560,621.00,NELSON LODGE,CARE ESTABLISHMENT,OPPD - Cost of Care - Huntingdon - Over 65,Hunts OP Team - Care,Residential Care
Cambridgeshire County Council,09-Feb-24,51302001560,621.00,NELSON LODGE,CARE ESTABLISHMENT,OPPD - Cost of Care - Huntingdon - Over 65,Hunts OP Team - Care,Residential Care
Cambridgeshire County Council,09-Feb-24,51302001560,621.00,NELSON LODGE,CARE ESTABLISHMENT,OPPD - Cost of Care - Huntingdon - Over 65,Hunts OP Team - Care,Residential Care
Cambridgeshire County Council,09-Feb-24,51302001560,621.00,NELSON LODGE,CARE ESTABLISHMENT,OPPD - Cost of Care - Huntingdon - Over 65,Hunts OP Team - Care,Residential Care
Cambridgeshire County Council,09-Feb-24,51302001560,621.00,NELSON LODGE,CARE ESTABLISHMENT,OPPD - Cost of Care - Huntingdon - Over 65,Hunts OP Team - Care,Residential Care
Cambridgeshire County Council,09-Feb-24,51302001560,621.00,NELSON LODGE,CARE ESTABLISHMENT,OPPD - Cost of Care - Huntingdon - Over 65,Hunts OP Team - Care,Residential Care
Cambridgeshire County Council,09-Feb-24,51302001560,621.00,NELSON LODGE,CARE ESTABLISHMENT,OPPD - Cost of Care - Huntingdon - Over 65,Hunts OP Team - Care,Residential Care
Cambridgeshire County Council,09-Feb-24,51302001560,621.00,NELSON LODGE,CARE ESTABLISHMENT,OPPD - Cost of Care - Huntingdon - Over 65,Hunts OP Team - Care,Residential Care
Cambridgeshire County Council,09-Feb-24,51302001560,621.00,NELSON LODGE,CARE ESTABLISHMENT,OPPD - Cost of Care - Huntingdon - Over 65,Hunts OP Team - Care,Residential Care
Cambridgeshire County Council,09-Feb-24,51302001560,621.00,NELSON LODGE,CARE ESTABLISHMENT,OPPD - Cost of Care - Huntingdon - Over 65,Hunts OP Team - Care,Residential Care
Cambridgeshire County Council,09-Feb-24,51302001560,621.00,NELSON LODGE,CARE ESTABLISHMENT,OPPD - Cost of Care - Huntingdon - Over 65,Hunts OP Team - Care,Residential Care
Cambridgeshire County Council,09-Feb-24,51302001560,621.00,NELSON LODGE,CARE ESTABLISHMENT,OPPD - Cost of Care - Huntingdon - Over 65,Hunts OP Team - Care,Residential Care
Cambridgeshire County Council,09-Feb-24,51302001560,621.00,NELSON LODGE,CARE ESTABLISHMENT,OPPD - Cost of Care - Huntingdon - Over 65,Hunts OP Team - Care,Residential Care
Cambridgeshire County Council,09-Feb-24,51302001560,621.00,NELSON LODGE,CARE ESTABLISHMENT,OPPD - Cost of Care - Huntingdon - Over 65,Hunts OP Team - Care,Residential Care
Cambridgeshire County Council,09-Feb-24,51302001560,621.00,NELSON LODGE,CARE ESTABLISHMENT,OPPD - Cost of Care - Huntingdon - Over 65,Hunts OP Team - Care,Residential Care
Cambridgeshire County Council,09-Feb-24,51302001560,621.00,NELSON LODGE,CARE ESTABLISHMENT,OPPD - Cost of Care - Huntingdon - Over 65,Hunts OP Team - Care,Residential Care
Cambridgeshire County Council,09-Feb-24,51302001560,621.00,NELSON LODGE,CARE ESTABLISHMENT,OPPD - Cost of Care - Huntingdon - Over 65,Hunts OP Team - Care,Residential Care
Cambridgeshire County Council,09-Feb-24,51302001560,621.00,NELSON LODGE,CARE ESTABLISHMENT,OPPD - Cost of Care - Huntingdon - Over 65,Hunts OP Team - Care,Residential Care
Cambridgeshire County Council,09-Feb-24,51302001560,621.00,NELSON LODGE,CARE ESTABLISHMENT,OPPD - Cost of Care - Huntingdon - Over 65,Hunts OP Team - Care,Residential Care
Cambridgeshire County Council,09-Feb-24,51302001560,621.00,NELSON LODGE,CARE ESTABLISHMENT,OPPD - Cost of Care - Huntingdon - Over 65,Hunts OP Team - Care,Residential Care
Cambridgeshire County Council,09-Feb-24,51302001560,621.00,NELSON LODGE,CARE ESTABLISHMENT,OPPD - Cost of Care - Huntingdon - Over 65,Hunts OP Team - Care,Residential Care
Cambridgeshire County Council,09-Feb-24,51302001560,621.00,NELSON LODGE,CARE ESTABLISHMENT,OPPD - Cost of Care - Huntingdon - Over 65,Hunts OP Team - Care,Residential Care
Cambridgeshire County Council,09-Feb-24,51302001560,621.00,NELSON LODGE,CARE ESTABLISHMENT,OPPD - Cost of Care - Huntingdon - Over 65,Hunts OP Team - Care,Residential Care
Cambridgeshire County Council,09-Feb-24,51302001560,621.00,NELSON LODGE,CARE ESTABLISHMENT,OPPD - Cost of Care - Huntingdon - Over 65,Hunts OP Team - Care,Residential Care
Cambridgeshire County Council,09-Feb-24,51302001560,621.00,NELSON LODGE,CARE ESTABLISHMENT,OPPD - Cost of Care - Huntingdon - Over 65,Hunts OP Team - Care,Residential Care
Cambridgeshire County Council,09-Feb-24,51302001560,621.00,NELSON LODGE,CARE ESTABLISHMENT,OPPD - Cost of Care - Huntingdon - Over 65,Hunts OP Team - Care,Residential Care
Cambridgeshire County Council,09-Feb-24,51302001561,650.00,NELSON LODGE,CARE ESTABLISHMENT,OPPD - Cost of Care - Huntingdon - Over 65,Hunts OP Team - Care,Residential Care
Cambridgeshire County Council,09-Feb-24,51302001561,650.00,NELSON LODGE,CARE ESTABLISHMENT,OPPD - Cost of Care - Huntingdon - Over 65,Hunts OP Team - Care,Residential Care
Cambridgeshire County Council,09-Feb-24,51302001561,650.00,NELSON LODGE,CARE ESTABLISHMENT,OPPD - Cost of Care - Huntingdon - Over 65,Hunts OP Team - Care,Residential Care
Cambridgeshire County Council,09-Feb-24,51302001561,650.00,NELSON LODGE,CARE ESTABLISHMENT,OPPD - Cost of Care - Huntingdon - Over 65,Hunts OP Team - Care,Residential Care
Cambridgeshire County Council,09-Feb-24,51302001561,650.00,NELSON LODGE,CARE ESTABLISHMENT,OPPD - Cost of Care - Huntingdon - Over 65,Hunts OP Team - Care,Residential Care
Cambridgeshire County Council,09-Feb-24,51302001561,650.00,NELSON LODGE,CARE ESTABLISHMENT,OPPD - Cost of Care - Huntingdon - Over 65,Hunts OP Team - Care,Residential Care
Cambridgeshire County Council,09-Feb-24,51302001561,650.00,NELSON LODGE,CARE ESTABLISHMENT,OPPD - Cost of Care - Huntingdon - Over 65,Hunts OP Team - Care,Residential Care
Cambridgeshire County Council,09-Feb-24,51302001561,650.00,NELSON LODGE,CARE ESTABLISHMENT,OPPD - Cost of Care - Huntingdon - Over 65,Hunts OP Team - Care,Residential Care
Cambridgeshire County Council,09-Feb-24,51302001561,650.00,NELSON LODGE,CARE ESTABLISHMENT,OPPD - Cost of Care - Huntingdon - Over 65,Hunts OP Team - Care,Residential Care
Cambridgeshire County Council,09-Feb-24,51302001561,650.00,NELSON LODGE,CARE ESTABLISHMENT,OPPD - Cost of Care - Huntingdon - Over 65,Hunts OP Team - Care,Residential Care
Cambridgeshire County Council,09-Feb-24,51302001561,650.00,NELSON LODGE,CARE ESTABLISHMENT,OPPD - Cost of Care - Huntingdon - Over 65,Hunts OP Team - Care,Residential Care
Cambridgeshire County Council,09-Feb-24,51302001561,650.00,NELSON LODGE,CARE ESTABLISHMENT,OPPD - Cost of Care - Huntingdon - Over 65,Hunts OP Team - Care,Residential Care
Cambridgeshire County Council,09-Feb-24,51302001561,650.00,NELSON LODGE,CARE ESTABLISHMENT,OPPD - Cost of Care - Huntingdon - Over 65,Hunts OP Team - Care,Residential Care
Cambridgeshire County Council,09-Feb-24,51302001561,650.00,NELSON LODGE,CARE ESTABLISHMENT,OPPD - Cost of Care - Huntingdon - Over 65,Hunts OP Team - Care,Residential Care
Cambridgeshire County Council,09-Feb-24,51302001561,650.00,NELSON LODGE,CARE ESTABLISHMENT,OPPD - Cost of Care - Huntingdon - Over 65,Hunts OP Team - Care,Residential Care
Cambridgeshire County Council,09-Feb-24,51302001561,650.00,NELSON LODGE,CARE ESTABLISHMENT,OPPD - Cost of Care - Huntingdon - Over 65,Hunts OP Team - Care,Residential Care
Cambridgeshire County Council,09-Feb-24,51302001561,650.00,NELSON LODGE,CARE ESTABLISHMENT,OPPD - Cost of Care - Huntingdon - Over 65,Hunts OP Team - Care,Residential Care
Cambridgeshire County Council,09-Feb-24,51302001561,650.00,NELSON LODGE,CARE ESTABLISHMENT,OPPD - Cost of Care - Huntingdon - Over 65,Hunts OP Team - Care,Residential Care
Cambridgeshire County Council,09-Feb-24,51302001561,650.00,NELSON LODGE,CARE ESTABLISHMENT,OPPD - Cost of Care - Huntingdon - Over 65,Hunts OP Team - Care,Residential Care
Cambridgeshire County Council,09-Feb-24,51302001561,650.00,NELSON LODGE,CARE ESTABLISHMENT,OPPD - Cost of Care - Huntingdon - Over 65,Hunts OP Team - Care,Residential Care
Cambridgeshire County Council,09-Feb-24,51302001561,650.00,NELSON LODGE,CARE ESTABLISHMENT,OPPD - Cost of Care - Huntingdon - Over 65,Hunts OP Team - Care,Residential Care
Cambridgeshire County Council,09-Feb-24,51302001561,650.00,NELSON LODGE,CARE ESTABLISHMENT,OPPD - Cost of Care - Huntingdon - Over 65,Hunts OP Team - Care,Residential Care
Cambridgeshire County Council,09-Feb-24,51302001561,650.00,NELSON LODGE,CARE ESTABLISHMENT,OPPD - Cost of Care - Huntingdon - Over 65,Hunts OP Team - Care,Residential Care
Cambridgeshire County Council,09-Feb-24,51302001561,650.00,NELSON LODGE,CARE ESTABLISHMENT,OPPD - Cost of Care - Huntingdon - Over 65,Hunts OP Team - Care,Residential Care
Cambridgeshire County Council,09-Feb-24,51302001561,650.00,NELSON LODGE,CARE ESTABLISHMENT,OPPD - Cost of Care - Huntingdon - Over 65,Hunts OP Team - Care,Residential Care
Cambridgeshire County Council,09-Feb-24,51302001561,650.00,NELSON LODGE,CARE ESTABLISHMENT,OPPD - Cost of Care - Huntingdon - Over 65,Hunts OP Team - Care,Residential Care
Cambridgeshire County Council,09-Feb-24,51302001561,650.00,NELSON LODGE,CARE ESTABLISHMENT,OPPD - Cost of Care - Huntingdon - Over 65,Hunts OP Team - Care,Residential Care
Cambridgeshire County Council,09-Feb-24,51302001561,650.00,NELSON LODGE,CARE ESTABLISHMENT,OPPD - Cost of Care - Huntingdon - Over 65,Hunts OP Team - Care,Residential Care
Cambridgeshire County Council,09-Feb-24,51302001561,650.00,NELSON LODGE,CARE ESTABLISHMENT,OPPD - Cost of Care - Huntingdon - Over 65,Hunts OP Team - Care,Residential Care
Cambridgeshire County Council,09-Feb-24,51302001561,650.00,NELSON LODGE,CARE ESTABLISHMENT,OPPD - Cost of Care - Huntingdon - Over 65,Hunts OP Team - Care,Residential Care
Cambridgeshire County Council,09-Feb-24,51302001561,650.00,NELSON LODGE,CARE ESTABLISHMENT,OPPD - Cost of Care - Huntingdon - Over 65,Hunts OP Team - Care,Residential Care
Cambridgeshire County Council,09-Feb-24,51302001561,650.00,NELSON LODGE,CARE ESTABLISHMENT,OPPD - Cost of Care - Huntingdon - Over 65,Hunts OP Team - Care,Residential Care
Cambridgeshire County Council,09-Feb-24,51302001561,650.00,NELSON LODGE,CARE ESTABLISHMENT,OPPD - Cost of Care - Huntingdon - Over 65,Hunts OP Team - Care,Residential Care
Cambridgeshire County Council,09-Feb-24,51302001561,650.00,NELSON LODGE,CARE ESTABLISHMENT,OPPD - Cost of Care - Huntingdon - Over 65,Hunts OP Team - Care,Residential Care
Cambridgeshire County Council,09-Feb-24,51302001561,650.00,NELSON LODGE,CARE ESTABLISHMENT,OPPD - Cost of Care - Huntingdon - Over 65,Hunts OP Team - Care,Residential Care
Cambridgeshire County Council,09-Feb-24,51302001561,650.00,NELSON LODGE,CARE ESTABLISHMENT,OPPD - Cost of Care - Huntingdon - Over 65,Hunts OP Team - Care,Residential Care
Cambridgeshire County Council,09-Feb-24,51302001561,650.00,NELSON LODGE,CARE ESTABLISHMENT,OPPD - Cost of Care - Huntingdon - Over 65,Hunts OP Team - Care,Residential Care
Cambridgeshire County Council,09-Feb-24,51302001561,650.00,NELSON LODGE,CARE ESTABLISHMENT,OPPD - Cost of Care - Huntingdon - Over 65,Hunts OP Team - Care,Residential Care
Cambridgeshire County Council,09-Feb-24,51302001561,650.00,NELSON LODGE,CARE ESTABLISHMENT,OPPD - Cost of Care - Huntingdon - Over 65,Hunts OP Team - Care,Residential Care
Cambridgeshire County Council,09-Feb-24,51302001561,650.00,NELSON LODGE,CARE ESTABLISHMENT,OPPD - Cost of Care - Huntingdon - Over 65,Hunts OP Team - Care,Residential Care
Cambridgeshire County Council,09-Feb-24,51302001561,650.00,NELSON LODGE,CARE ESTABLISHMENT,OPPD - Cost of Care - Huntingdon - Over 65,Hunts OP Team - Care,Residential Care
Cambridgeshire County Council,09-Feb-24,51302001561,650.00,NELSON LODGE,CARE ESTABLISHMENT,OPPD - Cost of Care - Huntingdon - Over 65,Hunts OP Team - Care,Residential Care
Cambridgeshire County Council,09-Feb-24,51302001561,650.00,NELSON LODGE,CARE ESTABLISHMENT,OPPD - Cost of Care - Huntingdon - Over 65,Hunts OP Team - Care,Residential Care
Cambridgeshire County Council,09-Feb-24,51302001561,650.00,NELSON LODGE,CARE ESTABLISHMENT,OPPD - Cost of Care - Huntingdon - Over 65,Hunts OP Team - Care,Residential Care
Cambridgeshire County Council,09-Feb-24,51302001561,650.00,NELSON LODGE,CARE ESTABLISHMENT,OPPD - Cost of Care - Huntingdon - Over 65,Hunts OP Team - Care,Residential Care
Cambridgeshire County Council,09-Feb-24,51302001561,650.00,NELSON LODGE,CARE ESTABLISHMENT,OPPD - Cost of Care - Huntingdon - Over 65,Hunts OP Team - Care,Residential Care
Cambridgeshire County Council,09-Feb-24,51302001561,650.00,NELSON LODGE,CARE ESTABLISHMENT,OPPD - Cost of Care - Huntingdon - Over 65,Hunts OP Team - Care,Residential Care
Cambridgeshire County Council,09-Feb-24,51302001561,650.00,NELSON LODGE,CARE ESTABLISHMENT,OPPD - Cost of Care - Huntingdon - Over 65,Hunts OP Team - Care,Residential Care
Cambridgeshire County Council,09-Feb-24,51302001561,650.00,NELSON LODGE,CARE ESTABLISHMENT,OPPD - Cost of Care - Huntingdon - Over 65,Hunts OP Team - Care,Residential Care
Cambridgeshire County Council,09-Feb-24,51302001561,650.00,NELSON LODGE,CARE ESTABLISHMENT,OPPD - Cost of Care - Huntingdon - Over 65,Hunts OP Team - Care,Residential Care
Cambridgeshire County Council,09-Feb-24,51302001561,650.00,NELSON LODGE,CARE ESTABLISHMENT,OPPD - Cost of Care - Huntingdon - Over 65,Hunts OP Team - Care,Residential Care
Cambridgeshire County Council,09-Feb-24,51302001561,650.00,NELSON LODGE,CARE ESTABLISHMENT,OPPD - Cost of Care - Huntingdon - Over 65,Hunts OP Team - Care,Residential Care
Cambridgeshire County Council,09-Feb-24,51302001561,650.00,NELSON LODGE,CARE ESTABLISHMENT,OPPD - Cost of Care - Huntingdon - Over 65,Hunts OP Team - Care,Residential Care
Cambridgeshire County Council,09-Feb-24,51302001561,650.00,NELSON LODGE,CARE ESTABLISHMENT,OPPD - Cost of Care - Huntingdon - Over 65,Hunts OP Team - Care,Residential Care
Cambridgeshire County Council,09-Feb-24,51302001561,650.00,NELSON LODGE,CARE ESTABLISHMENT,OPPD - Cost of Care - Huntingdon - Over 65,Hunts OP Team - Care,Residential Care
Cambridgeshire County Council,09-Feb-24,51302001561,650.00,NELSON LODGE,CARE ESTABLISHMENT,OPPD - Cost of Care - Huntingdon - Over 65,Hunts OP Team - Care,Residential Care
Cambridgeshire County Council,09-Feb-24,51302001561,650.00,NELSON LODGE,CARE ESTABLISHMENT,OPPD - Cost of Care - Huntingdon - Over 65,Hunts OP Team - Care,Residential Care
Cambridgeshire County Council,09-Feb-24,51302001561,650.00,NELSON LODGE,CARE ESTABLISHMENT,OPPD - Cost of Care - Huntingdon - Over 65,Hunts OP Team - Care,Residential Care
Cambridgeshire County Council,09-Feb-24,51302001561,650.00,NELSON LODGE,CARE ESTABLISHMENT,OPPD - Cost of Care - Huntingdon - Over 65,Hunts OP Team - Care,Residential Care
Cambridgeshire County Council,02-Feb-24,51302024807,"-2,558.72",Willow Care and Support,CARE ESTABLISHMENT,LD - Young Adults Team,LD - Young Adults - Special Needs,Supported Living
Cambridgeshire County Council,02-Feb-24,51302024807,"-2,558.72",Willow Care and Support,CARE ESTABLISHMENT,LD - Young Adults Team,LD - Young Adults - Special Needs,Supported Living
Cambridgeshire County Council,02-Feb-24,51302024807,"-2,558.72",Willow Care and Support,CARE ESTABLISHMENT,LD - Young Adults Team,LD - Young Adults - Special Needs,Supported Living
Cambridgeshire County Council,02-Feb-24,51302024807,"-2,558.72",Willow Care and Support,CARE ESTABLISHMENT,LD - Young Adults Team,LD - Young Adults - Special Needs,Supported Living
Cambridgeshire County Council,02-Feb-24,51302024807,"-2,558.72",Willow Care and Support,CARE ESTABLISHMENT,LD - Young Adults Team,LD - Young Adults - Special Needs,Supported Living
Cambridgeshire County Council,02-Feb-24,51302024807,"-2,193.19",Willow Care and Support,CARE ESTABLISHMENT,LD - Young Adults Team,LD - Young Adults - Special Needs,Supported Living
Cambridgeshire County Council,02-Feb-24,51302024807,"-1,441.44",Willow Care and Support,CARE ESTABLISHMENT,LD - Young Adults Team,LD - Young Adults - Special Needs,Supported Living
Cambridgeshire County Council,02-Feb-24,51302024807,"-1,441.44",Willow Care and Support,CARE ESTABLISHMENT,LD - Young Adults Team,LD - Young Adults - Special Needs,Supported Living
Cambridgeshire County Council,02-Feb-24,51302024807,"-1,441.44",Willow Care and Support,CARE ESTABLISHMENT,LD - Young Adults Team,LD - Young Adults - Special Needs,Supported Living
Cambridgeshire County Council,02-Feb-24,51302024807,"-1,441.44",Willow Care and Support,CARE ESTABLISHMENT,LD - Young Adults Team,LD - Young Adults - Special Needs,Supported Living
Cambridgeshire County Council,02-Feb-24,51302024807,"-1,441.44",Willow Care and Support,CARE ESTABLISHMENT,LD - Young Adults Team,LD - Young Adults - Special Needs,Supported Living
Cambridgeshire County Council,02-Feb-24,51302024807,"-1,235.52",Willow Care and Support,CARE ESTABLISHMENT,LD - Young Adults Team,LD - Young Adults - Special Needs,Supported Living
Cambridgeshire County Council,02-Feb-24,51302031689,669.96,Willow Care and Support,CARE ESTABLISHMENT,LD - Young Adults Team,LD - Young Adults - Special Needs,Domiciliary Care
Cambridgeshire County Council,02-Feb-24,51302031689,669.96,Willow Care and Support,CARE ESTABLISHMENT,LD - Young Adults Team,LD - Young Adults - Special Needs,Domiciliary Care
Cambridgeshire County Council,02-Feb-24,51302031689,669.96,Willow Care and Support,CARE ESTABLISHMENT,LD - Young Adults Team,LD - Young Adults - Special Needs,Domiciliary Care
Cambridgeshire County Council,02-Feb-24,51302031689,669.96,Willow Care and Support,CARE ESTABLISHMENT,LD - Young Adults Team,LD - Young Adults - Special Needs,Domiciliary Care
Cambridgeshire County Council,09-Feb-24,51302035912,"1,001.64",Pathfinder Legal Services Limited,TRADE SUPPLIER,Corporate Offices,Queen Mary Centre,Professional Fees and Hired Services
Cambridgeshire County Council,09-Feb-24,51302050880,"9,912.00",WT Partnership Limited,COMPANY,"School Condition, Maintenance & Suitability","School Condition, Maintenance & Suitability",Capital Consultancy
Cambridgeshire County Council,21-Feb-24,51302060631,"1,259.20",SILKS FARM DAY NURSERY,NURSERY,Early Years,SEND Specialist Services - SENIF,Care & Ed Partner Organisations
Cambridgeshire County Council,28-Feb-24,51302080709,"1,123.82",WCL UK LTD,TRADE SUPPLIER,ICT Service,ICT Service Sales,Materials for resale
Cambridgeshire County Council,14-Feb-24,51302097335,"3,669.00",ARDENT MANAGEMENT (HOLDINGD) LTD,TRADE SUPPLIER,"Wheatsheaf Crossroads, Bluntisham","Wheatsheaf Crossroads, Bluntisham",Construction - External Professional Fees
Cambridgeshire County Council,14-Feb-24,51302101481,-574.45,Redacted Personal Data,SERVICE USER,LD - South Locality - Cost of Care,LD - South Cambs - Care,Direct Payments
Cambridgeshire County Council,14-Feb-24,51302101481,-574.45,Redacted Personal Data,SERVICE USER,LD - South Locality - Cost of Care,LD - South Cambs - Care,Direct Payments
Cambridgeshire County Council,14-Feb-24,51302101481,-574.45,Redacted Personal Data,SERVICE USER,LD - South Locality - Cost of Care,LD - South Cambs - Care,Direct Payments
Cambridgeshire County Council,14-Feb-24,51302101481,-574.45,Redacted Personal Data,SERVICE USER,LD - South Locality - Cost of Care,LD - South Cambs - Care,Direct Payments
Cambridgeshire County Council,28-Feb-24,51302107602,"-3,544.00",E J C GROUP LTD  (EJ CARE),CARE ESTABLISHMENT,LD - Young Adults Team,LD - Young Adults - Special Needs,Domiciliary Care
Cambridgeshire County Council,28-Feb-24,51302107602,"-3,544.00",E J C GROUP LTD  (EJ CARE),CARE ESTABLISHMENT,LD - Young Adults Team,LD - Young Adults - Special Needs,Domiciliary Care
Cambridgeshire County Council,28-Feb-24,51302107602,"-3,544.00",E J C GROUP LTD  (EJ CARE),CARE ESTABLISHMENT,LD - Young Adults Team,LD - Young Adults - Special Needs,Domiciliary Care
Cambridgeshire County Council,28-Feb-24,51302107602,"-3,544.00",E J C GROUP LTD  (EJ CARE),CARE ESTABLISHMENT,LD - Young Adults Team,LD - Young Adults - Special Needs,Domiciliary Care
Cambridgeshire County Council,28-Feb-24,51302107602,"-3,544.00",E J C GROUP LTD  (EJ CARE),CARE ESTABLISHMENT,LD - Young Adults Team,LD - Young Adults - Special Needs,Domiciliary Care
Cambridgeshire County Council,28-Feb-24,51302107602,"-3,544.00",E J C GROUP LTD  (EJ CARE),CARE ESTABLISHMENT,LD - Young Adults Team,LD - Young Adults - Special Needs,Domiciliary Care
Cambridgeshire County Council,28-Feb-24,51302107602,"-3,544.00",E J C GROUP LTD  (EJ CARE),CARE ESTABLISHMENT,LD - Young Adults Team,LD - Young Adults - Special Needs,Domiciliary Care
Cambridgeshire County Council,28-Feb-24,51302107602,"-3,544.00",E J C GROUP LTD  (EJ CARE),CARE ESTABLISHMENT,LD - Young Adults Team,LD - Young Adults - Special Needs,Domiciliary Care
Cambridgeshire County Council,28-Feb-24,51302107602,"-3,544.00",E J C GROUP LTD  (EJ CARE),CARE ESTABLISHMENT,LD - Young Adults Team,LD - Young Adults - Special Needs,Domiciliary Care
Cambridgeshire County Council,28-Feb-24,51302107602,"-3,544.00",E J C GROUP LTD  (EJ CARE),CARE ESTABLISHMENT,LD - Young Adults Team,LD - Young Adults - Special Needs,Domiciliary Care
Cambridgeshire County Council,28-Feb-24,51302107602,"-3,544.00",E J C GROUP LTD  (EJ CARE),CARE ESTABLISHMENT,LD - Young Adults Team,LD - Young Adults - Special Needs,Domiciliary Care
Cambridgeshire County Council,28-Feb-24,51302107602,"-3,544.00",E J C GROUP LTD  (EJ CARE),CARE ESTABLISHMENT,LD - Young Adults Team,LD - Young Adults - Special Needs,Domiciliary Care
Cambridgeshire County Council,28-Feb-24,51302107602,"-3,544.00",E J C GROUP LTD  (EJ CARE),CARE ESTABLISHMENT,LD - Young Adults Team,LD - Young Adults - Special Needs,Domiciliary Care
Cambridgeshire County Council,28-Feb-24,51302107602,"-3,544.00",E J C GROUP LTD  (EJ CARE),CARE ESTABLISHMENT,LD - Young Adults Team,LD - Young Adults - Special Needs,Domiciliary Care
Cambridgeshire County Council,28-Feb-24,51302107602,"-3,544.00",E J C GROUP LTD  (EJ CARE),CARE ESTABLISHMENT,LD - Young Adults Team,LD - Young Adults - Special Needs,Domiciliary Care
Cambridgeshire County Council,28-Feb-24,51302107602,"-3,544.00",E J C GROUP LTD  (EJ CARE),CARE ESTABLISHMENT,LD - Young Adults Team,LD - Young Adults - Special Needs,Domiciliary Care
Cambridgeshire County Council,28-Feb-24,51302107602,"-3,544.00",E J C GROUP LTD  (EJ CARE),CARE ESTABLISHMENT,LD - Young Adults Team,LD - Young Adults - Special Needs,Domiciliary Care
Cambridgeshire County Council,28-Feb-24,51302107602,"-3,544.00",E J C GROUP LTD  (EJ CARE),CARE ESTABLISHMENT,LD - Young Adults Team,LD - Young Adults - Special Needs,Domiciliary Care
Cambridgeshire County Council,28-Feb-24,51302107602,"-3,544.00",E J C GROUP LTD  (EJ CARE),CARE ESTABLISHMENT,LD - Young Adults Team,LD - Young Adults - Special Needs,Domiciliary Care
Cambridgeshire County Council,28-Feb-24,51302107602,"-3,544.00",E J C GROUP LTD  (EJ CARE),CARE ESTABLISHMENT,LD - Young Adults Team,LD - Young Adults - Special Needs,Domiciliary Care
Cambridgeshire County Council,28-Feb-24,51302107602,"-3,037.71",E J C GROUP LTD  (EJ CARE),CARE ESTABLISHMENT,LD - Young Adults Team,LD - Young Adults - Special Needs,Domiciliary Care
Cambridgeshire County Council,28-Feb-24,51302107602,"-1,780.80",E J C GROUP LTD  (EJ CARE),CARE ESTABLISHMENT,LD - Young Adults Team,LD - Young Adults - Special Needs,Domiciliary Care
Cambridgeshire County Council,28-Feb-24,51302107602,"-1,780.80",E J C GROUP LTD  (EJ CARE),CARE ESTABLISHMENT,LD - Young Adults Team,LD - Young Adults - Special Needs,Domiciliary Care
Cambridgeshire County Council,28-Feb-24,51302107602,"-1,780.80",E J C GROUP LTD  (EJ CARE),CARE ESTABLISHMENT,LD - Young Adults Team,LD - Young Adults - Special Needs,Domiciliary Care
Cambridgeshire County Council,28-Feb-24,51302107602,"-1,780.80",E J C GROUP LTD  (EJ CARE),CARE ESTABLISHMENT,LD - Young Adults Team,LD - Young Adults - Special Needs,Domiciliary Care
Cambridgeshire County Council,28-Feb-24,51302107602,"-1,780.80",E J C GROUP LTD  (EJ CARE),CARE ESTABLISHMENT,LD - Young Adults Team,LD - Young Adults - Special Needs,Domiciliary Care
Cambridgeshire County Council,28-Feb-24,51302107602,"-1,780.80",E J C GROUP LTD  (EJ CARE),CARE ESTABLISHMENT,LD - Young Adults Team,LD - Young Adults - Special Needs,Domiciliary Care
Cambridgeshire County Council,28-Feb-24,51302107602,"-1,780.80",E J C GROUP LTD  (EJ CARE),CARE ESTABLISHMENT,LD - Young Adults Team,LD - Young Adults - Special Needs,Domiciliary Care
Cambridgeshire County Council,28-Feb-24,51302107602,"-1,780.80",E J C GROUP LTD  (EJ CARE),CARE ESTABLISHMENT,LD - Young Adults Team,LD - Young Adults - Special Needs,Domiciliary Care
Cambridgeshire County Council,28-Feb-24,51302107602,"-1,780.80",E J C GROUP LTD  (EJ CARE),CARE ESTABLISHMENT,LD - Young Adults Team,LD - Young Adults - Special Needs,Domiciliary Care
Cambridgeshire County Council,28-Feb-24,51302107602,"-1,780.80",E J C GROUP LTD  (EJ CARE),CARE ESTABLISHMENT,LD - Young Adults Team,LD - Young Adults - Special Needs,Domiciliary Care
Cambridgeshire County Council,28-Feb-24,51302107602,"-1,780.80",E J C GROUP LTD  (EJ CARE),CARE ESTABLISHMENT,LD - Young Adults Team,LD - Young Adults - Special Needs,Domiciliary Care
Cambridgeshire County Council,28-Feb-24,51302107602,"-1,780.80",E J C GROUP LTD  (EJ CARE),CARE ESTABLISHMENT,LD - Young Adults Team,LD - Young Adults - Special Needs,Domiciliary Care
Cambridgeshire County Council,28-Feb-24,51302107602,"-1,780.80",E J C GROUP LTD  (EJ CARE),CARE ESTABLISHMENT,LD - Young Adults Team,LD - Young Adults - Special Needs,Domiciliary Care
Cambridgeshire County Council,28-Feb-24,51302107602,"-1,780.80",E J C GROUP LTD  (EJ CARE),CARE ESTABLISHMENT,LD - Young Adults Team,LD - Young Adults - Special Needs,Domiciliary Care
Cambridgeshire County Council,28-Feb-24,51302107602,"-1,780.80",E J C GROUP LTD  (EJ CARE),CARE ESTABLISHMENT,LD - Young Adults Team,LD - Young Adults - Special Needs,Domiciliary Care
Cambridgeshire County Council,28-Feb-24,51302107602,"-1,780.80",E J C GROUP LTD  (EJ CARE),CARE ESTABLISHMENT,LD - Young Adults Team,LD - Young Adults - Special Needs,Domiciliary Care
Cambridgeshire County Council,28-Feb-24,51302107602,"-1,780.80",E J C GROUP LTD  (EJ CARE),CARE ESTABLISHMENT,LD - Young Adults Team,LD - Young Adults - Special Needs,Domiciliary Care
Cambridgeshire County Council,28-Feb-24,51302107602,"-1,780.80",E J C GROUP LTD  (EJ CARE),CARE ESTABLISHMENT,LD - Young Adults Team,LD - Young Adults - Special Needs,Domiciliary Care
Cambridgeshire County Council,28-Feb-24,51302107602,"-1,780.80",E J C GROUP LTD  (EJ CARE),CARE ESTABLISHMENT,LD - Young Adults Team,LD - Young Adults - Special Needs,Domiciliary Care
Cambridgeshire County Council,28-Feb-24,51302107602,"-1,780.80",E J C GROUP LTD  (EJ CARE),CARE ESTABLISHMENT,LD - Young Adults Team,LD - Young Adults - Special Needs,Domiciliary Care
Cambridgeshire County Council,28-Feb-24,51302107602,"-1,526.40",E J C GROUP LTD  (EJ CARE),CARE ESTABLISHMENT,LD - Young Adults Team,LD - Young Adults - Special Needs,Domiciliary Care
Cambridgeshire County Council,28-Feb-24,51302107602,-875.00,E J C GROUP LTD  (EJ CARE),CARE ESTABLISHMENT,LD - Young Adults Team,LD - Young Adults - Special Needs,Domiciliary Care
Cambridgeshire County Council,28-Feb-24,51302107602,-875.00,E J C GROUP LTD  (EJ CARE),CARE ESTABLISHMENT,LD - Young Adults Team,LD - Young Adults - Special Needs,Domiciliary Care
Cambridgeshire County Council,28-Feb-24,51302107602,-875.00,E J C GROUP LTD  (EJ CARE),CARE ESTABLISHMENT,LD - Young Adults Team,LD - Young Adults - Special Needs,Domiciliary Care
Cambridgeshire County Council,28-Feb-24,51302107602,-875.00,E J C GROUP LTD  (EJ CARE),CARE ESTABLISHMENT,LD - Young Adults Team,LD - Young Adults - Special Needs,Domiciliary Care
Cambridgeshire County Council,28-Feb-24,51302107602,-875.00,E J C GROUP LTD  (EJ CARE),CARE ESTABLISHMENT,LD - Young Adults Team,LD - Young Adults - Special Needs,Domiciliary Care
Cambridgeshire County Council,28-Feb-24,51302107602,-875.00,E J C GROUP LTD  (EJ CARE),CARE ESTABLISHMENT,LD - Young Adults Team,LD - Young Adults - Special Needs,Domiciliary Care
Cambridgeshire County Council,28-Feb-24,51302107602,-875.00,E J C GROUP LTD  (EJ CARE),CARE ESTABLISHMENT,LD - Young Adults Team,LD - Young Adults - Special Needs,Domiciliary Care
Cambridgeshire County Council,28-Feb-24,51302107602,-875.00,E J C GROUP LTD  (EJ CARE),CARE ESTABLISHMENT,LD - Young Adults Team,LD - Young Adults - Special Needs,Domiciliary Care
Cambridgeshire County Council,28-Feb-24,51302107602,-875.00,E J C GROUP LTD  (EJ CARE),CARE ESTABLISHMENT,LD - Young Adults Team,LD - Young Adults - Special Needs,Domiciliary Care
Cambridgeshire County Council,28-Feb-24,51302107602,-875.00,E J C GROUP LTD  (EJ CARE),CARE ESTABLISHMENT,LD - Young Adults Team,LD - Young Adults - Special Needs,Domiciliary Care
Cambridgeshire County Council,28-Feb-24,51302107602,-875.00,E J C GROUP LTD  (EJ CARE),CARE ESTABLISHMENT,LD - Young Adults Team,LD - Young Adults - Special Needs,Domiciliary Care
Cambridgeshire County Council,28-Feb-24,51302107602,-875.00,E J C GROUP LTD  (EJ CARE),CARE ESTABLISHMENT,LD - Young Adults Team,LD - Young Adults - Special Needs,Domiciliary Care
Cambridgeshire County Council,28-Feb-24,51302107602,-875.00,E J C GROUP LTD  (EJ CARE),CARE ESTABLISHMENT,LD - Young Adults Team,LD - Young Adults - Special Needs,Domiciliary Care
Cambridgeshire County Council,28-Feb-24,51302107602,-875.00,E J C GROUP LTD  (EJ CARE),CARE ESTABLISHMENT,LD - Young Adults Team,LD - Young Adults - Special Needs,Domiciliary Care
Cambridgeshire County Council,28-Feb-24,51302107602,-875.00,E J C GROUP LTD  (EJ CARE),CARE ESTABLISHMENT,LD - Young Adults Team,LD - Young Adults - Special Needs,Domiciliary Care
Cambridgeshire County Council,28-Feb-24,51302107602,-875.00,E J C GROUP LTD  (EJ CARE),CARE ESTABLISHMENT,LD - Young Adults Team,LD - Young Adults - Special Needs,Domiciliary Care
Cambridgeshire County Council,28-Feb-24,51302107602,-875.00,E J C GROUP LTD  (EJ CARE),CARE ESTABLISHMENT,LD - Young Adults Team,LD - Young Adults - Special Needs,Domiciliary Care
Cambridgeshire County Council,28-Feb-24,51302107602,-875.00,E J C GROUP LTD  (EJ CARE),CARE ESTABLISHMENT,LD - Young Adults Team,LD - Young Adults - Special Needs,Domiciliary Care
Cambridgeshire County Council,28-Feb-24,51302107602,-875.00,E J C GROUP LTD  (EJ CARE),CARE ESTABLISHMENT,LD - Young Adults Team,LD - Young Adults - Special Needs,Domiciliary Care
Cambridgeshire County Council,28-Feb-24,51302107602,-875.00,E J C GROUP LTD  (EJ CARE),CARE ESTABLISHMENT,LD - Young Adults Team,LD - Young Adults - Special Needs,Domiciliary Care
Cambridgeshire County Council,28-Feb-24,51302107602,-750.00,E J C GROUP LTD  (EJ CARE),CARE ESTABLISHMENT,LD - Young Adults Team,LD - Young Adults - Special Needs,Domiciliary Care
Cambridgeshire County Council,02-Feb-24,51302108415,"2,238.00",Stratton Upper School,EDUCATION,Recoupment,Other LA Mainstream,Independent School Placements
Cambridgeshire County Council,14-Feb-24,51302108688,"27,206.45",ATKINS LTD,COMPANY,March Broad Street FHSF/MATS,March Broad Street FHSF/MATS,Construction - External Professional Fees
Cambridgeshire County Council,02-Feb-24,51302110064,"5,458.01",MOTT MACDONALD LTD,TRADE SUPPLIER,Guided Busway,Guided Busway,Professional Fees and Hired Services
Cambridgeshire County Council,14-Feb-24,51302111955,"10,000.00",Natural Cambridgeshire,CHARITY,Greenspaces,Greenspaces,Consultancy
Cambridgeshire County Council,05-Feb-24,51302113480,"167,091.85",WSP UK Limited,COMPANY,A10 Ely to A14 Improvements - CPCA,A10 Ely to A14 Improvements - CPCA,Construction - External Professional Fees
Cambridgeshire County Council,26-Feb-24,51302114656,555.00,Pathfinder Legal Services Limited,TRADE SUPPLIER,LD - Young Adults Staffing,LD - Young Adults - Staffing,External Legal Fees
Cambridgeshire County Council,28-Feb-24,51302115149,-544.13,E J C GROUP LTD  (EJ CARE),CARE ESTABLISHMENT,LD - Young Adults Team,LD - Young Adults - Special Needs,Supported Living
Cambridgeshire County Council,28-Feb-24,51302115149,-544.13,E J C GROUP LTD  (EJ CARE),CARE ESTABLISHMENT,LD - Young Adults Team,LD - Young Adults - Special Needs,Supported Living
Cambridgeshire County Council,28-Feb-24,51302115149,-544.13,E J C GROUP LTD  (EJ CARE),CARE ESTABLISHMENT,LD - Young Adults Team,LD - Young Adults - Special Needs,Supported Living
Cambridgeshire County Council,28-Feb-24,51302115149,-544.13,E J C GROUP LTD  (EJ CARE),CARE ESTABLISHMENT,LD - Young Adults Team,LD - Young Adults - Special Needs,Supported Living
Cambridgeshire County Council,28-Feb-24,51302115149,763.20,E J C GROUP LTD  (EJ CARE),CARE ESTABLISHMENT,LD - Young Adults Team,LD - Young Adults - Special Needs,Supported Living
Cambridgeshire County Council,28-Feb-24,51302115149,"1,017.60",E J C GROUP LTD  (EJ CARE),CARE ESTABLISHMENT,LD - Young Adults Team,LD - Young Adults - Special Needs,Supported Living
Cambridgeshire County Council,28-Feb-24,51302115149,"1,272.00",E J C GROUP LTD  (EJ CARE),CARE ESTABLISHMENT,LD - Young Adults Team,LD - Young Adults - Special Needs,Supported Living
Cambridgeshire County Council,28-Feb-24,51302115149,"1,780.80",E J C GROUP LTD  (EJ CARE),CARE ESTABLISHMENT,LD - Young Adults Team,LD - Young Adults - Special Needs,Supported Living
Cambridgeshire County Council,28-Feb-24,51302115149,"1,780.80",E J C GROUP LTD  (EJ CARE),CARE ESTABLISHMENT,LD - Young Adults Team,LD - Young Adults - Special Needs,Supported Living
Cambridgeshire County Council,28-Feb-24,51302115149,"1,780.80",E J C GROUP LTD  (EJ CARE),CARE ESTABLISHMENT,LD - Young Adults Team,LD - Young Adults - Special Needs,Supported Living
Cambridgeshire County Council,28-Feb-24,51302115149,"1,780.80",E J C GROUP LTD  (EJ CARE),CARE ESTABLISHMENT,LD - Young Adults Team,LD - Young Adults - Special Needs,Supported Living
Cambridgeshire County Council,28-Feb-24,51302115149,"1,780.80",E J C GROUP LTD  (EJ CARE),CARE ESTABLISHMENT,LD - Young Adults Team,LD - Young Adults - Special Needs,Supported Living
Cambridgeshire County Council,28-Feb-24,51302115149,"1,780.80",E J C GROUP LTD  (EJ CARE),CARE ESTABLISHMENT,LD - Young Adults Team,LD - Young Adults - Special Needs,Supported Living
Cambridgeshire County Council,28-Feb-24,51302115149,"1,780.80",E J C GROUP LTD  (EJ CARE),CARE ESTABLISHMENT,LD - Young Adults Team,LD - Young Adults - Special Needs,Supported Living
Cambridgeshire County Council,28-Feb-24,51302115149,"1,780.80",E J C GROUP LTD  (EJ CARE),CARE ESTABLISHMENT,LD - Young Adults Team,LD - Young Adults - Special Needs,Supported Living
Cambridgeshire County Council,28-Feb-24,51302115149,"1,780.80",E J C GROUP LTD  (EJ CARE),CARE ESTABLISHMENT,LD - Young Adults Team,LD - Young Adults - Special Needs,Supported Living
Cambridgeshire County Council,28-Feb-24,51302115149,"1,780.80",E J C GROUP LTD  (EJ CARE),CARE ESTABLISHMENT,LD - Young Adults Team,LD - Young Adults - Special Needs,Supported Living
Cambridgeshire County Council,28-Feb-24,51302115149,"1,780.80",E J C GROUP LTD  (EJ CARE),CARE ESTABLISHMENT,LD - Young Adults Team,LD - Young Adults - Special Needs,Supported Living
Cambridgeshire County Council,28-Feb-24,51302115149,"1,780.80",E J C GROUP LTD  (EJ CARE),CARE ESTABLISHMENT,LD - Young Adults Team,LD - Young Adults - Special Needs,Supported Living
Cambridgeshire County Council,28-Feb-24,51302115149,"1,780.80",E J C GROUP LTD  (EJ CARE),CARE ESTABLISHMENT,LD - Young Adults Team,LD - Young Adults - Special Needs,Supported Living
Cambridgeshire County Council,28-Feb-24,51302115149,"1,780.80",E J C GROUP LTD  (EJ CARE),CARE ESTABLISHMENT,LD - Young Adults Team,LD - Young Adults - Special Needs,Supported Living
Cambridgeshire County Council,28-Feb-24,51302115149,"1,780.80",E J C GROUP LTD  (EJ CARE),CARE ESTABLISHMENT,LD - Young Adults Team,LD - Young Adults - Special Needs,Supported Living
Cambridgeshire County Council,28-Feb-24,51302115149,"1,780.80",E J C GROUP LTD  (EJ CARE),CARE ESTABLISHMENT,LD - Young Adults Team,LD - Young Adults - Special Needs,Supported Living
Cambridgeshire County Council,28-Feb-24,51302115149,"1,780.80",E J C GROUP LTD  (EJ CARE),CARE ESTABLISHMENT,LD - Young Adults Team,LD - Young Adults - Special Needs,Supported Living
Cambridgeshire County Council,28-Feb-24,51302115149,"1,780.80",E J C GROUP LTD  (EJ CARE),CARE ESTABLISHMENT,LD - Young Adults Team,LD - Young Adults - Special Needs,Supported Living
Cambridgeshire County Council,28-Feb-24,51302115149,"1,780.80",E J C GROUP LTD  (EJ CARE),CARE ESTABLISHMENT,LD - Young Adults Team,LD - Young Adults - Special Needs,Supported Living
Cambridgeshire County Council,28-Feb-24,51302115149,"1,780.80",E J C GROUP LTD  (EJ CARE),CARE ESTABLISHMENT,LD - Young Adults Team,LD - Young Adults - Special Needs,Supported Living
Cambridgeshire County Council,28-Feb-24,51302115149,"2,655.80",E J C GROUP LTD  (EJ CARE),CARE ESTABLISHMENT,LD - Young Adults Team,LD - Young Adults - Special Needs,Supported Living
Cambridgeshire County Council,28-Feb-24,51302115149,"2,655.80",E J C GROUP LTD  (EJ CARE),CARE ESTABLISHMENT,LD - Young Adults Team,LD - Young Adults - Special Needs,Supported Living
Cambridgeshire County Council,28-Feb-24,51302115149,"2,655.80",E J C GROUP LTD  (EJ CARE),CARE ESTABLISHMENT,LD - Young Adults Team,LD - Young Adults - Special Needs,Supported Living
Cambridgeshire County Council,28-Feb-24,51302115149,"2,655.80",E J C GROUP LTD  (EJ CARE),CARE ESTABLISHMENT,LD - Young Adults Team,LD - Young Adults - Special Needs,Supported Living
Cambridgeshire County Council,28-Feb-24,51302115149,"3,561.60",E J C GROUP LTD  (EJ CARE),CARE ESTABLISHMENT,LD - Young Adults Team,LD - Young Adults - Special Needs,Supported Living
Cambridgeshire County Council,28-Feb-24,51302115149,"3,561.60",E J C GROUP LTD  (EJ CARE),CARE ESTABLISHMENT,LD - Young Adults Team,LD - Young Adults - Special Needs,Supported Living
Cambridgeshire County Council,28-Feb-24,51302115149,"3,561.60",E J C GROUP LTD  (EJ CARE),CARE ESTABLISHMENT,LD - Young Adults Team,LD - Young Adults - Special Needs,Supported Living
Cambridgeshire County Council,28-Feb-24,51302115149,"3,561.60",E J C GROUP LTD  (EJ CARE),CARE ESTABLISHMENT,LD - Young Adults Team,LD - Young Adults - Special Needs,Supported Living
Cambridgeshire County Council,14-Feb-24,51302115347,-904.44,Redacted Personal Data,INDIVIDUAL,OPPD - Cost of Care - East Cambs - Under 65,OPPD - Under 65 - East Cambs,Direct Payments
Cambridgeshire County Council,14-Feb-24,51302115347,-904.44,Redacted Personal Data,INDIVIDUAL,OPPD - Cost of Care - East Cambs - Under 65,OPPD - Under 65 - East Cambs,Direct Payments
Cambridgeshire County Council,14-Feb-24,51302115347,-904.44,Redacted Personal Data,INDIVIDUAL,OPPD - Cost of Care - East Cambs - Under 65,OPPD - Under 65 - East Cambs,Direct Payments
Cambridgeshire County Council,14-Feb-24,51302115347,-904.44,Redacted Personal Data,INDIVIDUAL,OPPD - Cost of Care - East Cambs - Under 65,OPPD - Under 65 - East Cambs,Direct Payments
Cambridgeshire County Council,14-Feb-24,51302115347,904.44,Redacted Personal Data,INDIVIDUAL,OPPD - Cost of Care - East Cambs - Under 65,OPPD - Under 65 - East Cambs,Direct Payments
Cambridgeshire County Council,14-Feb-24,51302115347,904.44,Redacted Personal Data,INDIVIDUAL,OPPD - Cost of Care - East Cambs - Under 65,OPPD - Under 65 - East Cambs,Direct Payments
Cambridgeshire County Council,14-Feb-24,51302115347,904.44,Redacted Personal Data,INDIVIDUAL,OPPD - Cost of Care - East Cambs - Under 65,OPPD - Under 65 - East Cambs,Direct Payments
Cambridgeshire County Council,14-Feb-24,51302115347,904.44,Redacted Personal Data,INDIVIDUAL,OPPD - Cost of Care - East Cambs - Under 65,OPPD - Under 65 - East Cambs,Direct Payments
Cambridgeshire County Council,14-Feb-24,51302115873,-574.45,Redacted Personal Data,SERVICE USER,LD - South Locality - Cost of Care,LD - South Cambs - Care,Direct Payments
Cambridgeshire County Council,14-Feb-24,51302115873,-574.45,Redacted Personal Data,SERVICE USER,LD - South Locality - Cost of Care,LD - South Cambs - Care,Direct Payments
Cambridgeshire County Council,14-Feb-24,51302115873,-574.45,Redacted Personal Data,SERVICE USER,LD - South Locality - Cost of Care,LD - South Cambs - Care,Direct Payments
Cambridgeshire County Council,14-Feb-24,51302115873,-574.45,Redacted Personal Data,SERVICE USER,LD - South Locality - Cost of Care,LD - South Cambs - Care,Direct Payments
Cambridgeshire County Council,21-Feb-24,51302124101,"20,122.96",BALFOUR BEATTY LIVING PLACES LIMITED,COMPANY,Delivering Transport Strategy Aims,MID - Cycling DTSA,Construction - External Professional Fees
Cambridgeshire County Council,02-Feb-24,51302125344,"34,269.25",WSP UK LTD T/A WSP INTEGRATED BUILDING SERVICES,TRADE SUPPLIER,GCP - Milton Rd Bus and Cycling Priority,GCP - Milton Rd Bus and Cycling Priority,Construction - External Professional Fees
Cambridgeshire County Council,07-Feb-24,51302125571,945.50,J & P PLANT LTD,COMPANY,Highways Maintenance,Rights of Way and Access,Right of Ways - scrubs
Cambridgeshire County Council,07-Feb-24,51302125572,"1,045.50",J & P PLANT LTD,COMPANY,Highways Maintenance,Rights of Way and Access,Right of Ways - scrubs
Cambridgeshire County Council,07-Feb-24,51302125573,"1,045.50",J & P PLANT LTD,COMPANY,Highways - Rights of Way,Highways - Rights of Way,ROW Maintenance
Cambridgeshire County Council,07-Feb-24,51302125575,"1,385.50",J & P PLANT LTD,COMPANY,Highways - Rights of Way,Highways - Rights of Way,ROW Maintenance
Cambridgeshire County Council,07-Feb-24,51302125577,785.00,J & P PLANT LTD,COMPANY,Highways - Rights of Way,Highways - Rights of Way,ROW Maintenance
Cambridgeshire County Council,07-Feb-24,51302125584,560.00,J & P PLANT LTD,COMPANY,Highways - Rights of Way,Highways - Rights of Way,ROW Maintenance
Cambridgeshire County Council,14-Feb-24,51302126170,"16,217.50",ATKINS LTD,COMPANY,March Broad Street FHSF/MATS,March Broad Street FHSF/MATS,Construction - External Professional Fees
Cambridgeshire County Council,05-Feb-24,51302127732,"124,163.81",WSP UK Limited,COMPANY,A10 Ely to A14 Improvements - CPCA,A10 Ely to A14 Improvements - CPCA,Construction - External Professional Fees
Cambridgeshire County Council,26-Feb-24,51302128077,900.00,Pathfinder Legal Services Limited,TRADE SUPPLIER,Transforming Cities Fund,TCF - Mill Road,Construction - External Professional Fees
Cambridgeshire County Council,01-Feb-24,51302128608,"1,085.80",RSP LTD,TRADE SUPPLIER,Safeguarding Hunts and Fenland,Family Safeguarding Hunts and Fenland,Concessions - payments to transport operators
Cambridgeshire County Council,02-Feb-24,51302128923,"2,160.00",DJ DAVISON & SONS LTD,TRADE SUPPLIER,Highways Maintenance,Highways Maintenance - Works,Grass Cutting
Cambridgeshire County Council,02-Feb-24,51302129244,"2,312.64",ATKINS LTD,COMPANY,GCP - Cambridge South East (A1307),GCP - Cambridge South East (A1307),Construction - External Professional Fees
Cambridgeshire County Council,02-Feb-24,51302129246,"1,917.27",RED2GREEN,CARE ESTABLISHMENT,SEND High Needs Top Up,High Needs Top Up - Post 16,Independent School Placements
Cambridgeshire County Council,02-Feb-24,51302129280,"196,746.70",Cambridge Meridian Academies Trust,EDUCATION,Swavesey VC site - Martin Bacon satelite,Swavesey VC site - Martin Bacon satelite,"New Construction, Conversion and Renovation"
Cambridgeshire County Council,02-Feb-24,51302129295,"3,955.10",OCS GROUP UK LTD,TRADE SUPPLIER,Parking Enforcement,Bus Route Enforcement,Professional Fees and Hired Services
Cambridgeshire County Council,02-Feb-24,51302129311,"4,992.00",VIVACITY LABS LIMITED,TRADE SUPPLIER,GCP - Smart Cambridge,GCP - Smart Cambridge,Professional Fees and Hired Services
Cambridgeshire County Council,02-Feb-24,51302129323,"12,780.34",KIMBOLTON SCHOOL,EDUCATION,SEND High Needs Top Up,High Needs Top Up - Free Schools,Independent School Placements
Cambridgeshire County Council,02-Feb-24,51302129337,"6,248.93",CAMBRIDGE CITY COUNCIL,OTHER PUBLIC BODIES,Authority-wide Miscellaneous,Council Tax: Counter Fraud & Compliance,Payments to Other Local Authorities
Cambridgeshire County Council,02-Feb-24,51302129348,"68,698.24",OCS GROUP UK LTD,TRADE SUPPLIER,Parking Enforcement,Civil Parking Enforcement,Professional Fees and Hired Services
Cambridgeshire County Council,02-Feb-24,51302129357,"57,124.88",SOFTCAT LTD,TRADE SUPPLIER,ICT Service,ICT Service Sales,Materials for resale
Cambridgeshire County Council,07-Feb-24,51302129629,"64,099.10",CPS Building Services Ltd,COMPANY,Condition Survey Works,St Neots Library PE19 2BH CS22050104,"New Construction, Conversion and Renovation"
Cambridgeshire County Council,02-Feb-24,51302129724,645.20,Amy Burbidge Urban Design,TRADE SUPPLIER,Growth & Development,Quality Charter funding,Professional Fees and Hired Services
Cambridgeshire County Council,05-Feb-24,51302129760,"3,532.32",GREAT GRANSDEN PRE-SCHOOL PLAYGROUP,NURSERY,SEND High Needs Top Up,High Needs Top Up - Early Years,Independent School Placements
Cambridgeshire County Council,05-Feb-24,51302129776,"1,925.00",CAMBRIDGE CITY COUNCIL,OTHER PUBLIC BODIES,Highways Maintenance,Highways Maintenance - Cambridge City,Trees and shrubs
Cambridgeshire County Council,05-Feb-24,51302129778,"4,823.05",NORFOLK COUNTY COUNCIL,OTHER PUBLIC BODIES,LAC Transport,LAC Transport - Home to School,Social Care Transport
Cambridgeshire County Council,05-Feb-24,51302129794,"1,969.20",Frith Resource Management Limited,COMPANY,Waste - RECAP,Waste Recap,Professional Fees and Hired Services
Cambridgeshire County Council,05-Feb-24,51302129814,604.80,CAE Technology Servcies,COMPANY,ICT Service,ICT Service Sales,Materials for resale
Cambridgeshire County Council,02-Feb-24,51302129822,"2,119.68",Macildowie Associates Limited,COMPANY,ASC Workforce,Shared External Workforce Programme,Agency Staff
Cambridgeshire County Council,05-Feb-24,51302129837,"3,603.88",ST LOUIS CATHOLIC ACADEMY,EDUCATION,Recoupment,Other LA Mainstream,Independent School Placements
Cambridgeshire County Council,05-Feb-24,51302129861,"2,207.70",GREAT GRANSDEN PRE-SCHOOL PLAYGROUP,NURSERY,SEND High Needs Top Up,High Needs Top Up - Early Years,Independent School Placements
Cambridgeshire County Council,02-Feb-24,51302129863,"5,621.70",Foxton Recreation Ground Trust,CHARITY,Buildings and Capital,Education Property Strategy Manager,Rents and Leases
Cambridgeshire County Council,02-Feb-24,51302129880,"40,000.00",EAST OF ENGLAND LOCAL GOVERNMENT ASSOCIATION (EELGA),OTHER PUBLIC BODIES,Communities Service,Communities Service,Professional Fees and Hired Services
Cambridgeshire County Council,05-Feb-24,51302129972,"1,150.00",Psychology Direct Ltd,EDUCATION,SEND Specialist Services - Education Psychology,SEND Specialist Services - Education Psychology,Professional Fees and Hired Services
Cambridgeshire County Council,05-Feb-24,51302129988,"7,668.00",Dodd Group (Eastern) Limited,COMPANY,Kitchen Ventilation,Kitchen Ventilation,Buildings - Mechanical and Electrical
Cambridgeshire County Council,09-Feb-24,51302129999,955.32,Pathfinder Legal Services Limited,TRADE SUPPLIER,Corporate Offices,Queen Mary Centre,Professional Fees and Hired Services
Cambridgeshire County Council,09-Feb-24,51302130023,831.12,Pathfinder Legal Services Limited,TRADE SUPPLIER,PD - Guided Busway,MID - Guided Busway,Construction - External Professional Fees
Cambridgeshire County Council,05-Feb-24,51302130029,"10,922.88",ATKINS LTD,COMPANY,GCP Haslingfield Greenway,GCP Haslingfield Greenway,Construction - External Professional Fees
Cambridgeshire County Council,05-Feb-24,51302130046,"9,366.00",Harston and Newton CP School,EDUCATION,SEND High Needs Top Up,High Needs Top Up - Early Years,Independent School Placements
Cambridgeshire County Council,05-Feb-24,51302130081,750.00,Training and Assessment Consultancy Co Ltd,COMPANY,Childrens L&D,Childrens VQ,Professional Fees and Hired Services
Cambridgeshire County Council,05-Feb-24,51302130101,"20,520.00",CACI LIMITED,TRADE SUPPLIER,Educations Systems,Education Systems - SEND system,IT Software
Cambridgeshire County Council,05-Feb-24,51302130106,"1,140.00",Access UK Ltd,TRADE SUPPLIER,Adults Finance Team,Finance Processing,Computer software - purchase
Cambridgeshire County Council,05-Feb-24,51302130192,780.00,1ST REACTION SECURITY LIMITED,TRADE SUPPLIER,Building Maintenance,Redcare Removal,"New Construction, Conversion and Renovation"
Cambridgeshire County Council,05-Feb-24,51302130214,"2,328.12",SC Electrical Contracting Ltd,COMPANY,County Farms,County Farms,County Farms Maintenance
Cambridgeshire County Council,16-Feb-24,51302130220,"1,240.51",J & G GROUNDWORKS & SURFACING,PARTNERSHIP,Bridges,Bridges Works,Fencing
Cambridgeshire County Council,05-Feb-24,51302130274,"2,185.04",Eddisons Commercial Limited,COMPANY,C&CS - Libraries capital,C&CS - Libraries capital,Construction - External Professional Fees
Cambridgeshire County Council,05-Feb-24,51302130277,"1,944.00",Action First Assessments Ltd,COMPANY,Safeguarding - DoLS,Deprivation of Liberty Safeguards,Professional Fees and Hired Services
Cambridgeshire County Council,05-Feb-24,51302130416,"32,471.00",Spring Hill High School,EDUCATION,SEN Placements,Independent Education Placements,Independent School Placements
Cambridgeshire County Council,05-Feb-24,51302130417,"1,191.60",Getech Ltd,EDUCATION,ICT Service,ICT Service Sales,Materials for resale
Cambridgeshire County Council,05-Feb-24,51302130423,"4,492.49",CAMBRIDGE UNIVERSITY HOSPITALS NHS FOUNDATION TRUST,TRUST (OTHER),Coroners,Coroners General,Payments to Other Establishments
Cambridgeshire County Council,09-Feb-24,51302130425,679.68,CAMCAB LTD,TRADE SUPPLIER,RSS - London Road,RSS - London Road,Public Transport Fares
Cambridgeshire County Council,12-Feb-24,51302130634,"2,820.44",VIX TECHNOLOGY UK LIMITED,COMPANY,GCP - Milton Rd Bus and Cycling Priority,GCP - Milton Rd Bus and Cycling Priority,Construction - External Professional Fees
Cambridgeshire County Council,05-Feb-24,51302130644,"12,624.19",ATKINS LTD,COMPANY,GCP St.Ives Greenway,GCP St.Ives Greenway,Construction - External Professional Fees
Cambridgeshire County Council,05-Feb-24,51302130657,"2,512.00",CAMBRIDGE KIDS CLUB LTD,NURSERY,Early Years Specialist Support,SEND - Childcare Access Funding,Independent School Placements
Cambridgeshire County Council,05-Feb-24,51302130658,549.50,CAMBRIDGE KIDS CLUB LTD,NURSERY,Early Years Specialist Support,SEND - Childcare Access Funding,Independent School Placements
Cambridgeshire County Council,05-Feb-24,51302130670,"20,674.49",CAMBRIDGE UNIVERSITY HOSPITALS NHS FOUNDATION TRUST,TRUST (OTHER),Coroners,Coroners General,Payments to Other Establishments
Cambridgeshire County Council,05-Feb-24,51302130671,916.63,CAMBRIDGE UNIVERSITY HOSPITALS NHS FOUNDATION TRUST,TRUST (OTHER),Coroners,Coroners General,Payments to Other Establishments
Cambridgeshire County Council,05-Feb-24,51302130746,"1,284.42",Anglian Learning- Icknield Primary School,EDUCATION,SEND Specialist Services,Equipment (mainstream),Equipment and Tools - Hire
Cambridgeshire County Council,05-Feb-24,51302130822,"1,728.00",C JACKSON & SONS (BEDFORD) LTD,COMPANY,Capital Receipts Expenses,Capital Receipts Expenses,Professional Fees and Hired Services
Cambridgeshire County Council,09-Feb-24,51302130824,"1,901.26",P WOODS CONSTRUCTION LTD,COMPANY,"School Condition, Maintenance & Suitability","School Condition, Maintenance & Suitability","New Construction, Conversion and Renovation"
Cambridgeshire County Council,09-Feb-24,51302130828,848.60,CHS GROUP,CARE ESTABLISHMENT,Mental Health Commissioning,Mental Health Commissioning,Residential Care - Property Voids
Cambridgeshire County Council,05-Feb-24,51302131830,"1,200.00",Scott King - Section 31 Training and Consultancy Ltd,EDUCATION,Virtual School,Virtual School LACPP Financing,Professional Fees and Hired Services
Cambridgeshire County Council,05-Feb-24,51302131849,"2,015.64",CAMBRIDGE CITY COUNCIL,OTHER PUBLIC BODIES,GCP - Communications,GCP - Strategic Communications,Staffing Recharges - External
Cambridgeshire County Council,07-Feb-24,51302131854,"2,520.00",DJ DAVISON & SONS LTD,TRADE SUPPLIER,Highways - Rights of Way,Highways - Rights of Way,ROW Maintenance
Cambridgeshire County Council,05-Feb-24,51302131858,669.60,WSP UK Limited,COMPANY,Waste - HWRC,Waste � Household Recycling Centre (HRC) Improvements,Construction - External Professional Fees
Cambridgeshire County Council,02-Feb-24,51302131861,"3,643.80",WSP UK Limited,COMPANY,Waste - HWRC,Waste � Household Recycling Centre (HRC) Improvements,Construction - External Professional Fees
Cambridgeshire County Council,07-Feb-24,51302131869,"5,509.40",KIMBOLTON SCHOOL,EDUCATION,SEND High Needs Top Up,High Needs Top Up - Free Schools,Independent School Placements
Cambridgeshire County Council,07-Feb-24,51302131876,"5,760.00",C JACKSON & SONS (BEDFORD) LTD,COMPANY,Health & Safety,POD - Health & Safety,Professional Fees and Hired Services
Cambridgeshire County Council,07-Feb-24,51302131880,825.00,RAW Creative Design Ltd,TRADE SUPPLIER,Communication and Information,Communication and Information,Professional Fees and Hired Services
Cambridgeshire County Council,07-Feb-24,51302131892,881.78,BENWICK VILLAGE HALL,LOCAL CLUBS & GROUPS,Buildings and Capital,Education Property Strategy Manager,Rents and Leases
Cambridgeshire County Council,07-Feb-24,51302131902,"15,240.00",C JACKSON & SONS (BEDFORD) LTD,COMPANY,Health & Safety,POD - Health & Safety,Professional Fees and Hired Services
Cambridgeshire County Council,02-Feb-24,51302131906,"3,332.00",KEN TURNER,SOLETRADER,Highways - Rights of Way,Highways - Rights of Way,Highways - Bridges
Cambridgeshire County Council,09-Feb-24,51302131909,"2,520.00",D LINE MARKINGS LTD,TRADE SUPPLIER,Highways - Carriageway Mtce,Highways - Carriageway Mtce,Highway - Resurfacing
Cambridgeshire County Council,07-Feb-24,51302131911,541.45,RED BALLOON LEARNER CENTRE CAMBRIDGE,EDUCATION,SEN Placements,Independent Education Placements,Independent School Placements
Cambridgeshire County Council,21-Feb-24,51302131916,660.75,MOTION CLEANING MACHINES LTD,COMPANY,Winter Maintenance,Central Winter Maintenance,Building Repair and Maintenance
Cambridgeshire County Council,21-Feb-24,51302131917,596.35,MOTION CLEANING MACHINES LTD,COMPANY,Winter Maintenance,Central Winter Maintenance,Building Repair and Maintenance
Cambridgeshire County Council,05-Feb-24,51302131918,"1,146.00",EDGE SERVICES,TRADE SUPPLIER,L&D Team,L&D Team,Staff Training & Development
Cambridgeshire County Council,07-Feb-24,51302131928,"9,553.51",ATKINS LTD,COMPANY,GCP - Smart Cambridge,GCP - Smart Cambridge,Consultancy
Cambridgeshire County Council,05-Feb-24,51302131990,"3,898.96",St John's College School,EDUCATION,SEND High Needs Top Up,High Needs Top Up - Free Schools,Independent School Placements
Cambridgeshire County Council,05-Feb-24,51302131991,"1,907.10",St John's College School,EDUCATION,SEND High Needs Top Up,High Needs Top Up - Free Schools,Independent School Placements
Cambridgeshire County Council,28-Feb-24,51302132059,"1,272.00",E J C GROUP LTD  (EJ CARE),CARE ESTABLISHMENT,LD - Young Adults Team,LD - Young Adults - Special Needs,Supported Living
Cambridgeshire County Council,28-Feb-24,51302132059,"1,780.80",E J C GROUP LTD  (EJ CARE),CARE ESTABLISHMENT,LD - Young Adults Team,LD - Young Adults - Special Needs,Supported Living
Cambridgeshire County Council,28-Feb-24,51302132059,"2,655.80",E J C GROUP LTD  (EJ CARE),CARE ESTABLISHMENT,LD - Young Adults Team,LD - Young Adults - Special Needs,Supported Living
Cambridgeshire County Council,28-Feb-24,51302132059,"2,655.80",E J C GROUP LTD  (EJ CARE),CARE ESTABLISHMENT,LD - Young Adults Team,LD - Young Adults - Special Needs,Supported Living
Cambridgeshire County Council,28-Feb-24,51302132059,"2,655.80",E J C GROUP LTD  (EJ CARE),CARE ESTABLISHMENT,LD - Young Adults Team,LD - Young Adults - Special Needs,Supported Living
Cambridgeshire County Council,28-Feb-24,51302132059,"2,655.80",E J C GROUP LTD  (EJ CARE),CARE ESTABLISHMENT,LD - Young Adults Team,LD - Young Adults - Special Needs,Supported Living
Cambridgeshire County Council,28-Feb-24,51302132059,"3,561.60",E J C GROUP LTD  (EJ CARE),CARE ESTABLISHMENT,LD - Young Adults Team,LD - Young Adults - Special Needs,Supported Living
Cambridgeshire County Council,28-Feb-24,51302132059,"3,561.60",E J C GROUP LTD  (EJ CARE),CARE ESTABLISHMENT,LD - Young Adults Team,LD - Young Adults - Special Needs,Supported Living
Cambridgeshire County Council,28-Feb-24,51302132059,"3,561.60",E J C GROUP LTD  (EJ CARE),CARE ESTABLISHMENT,LD - Young Adults Team,LD - Young Adults - Special Needs,Supported Living
Cambridgeshire County Council,28-Feb-24,51302132059,"3,561.60",E J C GROUP LTD  (EJ CARE),CARE ESTABLISHMENT,LD - Young Adults Team,LD - Young Adults - Special Needs,Supported Living
Cambridgeshire County Council,14-Feb-24,51302132471,-574.45,Redacted Personal Data,SERVICE USER,LD - South Locality - Cost of Care,LD - South Cambs - Care,Direct Payments
Cambridgeshire County Council,14-Feb-24,51302132471,-574.45,Redacted Personal Data,SERVICE USER,LD - South Locality - Cost of Care,LD - South Cambs - Care,Direct Payments
Cambridgeshire County Council,14-Feb-24,51302132471,-574.45,Redacted Personal Data,SERVICE USER,LD - South Locality - Cost of Care,LD - South Cambs - Care,Direct Payments
Cambridgeshire County Council,14-Feb-24,51302132471,-574.45,Redacted Personal Data,SERVICE USER,LD - South Locality - Cost of Care,LD - South Cambs - Care,Direct Payments
Cambridgeshire County Council,14-Feb-24,51302133122,-904.44,Redacted Personal Data,INDIVIDUAL,OPPD - Cost of Care - East Cambs - Under 65,OPPD - Under 65 - East Cambs,Direct Payments
Cambridgeshire County Council,14-Feb-24,51302133122,-904.44,Redacted Personal Data,INDIVIDUAL,OPPD - Cost of Care - East Cambs - Under 65,OPPD - Under 65 - East Cambs,Direct Payments
Cambridgeshire County Council,14-Feb-24,51302133122,-904.44,Redacted Personal Data,INDIVIDUAL,OPPD - Cost of Care - East Cambs - Under 65,OPPD - Under 65 - East Cambs,Direct Payments
Cambridgeshire County Council,14-Feb-24,51302133122,-904.44,Redacted Personal Data,INDIVIDUAL,OPPD - Cost of Care - East Cambs - Under 65,OPPD - Under 65 - East Cambs,Direct Payments
Cambridgeshire County Council,14-Feb-24,51302133122,904.44,Redacted Personal Data,INDIVIDUAL,OPPD - Cost of Care - East Cambs - Under 65,OPPD - Under 65 - East Cambs,Direct Payments
Cambridgeshire County Council,14-Feb-24,51302133122,904.44,Redacted Personal Data,INDIVIDUAL,OPPD - Cost of Care - East Cambs - Under 65,OPPD - Under 65 - East Cambs,Direct Payments
Cambridgeshire County Council,14-Feb-24,51302133122,904.44,Redacted Personal Data,INDIVIDUAL,OPPD - Cost of Care - East Cambs - Under 65,OPPD - Under 65 - East Cambs,Direct Payments
Cambridgeshire County Council,14-Feb-24,51302133122,904.44,Redacted Personal Data,INDIVIDUAL,OPPD - Cost of Care - East Cambs - Under 65,OPPD - Under 65 - East Cambs,Direct Payments
Cambridgeshire County Council,09-Feb-24,51302134258,-567.27,CHS GROUP,CARE ESTABLISHMENT,OPPD - Cost of Care - City South - Over 65,Older People - City & South - Care,Domiciliary Care
Cambridgeshire County Council,09-Feb-24,51302134258,-567.27,CHS GROUP,CARE ESTABLISHMENT,OPPD - Cost of Care - City South - Over 65,Older People - City & South - Care,Domiciliary Care
Cambridgeshire County Council,09-Feb-24,51302134258,-567.27,CHS GROUP,CARE ESTABLISHMENT,OPPD - Cost of Care - City South - Over 65,Older People - City & South - Care,Domiciliary Care
Cambridgeshire County Council,09-Feb-24,51302134258,-567.27,CHS GROUP,CARE ESTABLISHMENT,OPPD - Cost of Care - City South - Over 65,Older People - City & South - Care,Domiciliary Care
Cambridgeshire County Council,09-Feb-24,51302134258,-567.27,CHS GROUP,CARE ESTABLISHMENT,OPPD - Cost of Care - City South - Over 65,Older People - City & South - Care,Domiciliary Care
Cambridgeshire County Council,09-Feb-24,51302134258,-567.27,CHS GROUP,CARE ESTABLISHMENT,OPPD - Cost of Care - City South - Over 65,Older People - City & South - Care,Domiciliary Care
Cambridgeshire County Council,09-Feb-24,51302134258,-567.27,CHS GROUP,CARE ESTABLISHMENT,OPPD - Cost of Care - City South - Over 65,Older People - City & South - Care,Domiciliary Care
Cambridgeshire County Council,09-Feb-24,51302134258,-567.27,CHS GROUP,CARE ESTABLISHMENT,OPPD - Cost of Care - City South - Over 65,Older People - City & South - Care,Domiciliary Care
Cambridgeshire County Council,09-Feb-24,51302134258,-567.27,CHS GROUP,CARE ESTABLISHMENT,OPPD - Cost of Care - City South - Over 65,Older People - City & South - Care,Domiciliary Care
Cambridgeshire County Council,09-Feb-24,51302134258,-567.27,CHS GROUP,CARE ESTABLISHMENT,OPPD - Cost of Care - City South - Over 65,Older People - City & South - Care,Domiciliary Care
Cambridgeshire County Council,09-Feb-24,51302134258,-567.27,CHS GROUP,CARE ESTABLISHMENT,OPPD - Cost of Care - City South - Over 65,Older People - City & South - Care,Domiciliary Care
Cambridgeshire County Council,05-Feb-24,51302134305,"5,509.40",St John's College School,EDUCATION,SEND High Needs Top Up,High Needs Top Up - Free Schools,Independent School Placements
Cambridgeshire County Council,05-Feb-24,51302134306,"5,509.40",St John's College School,EDUCATION,SEND High Needs Top Up,High Needs Top Up - Free Schools,Independent School Placements
Cambridgeshire County Council,05-Feb-24,51302134307,"5,085.60",St John's College School,EDUCATION,SEND High Needs Top Up,High Needs Top Up - Free Schools,Independent School Placements
Cambridgeshire County Council,05-Feb-24,51302134334,"68,534.06",BOUYGUES EES FM UK LTD,COMPANY,Community Energy Projects - School's Loans,Comberton Village College - Energy Investment Project,Consultancy
Cambridgeshire County Council,02-Feb-24,51302134338,"8,706.00",Hazelton Advisory Ltd,COMPANY,Waste Disposal incl PFI,Waste PFI,Professional Fees and Hired Services
Cambridgeshire County Council,02-Feb-24,51302134384,"11,023.55",Infinigate Cloud UK Ltd,COMPANY,ICT Service,ICT Service Technical Support,Computer software - purchase
Cambridgeshire County Council,05-Feb-24,51302134406,"2,422.20",Urban Movement Limited (John Dales),COMPANY,Growth & Development,Quality Charter funding,Professional Fees and Hired Services
Cambridgeshire County Council,05-Feb-24,51302134407,"14,001.36",UNIVERSITY HOSPITALS OF LEICESTER NHS TRUST,TRUST (OTHER),Coroners,Coroners General,Testing
Cambridgeshire County Council,09-Feb-24,51302134421,804.11,Conduent Public Sector LTD,TRADE SUPPLIER,Parking Enforcement,On Street Parking,Professional Fees and Hired Services
Cambridgeshire County Council,09-Feb-24,51302134422,"1,167.48",Conduent Public Sector LTD,TRADE SUPPLIER,Parking Enforcement,Bus Route Enforcement,Professional Fees and Hired Services
Cambridgeshire County Council,09-Feb-24,51302134424,"1,780.44",Conduent Public Sector LTD,TRADE SUPPLIER,Parking Enforcement,Civil Parking Enforcement,Professional Fees and Hired Services
Cambridgeshire County Council,09-Feb-24,51302134438,535.10,Conduent Public Sector LTD,TRADE SUPPLIER,Parking Enforcement,Bus Route Enforcement,Professional Fees and Hired Services
Cambridgeshire County Council,07-Feb-24,51302134440,"4,226.47",CAMBRIDGE CITY COUNCIL,OTHER PUBLIC BODIES,Park & Ride Parking,Drummer Street,Grounds Maintenance
Cambridgeshire County Council,05-Feb-24,51302134451,"1,150.00",Psychology Direct Ltd,EDUCATION,SEND Specialist Services - Education Psychology,SEND Specialist Services - Education Psychology,Professional Fees and Hired Services
Cambridgeshire County Council,05-Feb-24,51302134458,"1,360.00",Edu-Lettings,COMPANY,Disability Clubs,CamPlay Holiday Clubs,Casual hire of facilities
Cambridgeshire County Council,26-Feb-24,51302134460,"2,476.67",CAMBRIDGE CITY COUNCIL,OTHER PUBLIC BODIES,GCP - Operations,GCP - Programme Central Co-ordination,Rents and Leases
Cambridgeshire County Council,09-Feb-24,51302134463,690.05,RELIANCE HIGH TECH LIMITED,TRADE SUPPLIER,Youth Offending Service,YOT Project,Security Equipment
Cambridgeshire County Council,05-Feb-24,51302134467,"6,360.00",Global Mediation Ltd,COMPANY,Mediation,Mediation,Professional Fees and Hired Services
Cambridgeshire County Council,07-Feb-24,51302134471,"1,102.67",SC Electrical Contracting Ltd,COMPANY,County Farms,County Farms,County Farms Maintenance
Cambridgeshire County Council,09-Feb-24,51302134482,"17,280.00",C JACKSON & SONS (BEDFORD) LTD,COMPANY,Health & Safety,POD - Health & Safety,Professional Fees and Hired Services
Cambridgeshire County Council,05-Feb-24,51302134496,"25,750.00",WILDS LODGE SCHOOL LTD,EDUCATION,SEN Placements,Independent Education Placements,Independent School Placements
Cambridgeshire County Council,23-Feb-24,51302134578,-656.00,Redacted Personal Data,INDIVIDUAL,Fostering,FCP allowances,Childrens Lodgings
Cambridgeshire County Council,09-Feb-24,51302134645,"1,788.00",Jackson Environmental Ltd,COMPANY,County Farms,County Farms,County Farms Maintenance unplanned
Cambridgeshire County Council,09-Feb-24,51302134647,"4,425.00",Rees Foundation,EDUCATION,L&D Team,Children's Development Academy,Staff Training & Development
Cambridgeshire County Council,09-Feb-24,51302134650,518.40,CAE Technology Servcies,COMPANY,ICT Service,ICT Service Sales,Materials for resale
Cambridgeshire County Council,09-Feb-24,51302134661,"13,865.37",AGE UK CAMBRIDGESHIRE,CHARITY,Anti-Poverty,Household Support Fund Grant,Grants
Cambridgeshire County Council,02-Feb-24,51302134671,"2,555.58",Cathedral View Childcare,NURSERY,SEND High Needs Top Up,High Needs Top Up - Early Years,Independent School Placements
Cambridgeshire County Council,14-Feb-24,51302136215,"1,114.35",LONGUEVILLE COURT,CARE ESTABLISHMENT,OPPD - Cost of Care - Huntingdon - Over 65,Hunts OP Team - Care,Nursing Care
Cambridgeshire County Council,14-Feb-24,51302136215,"1,114.35",LONGUEVILLE COURT,CARE ESTABLISHMENT,OPPD - Cost of Care - Huntingdon - Over 65,Hunts OP Team - Care,Nursing Care
Cambridgeshire County Council,14-Feb-24,51302136215,"1,114.35",LONGUEVILLE COURT,CARE ESTABLISHMENT,OPPD - Cost of Care - Huntingdon - Over 65,Hunts OP Team - Care,Nursing Care
Cambridgeshire County Council,14-Feb-24,51302136215,"1,114.35",LONGUEVILLE COURT,CARE ESTABLISHMENT,OPPD - Cost of Care - Huntingdon - Over 65,Hunts OP Team - Care,Nursing Care
Cambridgeshire County Council,14-Feb-24,51302136348,"-1,141.29",LONGUEVILLE COURT,CARE ESTABLISHMENT,OPPD - Cost of Care - Huntingdon - Under 65,OPPD - Under 65 - Huntingdon,Nursing Care
Cambridgeshire County Council,14-Feb-24,51302136348,"-1,141.29",LONGUEVILLE COURT,CARE ESTABLISHMENT,OPPD - Cost of Care - Huntingdon - Under 65,OPPD - Under 65 - Huntingdon,Nursing Care
Cambridgeshire County Council,14-Feb-24,51302136348,"-1,141.29",LONGUEVILLE COURT,CARE ESTABLISHMENT,OPPD - Cost of Care - Huntingdon - Under 65,OPPD - Under 65 - Huntingdon,Nursing Care
Cambridgeshire County Council,14-Feb-24,51302136348,"-1,141.29",LONGUEVILLE COURT,CARE ESTABLISHMENT,OPPD - Cost of Care - Huntingdon - Under 65,OPPD - Under 65 - Huntingdon,Nursing Care
Cambridgeshire County Council,14-Feb-24,51302136348,"-1,141.29",LONGUEVILLE COURT,CARE ESTABLISHMENT,OPPD - Cost of Care - Huntingdon - Under 65,OPPD - Under 65 - Huntingdon,Nursing Care
Cambridgeshire County Council,14-Feb-24,51302136348,-652.17,LONGUEVILLE COURT,CARE ESTABLISHMENT,OPPD - Cost of Care - Huntingdon - Under 65,OPPD - Under 65 - Huntingdon,Nursing Care
Cambridgeshire County Council,29-Feb-24,51302136381,"446,535.10",TOTALENERGIES GAS AND POWER LTD,TRADE SUPPLIER,Authority-wide Miscellaneous,Gas & Electricity Bills Recharges,Electricity
Cambridgeshire County Council,12-Feb-24,51302136382,"4,500.00",ANGLIA RUSKIN UNIVERSITY,EDUCATION,Workforce Development,Practice Learning,Professional Fees and Hired Services
Cambridgeshire County Council,05-Feb-24,51302136389,"4,176.55",MARSHLAND HIGH SCHOOL,EDUCATION,SEND - PEX support,SEND - Support for PEX without EHCP,Professional Fees and Hired Services
Cambridgeshire County Council,12-Feb-24,51302136626,"1,750.00",Cheryl Henry-Leach,SOLETRADER,Domestic Violence & Sexual Violence,Domestic Homicide Reviews,Contributions to partnerships
Cambridgeshire County Council,09-Feb-24,51302136660,"2,649.60",Macildowie Associates Limited,COMPANY,ASC Workforce,Shared External Workforce Programme,Agency Staff
Cambridgeshire County Council,12-Feb-24,51302136662,900.00,SUMMERS-INMAN CONSTRUCTION & PROPERTY CONSULTANTS LLP,EDUCATION,"School Condition, Maintenance & Suitability","School Condition, Maintenance & Suitability",Construction - External Professional Fees
Cambridgeshire County Council,09-Feb-24,51302136663,"3,437.83",SWARCO UK & Ireland Ltd,COMPANY,Signals,Signals (VAS),Traffic Signs and Lines Maintenance
Cambridgeshire County Council,14-Feb-24,51302136664,"28,214.98",VIX TECHNOLOGY UK LIMITED,COMPANY,St Ives Local Improvement Scheme,St Ives Local Improvement Scheme,Construction - External Professional Fees
Cambridgeshire County Council,12-Feb-24,51302136668,"1,680.00",WS TRAINING LIMITED,TRADE SUPPLIER,Permitting,Streetworks Permit Scheme,Staff Training & Development
Cambridgeshire County Council,05-Feb-24,51302136677,"17,313.94",ATKINS LTD,COMPANY,GCP Waterbeach Greenway,GCP Waterbeach Greenway,Construction - External Professional Fees
Cambridgeshire County Council,05-Feb-24,51302136698,"1,042.38",AG FAMILY SUPPORT LTD,COMPANY,Contact,Contact Relief,Professional Fees and Hired Services
Cambridgeshire County Council,05-Feb-24,51302136699,"1,006.56",AG FAMILY SUPPORT LTD,COMPANY,Contact,Contact Relief,Professional Fees and Hired Services
Cambridgeshire County Council,05-Feb-24,51302136700,"1,200.00",Pherus Healthcare Limited,COMPANY,Coroners,Coroners General,Professional Fees and Hired Services
Cambridgeshire County Council,05-Feb-24,51302136703,907.31,WATERBEACH CP SCHOOL,EDUCATION,Corporate Offices,Milton & Waterbech Children's Centre,Service Charges
Cambridgeshire County Council,05-Feb-24,51302136708,"1,645.84",ENTERPRISE FLEX-E-RENT,TRADE SUPPLIER,Corporate Offices,Pool Cars,Leased Vehicle Costs
Cambridgeshire County Council,12-Feb-24,51302136710,"150,000.00",SOUTH CAMBRIDGESHIRE DISTRICT COUNCIL,OTHER PUBLIC BODIES,PH Other Health Improvement,Gen prev activities - Health -  Workplace,Professional Fees and Hired Services
Cambridgeshire County Council,02-Feb-24,51302136713,"4,238.00",THE PERSE SCHOOL,EDUCATION,SEND High Needs Top Up,High Needs Top Up - Free Schools,Independent School Placements
Cambridgeshire County Council,07-Feb-24,51302136715,728.87,ESPO,TRADE SUPPLIER,Grafham Water,Grafham Water Centre,Gas
Cambridgeshire County Council,12-Feb-24,51302136717,"1,186.00",CLANPRESS (KINGS LYNN) LTD,TRADE SUPPLIER,Libraries - Development,Library Development Team,Printing
Cambridgeshire County Council,09-Feb-24,51302136721,"101,223.00",SCC Specialist Computer Centre,COMPANY,Corporate IT Managed,MFD Recharges,Computer hardware - purchase
Cambridgeshire County Council,09-Feb-24,51302136723,"11,320.56",SCC Specialist Computer Centre,COMPANY,Corporate IT Managed,MFD Recharges,Computer hardware - purchase
Cambridgeshire County Council,09-Feb-24,51302136747,"13,380.00",CYCLE WORKS LTD,TRADE SUPPLIER,Emergency Active Travel Fund,Emergency Active Travel Fund,Construction - External Professional Fees
Cambridgeshire County Council,09-Feb-24,51302136771,"24,057.48",SWARCO UK & Ireland Ltd,COMPANY,Signals,Signals Works,Traffic Signs and Lines Maintenance
Cambridgeshire County Council,12-Feb-24,51302136772,"36,087.02",SWARCO UK & Ireland Ltd,COMPANY,Highways - Traffic Signals,Highways - Traffic Signals,Highways - Traffic Mgt Systems
Cambridgeshire County Council,12-Feb-24,51302136777,"8,239.68",ENTERPRISE RENT-A-CAR UK LTD,TRADE SUPPLIER,Corporate Offices,Pool Cars,Leased Vehicle Costs
Cambridgeshire County Council,14-Feb-24,51302139343,"-1,323.63",AFFINITY TRUST,CARE ESTABLISHMENT,LD - Young Adults Team,LD - Young Adults - Care,Domiciliary Care
Cambridgeshire County Council,14-Feb-24,51302139343,"-1,323.63",AFFINITY TRUST,CARE ESTABLISHMENT,LD - Young Adults Team,LD - Young Adults - Care,Domiciliary Care
Cambridgeshire County Council,14-Feb-24,51302139343,"-1,323.63",AFFINITY TRUST,CARE ESTABLISHMENT,LD - Young Adults Team,LD - Young Adults - Care,Domiciliary Care
Cambridgeshire County Council,14-Feb-24,51302139343,"-1,323.63",AFFINITY TRUST,CARE ESTABLISHMENT,LD - Young Adults Team,LD - Young Adults - Care,Domiciliary Care
Cambridgeshire County Council,14-Feb-24,51302139343,"-1,323.63",AFFINITY TRUST,CARE ESTABLISHMENT,LD - Young Adults Team,LD - Young Adults - Care,Domiciliary Care
Cambridgeshire County Council,14-Feb-24,51302139343,"-1,323.63",AFFINITY TRUST,CARE ESTABLISHMENT,LD - Young Adults Team,LD - Young Adults - Care,Domiciliary Care
Cambridgeshire County Council,14-Feb-24,51302139343,"-1,323.63",AFFINITY TRUST,CARE ESTABLISHMENT,LD - Young Adults Team,LD - Young Adults - Care,Domiciliary Care
Cambridgeshire County Council,14-Feb-24,51302139343,"-1,323.63",AFFINITY TRUST,CARE ESTABLISHMENT,LD - Young Adults Team,LD - Young Adults - Care,Domiciliary Care
Cambridgeshire County Council,14-Feb-24,51302139343,"-1,323.63",AFFINITY TRUST,CARE ESTABLISHMENT,LD - Young Adults Team,LD - Young Adults - Care,Domiciliary Care
Cambridgeshire County Council,14-Feb-24,51302139343,"-1,323.63",AFFINITY TRUST,CARE ESTABLISHMENT,LD - Young Adults Team,LD - Young Adults - Care,Domiciliary Care
Cambridgeshire County Council,14-Feb-24,51302139343,"-1,323.63",AFFINITY TRUST,CARE ESTABLISHMENT,LD - Young Adults Team,LD - Young Adults - Care,Domiciliary Care
Cambridgeshire County Council,14-Feb-24,51302139343,"-1,323.63",AFFINITY TRUST,CARE ESTABLISHMENT,LD - Young Adults Team,LD - Young Adults - Care,Domiciliary Care
Cambridgeshire County Council,14-Feb-24,51302139343,"-1,323.63",AFFINITY TRUST,CARE ESTABLISHMENT,LD - Young Adults Team,LD - Young Adults - Care,Domiciliary Care
Cambridgeshire County Council,14-Feb-24,51302139343,"-1,323.63",AFFINITY TRUST,CARE ESTABLISHMENT,LD - Young Adults Team,LD - Young Adults - Care,Domiciliary Care
Cambridgeshire County Council,14-Feb-24,51302139343,"-1,323.63",AFFINITY TRUST,CARE ESTABLISHMENT,LD - Young Adults Team,LD - Young Adults - Care,Domiciliary Care
Cambridgeshire County Council,14-Feb-24,51302139343,"-1,323.63",AFFINITY TRUST,CARE ESTABLISHMENT,LD - Young Adults Team,LD - Young Adults - Care,Domiciliary Care
Cambridgeshire County Council,14-Feb-24,51302139343,"-1,323.63",AFFINITY TRUST,CARE ESTABLISHMENT,LD - Young Adults Team,LD - Young Adults - Care,Domiciliary Care
Cambridgeshire County Council,14-Feb-24,51302139343,"-1,323.63",AFFINITY TRUST,CARE ESTABLISHMENT,LD - Young Adults Team,LD - Young Adults - Care,Domiciliary Care
Cambridgeshire County Council,14-Feb-24,51302139343,"-1,323.63",AFFINITY TRUST,CARE ESTABLISHMENT,LD - Young Adults Team,LD - Young Adults - Care,Domiciliary Care
Cambridgeshire County Council,14-Feb-24,51302139343,"-1,323.63",AFFINITY TRUST,CARE ESTABLISHMENT,LD - Young Adults Team,LD - Young Adults - Care,Domiciliary Care
Cambridgeshire County Council,14-Feb-24,51302139343,"-1,323.63",AFFINITY TRUST,CARE ESTABLISHMENT,LD - Young Adults Team,LD - Young Adults - Care,Domiciliary Care
Cambridgeshire County Council,14-Feb-24,51302139343,"-1,323.63",AFFINITY TRUST,CARE ESTABLISHMENT,LD - Young Adults Team,LD - Young Adults - Care,Domiciliary Care
Cambridgeshire County Council,14-Feb-24,51302139343,"-1,323.63",AFFINITY TRUST,CARE ESTABLISHMENT,LD - Young Adults Team,LD - Young Adults - Care,Domiciliary Care
Cambridgeshire County Council,14-Feb-24,51302139343,"-1,323.63",AFFINITY TRUST,CARE ESTABLISHMENT,LD - Young Adults Team,LD - Young Adults - Care,Domiciliary Care
Cambridgeshire County Council,14-Feb-24,51302139343,"-1,323.63",AFFINITY TRUST,CARE ESTABLISHMENT,LD - Young Adults Team,LD - Young Adults - Care,Domiciliary Care
Cambridgeshire County Council,14-Feb-24,51302139343,"-1,323.63",AFFINITY TRUST,CARE ESTABLISHMENT,LD - Young Adults Team,LD - Young Adults - Care,Domiciliary Care
Cambridgeshire County Council,14-Feb-24,51302139343,"-1,323.63",AFFINITY TRUST,CARE ESTABLISHMENT,LD - Young Adults Team,LD - Young Adults - Care,Domiciliary Care
Cambridgeshire County Council,14-Feb-24,51302139343,"-1,323.63",AFFINITY TRUST,CARE ESTABLISHMENT,LD - Young Adults Team,LD - Young Adults - Care,Domiciliary Care
Cambridgeshire County Council,14-Feb-24,51302139343,"-1,323.63",AFFINITY TRUST,CARE ESTABLISHMENT,LD - Young Adults Team,LD - Young Adults - Care,Domiciliary Care
Cambridgeshire County Council,14-Feb-24,51302139343,"-1,323.63",AFFINITY TRUST,CARE ESTABLISHMENT,LD - Young Adults Team,LD - Young Adults - Care,Domiciliary Care
Cambridgeshire County Council,14-Feb-24,51302139343,"-1,323.63",AFFINITY TRUST,CARE ESTABLISHMENT,LD - Young Adults Team,LD - Young Adults - Care,Domiciliary Care
Cambridgeshire County Council,14-Feb-24,51302139343,"-1,323.63",AFFINITY TRUST,CARE ESTABLISHMENT,LD - Young Adults Team,LD - Young Adults - Care,Domiciliary Care
Cambridgeshire County Council,14-Feb-24,51302139343,"-1,323.63",AFFINITY TRUST,CARE ESTABLISHMENT,LD - Young Adults Team,LD - Young Adults - Care,Domiciliary Care
Cambridgeshire County Council,14-Feb-24,51302139343,"-1,323.63",AFFINITY TRUST,CARE ESTABLISHMENT,LD - Young Adults Team,LD - Young Adults - Care,Domiciliary Care
Cambridgeshire County Council,14-Feb-24,51302139343,871.92,AFFINITY TRUST,CARE ESTABLISHMENT,LD - Young Adults Team,LD - Young Adults - Care,Domiciliary Care
Cambridgeshire County Council,14-Feb-24,51302139343,871.92,AFFINITY TRUST,CARE ESTABLISHMENT,LD - Young Adults Team,LD - Young Adults - Care,Domiciliary Care
Cambridgeshire County Council,14-Feb-24,51302139343,871.92,AFFINITY TRUST,CARE ESTABLISHMENT,LD - Young Adults Team,LD - Young Adults - Care,Domiciliary Care
Cambridgeshire County Council,14-Feb-24,51302139343,871.92,AFFINITY TRUST,CARE ESTABLISHMENT,LD - Young Adults Team,LD - Young Adults - Care,Domiciliary Care
Cambridgeshire County Council,14-Feb-24,51302139343,871.92,AFFINITY TRUST,CARE ESTABLISHMENT,LD - Young Adults Team,LD - Young Adults - Care,Domiciliary Care
Cambridgeshire County Council,14-Feb-24,51302139343,871.92,AFFINITY TRUST,CARE ESTABLISHMENT,LD - Young Adults Team,LD - Young Adults - Care,Domiciliary Care
Cambridgeshire County Council,14-Feb-24,51302139343,871.92,AFFINITY TRUST,CARE ESTABLISHMENT,LD - Young Adults Team,LD - Young Adults - Care,Domiciliary Care
Cambridgeshire County Council,14-Feb-24,51302139343,871.92,AFFINITY TRUST,CARE ESTABLISHMENT,LD - Young Adults Team,LD - Young Adults - Care,Domiciliary Care
Cambridgeshire County Council,14-Feb-24,51302139343,871.92,AFFINITY TRUST,CARE ESTABLISHMENT,LD - Young Adults Team,LD - Young Adults - Care,Domiciliary Care
Cambridgeshire County Council,14-Feb-24,51302139343,871.92,AFFINITY TRUST,CARE ESTABLISHMENT,LD - Young Adults Team,LD - Young Adults - Care,Domiciliary Care
Cambridgeshire County Council,14-Feb-24,51302139343,871.92,AFFINITY TRUST,CARE ESTABLISHMENT,LD - Young Adults Team,LD - Young Adults - Care,Domiciliary Care
Cambridgeshire County Council,14-Feb-24,51302139343,871.92,AFFINITY TRUST,CARE ESTABLISHMENT,LD - Young Adults Team,LD - Young Adults - Care,Domiciliary Care
Cambridgeshire County Council,14-Feb-24,51302139343,871.92,AFFINITY TRUST,CARE ESTABLISHMENT,LD - Young Adults Team,LD - Young Adults - Care,Domiciliary Care
Cambridgeshire County Council,14-Feb-24,51302139343,871.92,AFFINITY TRUST,CARE ESTABLISHMENT,LD - Young Adults Team,LD - Young Adults - Care,Domiciliary Care
Cambridgeshire County Council,14-Feb-24,51302139343,871.92,AFFINITY TRUST,CARE ESTABLISHMENT,LD - Young Adults Team,LD - Young Adults - Care,Domiciliary Care
Cambridgeshire County Council,14-Feb-24,51302139343,871.92,AFFINITY TRUST,CARE ESTABLISHMENT,LD - Young Adults Team,LD - Young Adults - Care,Domiciliary Care
Cambridgeshire County Council,14-Feb-24,51302139343,871.92,AFFINITY TRUST,CARE ESTABLISHMENT,LD - Young Adults Team,LD - Young Adults - Care,Domiciliary Care
Cambridgeshire County Council,14-Feb-24,51302139343,"1,067.85",AFFINITY TRUST,CARE ESTABLISHMENT,LD - Young Adults Team,LD - Young Adults - Care,Domiciliary Care
Cambridgeshire County Council,14-Feb-24,51302139343,"1,067.85",AFFINITY TRUST,CARE ESTABLISHMENT,LD - Young Adults Team,LD - Young Adults - Care,Domiciliary Care
Cambridgeshire County Council,14-Feb-24,51302139343,"1,067.85",AFFINITY TRUST,CARE ESTABLISHMENT,LD - Young Adults Team,LD - Young Adults - Care,Domiciliary Care
Cambridgeshire County Council,14-Feb-24,51302139343,"1,067.85",AFFINITY TRUST,CARE ESTABLISHMENT,LD - Young Adults Team,LD - Young Adults - Care,Domiciliary Care
Cambridgeshire County Council,14-Feb-24,51302139343,"1,067.85",AFFINITY TRUST,CARE ESTABLISHMENT,LD - Young Adults Team,LD - Young Adults - Care,Domiciliary Care
Cambridgeshire County Council,14-Feb-24,51302139343,"1,067.85",AFFINITY TRUST,CARE ESTABLISHMENT,LD - Young Adults Team,LD - Young Adults - Care,Domiciliary Care
Cambridgeshire County Council,14-Feb-24,51302139343,"1,067.85",AFFINITY TRUST,CARE ESTABLISHMENT,LD - Young Adults Team,LD - Young Adults - Care,Domiciliary Care
Cambridgeshire County Council,14-Feb-24,51302139343,"1,067.85",AFFINITY TRUST,CARE ESTABLISHMENT,LD - Young Adults Team,LD - Young Adults - Care,Domiciliary Care
Cambridgeshire County Council,14-Feb-24,51302139343,"1,067.85",AFFINITY TRUST,CARE ESTABLISHMENT,LD - Young Adults Team,LD - Young Adults - Care,Domiciliary Care
Cambridgeshire County Council,14-Feb-24,51302139343,"1,067.85",AFFINITY TRUST,CARE ESTABLISHMENT,LD - Young Adults Team,LD - Young Adults - Care,Domiciliary Care
Cambridgeshire County Council,14-Feb-24,51302139343,"1,067.85",AFFINITY TRUST,CARE ESTABLISHMENT,LD - Young Adults Team,LD - Young Adults - Care,Domiciliary Care
Cambridgeshire County Council,14-Feb-24,51302139343,"1,067.85",AFFINITY TRUST,CARE ESTABLISHMENT,LD - Young Adults Team,LD - Young Adults - Care,Domiciliary Care
Cambridgeshire County Council,14-Feb-24,51302139343,"1,067.85",AFFINITY TRUST,CARE ESTABLISHMENT,LD - Young Adults Team,LD - Young Adults - Care,Domiciliary Care
Cambridgeshire County Council,14-Feb-24,51302139343,"1,067.85",AFFINITY TRUST,CARE ESTABLISHMENT,LD - Young Adults Team,LD - Young Adults - Care,Domiciliary Care
Cambridgeshire County Council,14-Feb-24,51302139343,"1,067.85",AFFINITY TRUST,CARE ESTABLISHMENT,LD - Young Adults Team,LD - Young Adults - Care,Domiciliary Care
Cambridgeshire County Council,14-Feb-24,51302139343,"1,067.85",AFFINITY TRUST,CARE ESTABLISHMENT,LD - Young Adults Team,LD - Young Adults - Care,Domiciliary Care
Cambridgeshire County Council,14-Feb-24,51302139343,"1,067.85",AFFINITY TRUST,CARE ESTABLISHMENT,LD - Young Adults Team,LD - Young Adults - Care,Domiciliary Care
Cambridgeshire County Council,14-Feb-24,51302139350,"-3,818.37",Next Steps Community Care Ltd,COMPANY,LD - Young Adults Team,LD - Young Adults - Care,Supported Living
Cambridgeshire County Council,14-Feb-24,51302139350,"-3,818.37",Next Steps Community Care Ltd,COMPANY,LD - Young Adults Team,LD - Young Adults - Care,Supported Living
Cambridgeshire County Council,14-Feb-24,51302139350,"-3,818.37",Next Steps Community Care Ltd,COMPANY,LD - Young Adults Team,LD - Young Adults - Care,Supported Living
Cambridgeshire County Council,14-Feb-24,51302139350,"-3,818.37",Next Steps Community Care Ltd,COMPANY,LD - Young Adults Team,LD - Young Adults - Care,Supported Living
Cambridgeshire County Council,14-Feb-24,51302139350,"-3,818.37",Next Steps Community Care Ltd,COMPANY,LD - Young Adults Team,LD - Young Adults - Care,Supported Living
Cambridgeshire County Council,14-Feb-24,51302139350,"-3,818.37",Next Steps Community Care Ltd,COMPANY,LD - Young Adults Team,LD - Young Adults - Care,Supported Living
Cambridgeshire County Council,14-Feb-24,51302139350,"-3,818.37",Next Steps Community Care Ltd,COMPANY,LD - Young Adults Team,LD - Young Adults - Care,Supported Living
Cambridgeshire County Council,14-Feb-24,51302139350,"-3,818.37",Next Steps Community Care Ltd,COMPANY,LD - Young Adults Team,LD - Young Adults - Care,Supported Living
Cambridgeshire County Council,14-Feb-24,51302139350,"-3,818.37",Next Steps Community Care Ltd,COMPANY,LD - Young Adults Team,LD - Young Adults - Care,Supported Living
Cambridgeshire County Council,14-Feb-24,51302139350,"-3,818.37",Next Steps Community Care Ltd,COMPANY,LD - Young Adults Team,LD - Young Adults - Care,Supported Living
Cambridgeshire County Council,14-Feb-24,51302139350,"-3,818.37",Next Steps Community Care Ltd,COMPANY,LD - Young Adults Team,LD - Young Adults - Care,Supported Living
Cambridgeshire County Council,14-Feb-24,51302139350,"-3,818.37",Next Steps Community Care Ltd,COMPANY,LD - Young Adults Team,LD - Young Adults - Care,Supported Living
Cambridgeshire County Council,14-Feb-24,51302139350,"-3,272.89",Next Steps Community Care Ltd,COMPANY,LD - Young Adults Team,LD - Young Adults - Care,Supported Living
Cambridgeshire County Council,14-Feb-24,51302139350,"-1,975.75",Next Steps Community Care Ltd,COMPANY,LD - Young Adults Team,LD - Young Adults - Care,Supported Living
Cambridgeshire County Council,14-Feb-24,51302139350,"-1,975.75",Next Steps Community Care Ltd,COMPANY,LD - Young Adults Team,LD - Young Adults - Care,Supported Living
Cambridgeshire County Council,14-Feb-24,51302139350,"-1,975.75",Next Steps Community Care Ltd,COMPANY,LD - Young Adults Team,LD - Young Adults - Care,Supported Living
Cambridgeshire County Council,14-Feb-24,51302139350,"-1,975.75",Next Steps Community Care Ltd,COMPANY,LD - Young Adults Team,LD - Young Adults - Care,Supported Living
Cambridgeshire County Council,14-Feb-24,51302139350,"-1,975.75",Next Steps Community Care Ltd,COMPANY,LD - Young Adults Team,LD - Young Adults - Care,Supported Living
Cambridgeshire County Council,14-Feb-24,51302139350,"-1,975.75",Next Steps Community Care Ltd,COMPANY,LD - Young Adults Team,LD - Young Adults - Care,Supported Living
Cambridgeshire County Council,14-Feb-24,51302139350,"-1,975.75",Next Steps Community Care Ltd,COMPANY,LD - Young Adults Team,LD - Young Adults - Care,Supported Living
Cambridgeshire County Council,14-Feb-24,51302139350,"-1,975.75",Next Steps Community Care Ltd,COMPANY,LD - Young Adults Team,LD - Young Adults - Care,Supported Living
Cambridgeshire County Council,14-Feb-24,51302139350,"-1,975.75",Next Steps Community Care Ltd,COMPANY,LD - Young Adults Team,LD - Young Adults - Care,Supported Living
Cambridgeshire County Council,14-Feb-24,51302139350,"-1,975.75",Next Steps Community Care Ltd,COMPANY,LD - Young Adults Team,LD - Young Adults - Care,Supported Living
Cambridgeshire County Council,14-Feb-24,51302139350,"-1,975.75",Next Steps Community Care Ltd,COMPANY,LD - Young Adults Team,LD - Young Adults - Care,Supported Living
Cambridgeshire County Council,14-Feb-24,51302139350,"-1,975.75",Next Steps Community Care Ltd,COMPANY,LD - Young Adults Team,LD - Young Adults - Care,Supported Living
Cambridgeshire County Council,14-Feb-24,51302139350,"-1,693.50",Next Steps Community Care Ltd,COMPANY,LD - Young Adults Team,LD - Young Adults - Care,Supported Living
Cambridgeshire County Council,14-Feb-24,51302139350,"1,588.53",Next Steps Community Care Ltd,COMPANY,LD - Young Adults Team,LD - Young Adults - Care,Supported Living
Cambridgeshire County Council,14-Feb-24,51302139350,"1,853.28",Next Steps Community Care Ltd,COMPANY,LD - Young Adults Team,LD - Young Adults - Care,Supported Living
Cambridgeshire County Council,14-Feb-24,51302139350,"1,853.28",Next Steps Community Care Ltd,COMPANY,LD - Young Adults Team,LD - Young Adults - Care,Supported Living
Cambridgeshire County Council,14-Feb-24,51302139350,"1,853.28",Next Steps Community Care Ltd,COMPANY,LD - Young Adults Team,LD - Young Adults - Care,Supported Living
Cambridgeshire County Council,14-Feb-24,51302139350,"1,853.28",Next Steps Community Care Ltd,COMPANY,LD - Young Adults Team,LD - Young Adults - Care,Supported Living
Cambridgeshire County Council,14-Feb-24,51302139350,"1,853.28",Next Steps Community Care Ltd,COMPANY,LD - Young Adults Team,LD - Young Adults - Care,Supported Living
Cambridgeshire County Council,14-Feb-24,51302139350,"1,853.28",Next Steps Community Care Ltd,COMPANY,LD - Young Adults Team,LD - Young Adults - Care,Supported Living
Cambridgeshire County Council,14-Feb-24,51302139350,"1,853.28",Next Steps Community Care Ltd,COMPANY,LD - Young Adults Team,LD - Young Adults - Care,Supported Living
Cambridgeshire County Council,14-Feb-24,51302139350,"1,853.28",Next Steps Community Care Ltd,COMPANY,LD - Young Adults Team,LD - Young Adults - Care,Supported Living
Cambridgeshire County Council,14-Feb-24,51302139350,"1,853.28",Next Steps Community Care Ltd,COMPANY,LD - Young Adults Team,LD - Young Adults - Care,Supported Living
Cambridgeshire County Council,14-Feb-24,51302139350,"1,853.28",Next Steps Community Care Ltd,COMPANY,LD - Young Adults Team,LD - Young Adults - Care,Supported Living
Cambridgeshire County Council,14-Feb-24,51302139350,"1,853.28",Next Steps Community Care Ltd,COMPANY,LD - Young Adults Team,LD - Young Adults - Care,Supported Living
Cambridgeshire County Council,14-Feb-24,51302139350,"1,853.28",Next Steps Community Care Ltd,COMPANY,LD - Young Adults Team,LD - Young Adults - Care,Supported Living
Cambridgeshire County Council,14-Feb-24,51302139350,"3,069.90",Next Steps Community Care Ltd,COMPANY,LD - Young Adults Team,LD - Young Adults - Care,Supported Living
Cambridgeshire County Council,14-Feb-24,51302139350,"3,581.55",Next Steps Community Care Ltd,COMPANY,LD - Young Adults Team,LD - Young Adults - Care,Supported Living
Cambridgeshire County Council,14-Feb-24,51302139350,"3,581.55",Next Steps Community Care Ltd,COMPANY,LD - Young Adults Team,LD - Young Adults - Care,Supported Living
Cambridgeshire County Council,14-Feb-24,51302139350,"3,581.55",Next Steps Community Care Ltd,COMPANY,LD - Young Adults Team,LD - Young Adults - Care,Supported Living
Cambridgeshire County Council,14-Feb-24,51302139350,"3,581.55",Next Steps Community Care Ltd,COMPANY,LD - Young Adults Team,LD - Young Adults - Care,Supported Living
Cambridgeshire County Council,14-Feb-24,51302139350,"3,581.55",Next Steps Community Care Ltd,COMPANY,LD - Young Adults Team,LD - Young Adults - Care,Supported Living
Cambridgeshire County Council,14-Feb-24,51302139350,"3,581.55",Next Steps Community Care Ltd,COMPANY,LD - Young Adults Team,LD - Young Adults - Care,Supported Living
Cambridgeshire County Council,14-Feb-24,51302139350,"3,581.55",Next Steps Community Care Ltd,COMPANY,LD - Young Adults Team,LD - Young Adults - Care,Supported Living
Cambridgeshire County Council,14-Feb-24,51302139350,"3,581.55",Next Steps Community Care Ltd,COMPANY,LD - Young Adults Team,LD - Young Adults - Care,Supported Living
Cambridgeshire County Council,14-Feb-24,51302139350,"3,581.55",Next Steps Community Care Ltd,COMPANY,LD - Young Adults Team,LD - Young Adults - Care,Supported Living
Cambridgeshire County Council,14-Feb-24,51302139350,"3,581.55",Next Steps Community Care Ltd,COMPANY,LD - Young Adults Team,LD - Young Adults - Care,Supported Living
Cambridgeshire County Council,14-Feb-24,51302139350,"3,581.55",Next Steps Community Care Ltd,COMPANY,LD - Young Adults Team,LD - Young Adults - Care,Supported Living
Cambridgeshire County Council,14-Feb-24,51302139350,"3,581.55",Next Steps Community Care Ltd,COMPANY,LD - Young Adults Team,LD - Young Adults - Care,Supported Living
Cambridgeshire County Council,12-Feb-24,51302139357,505.20,Astor Bannerman (Medical) Ltd,TRADE SUPPLIER,Disability Units,DCSWT Hunts,Specialist Servicing and Maintenance
Cambridgeshire County Council,12-Feb-24,51302139365,"4,908.98",JUST CHECKING LTD,TRADE SUPPLIER,Technology Enabled Care,Technology Enabled Care (TEC),Specialist Equipment For Service Delivery
Cambridgeshire County Council,12-Feb-24,51302139366,"4,935.61",JUST CHECKING LTD,TRADE SUPPLIER,Technology Enabled Care,Technology Enabled Care (TEC),Specialist Equipment For Service Delivery
Cambridgeshire County Council,12-Feb-24,51302139367,"4,884.38",JUST CHECKING LTD,TRADE SUPPLIER,Technology Enabled Care,Technology Enabled Care (TEC),Specialist Equipment For Service Delivery
Cambridgeshire County Council,12-Feb-24,51302139373,"1,200.00",STRONGER PSYCHOLOGICAL SERVICES LTD,COMPANY,SEND Specialist Services - Education Psychology,SEND Specialist Services - Education Psychology,Professional Fees and Hired Services
Cambridgeshire County Council,12-Feb-24,51302139376,"14,625.17",SWARCO UK & Ireland Ltd,COMPANY,Signals,Signals Works,Private Highways Work
Cambridgeshire County Council,12-Feb-24,51302139377,"29,400.00",PTV UK Limited,COMPANY,Combined Authority Schemes,Combined Authority Schemes,Construction - External Professional Fees
Cambridgeshire County Council,12-Feb-24,51302139388,"2,400.00",CAMBRIDGE UNIVERSITY TECHNICAL SERVICES LIMITED,EDUCATION,GCP - Smart Cambridge,GCP - Smart Cambridge,Professional Fees and Hired Services
Cambridgeshire County Council,12-Feb-24,51302139391,"1,052.21",PEOPLESCOUT LIMITED,TRADE SUPPLIER,Permitting,TTRO Orders,Advertising / Publicity (non Recruitment)
Cambridgeshire County Council,05-Feb-24,51302139412,"2,590.67",Cambridge Care Company,CARE ESTABLISHMENT,Unaccompanied Asylum Seeking Children,Separated Migrant Children < 18,Asylum Seekers
Cambridgeshire County Council,05-Feb-24,51302139413,931.70,Cambridge Care Company,CARE ESTABLISHMENT,Unaccompanied Asylum Seeking Children,Separated Migrant Children < 18,Asylum Seekers
Cambridgeshire County Council,12-Feb-24,51302139420,"1,308.00",Full Circle Compliance Ltd,COMPANY,Asbestos Management (Schools),Asbestos Management (Schools),"New Construction, Conversion and Renovation"
Cambridgeshire County Council,09-Feb-24,51302139439,"3,238.80",INSIGHT DIRECT (UK) LTD,TRADE SUPPLIER,Corporate IT Managed,Mobile phones,Computer hardware - purchase
Cambridgeshire County Council,12-Feb-24,51302139453,917.89,PEOPLESCOUT LIMITED,TRADE SUPPLIER,Permitting,TTRO Orders,Advertising / Publicity (non Recruitment)
Cambridgeshire County Council,12-Feb-24,51302139457,"1,345.11",J & G GROUNDWORKS & SURFACING,PARTNERSHIP,Highways - Rights of Way,Highways - Rights of Way,Highways - Bridges
Cambridgeshire County Council,12-Feb-24,51302139464,"1,302.38",PEOPLESCOUT LIMITED,TRADE SUPPLIER,Permitting,TTRO Orders,Advertising / Publicity (non Recruitment)
Cambridgeshire County Council,12-Feb-24,51302139475,"1,326.24",Boxxe Limited,COMPANY,"Telephony, CPSN & MFD",Enterprise Agreement,Computer software - annual licence agreement
Cambridgeshire County Council,12-Feb-24,51302139485,"133,140.00",VODAFONE CORPORATE LTD,TRADE SUPPLIER,Corporate IT Managed,Mobile phones,Telephone costs
Cambridgeshire County Council,12-Feb-24,51302139490,"1,977.60",Waterstones Ltd t/a Heffers/Blackwells,COMPANY,PSHE,"Education, Health, Safety and Wellbeing - PSHE",Books and Multimedia Supplies
Cambridgeshire County Council,12-Feb-24,51302139499,"2,500.00",JDCG Ltd,COMPANY,Domestic Violence & Sexual Violence,Domestic Homicide Reviews,Contributions to partnerships
Cambridgeshire County Council,12-Feb-24,51302139510,"5,650.00",SOUTH CAMBRIDGESHIRE DISTRICT COUNCIL,OTHER PUBLIC BODIES,TIPF - Air Quality Monitoring,TIPF - Air Quality Monitoring,Construction - External Professional Fees
Cambridgeshire County Council,12-Feb-24,51302139513,936.00,MARTIN RIX (SOUTH ANGLE FARM),TRADE SUPPLIER,County Farms,County Farms,Specialist Works and Repairs
Cambridgeshire County Council,12-Feb-24,51302139514,960.00,GLADIATOR LTD,TRADE SUPPLIER,Domestic Violence & Sexual Violence,DLUHC Grant,Advertising / Publicity (non Recruitment)
Cambridgeshire County Council,12-Feb-24,51302139519,"3,540.00",CARTER JONAS LLP,TRADE SUPPLIER,Additional Countywide SEN,Additional Countywide SEN,Construction - External Professional Fees
Cambridgeshire County Council,12-Feb-24,51302139520,"5,601.11",COMPASS MINERALS UK LIMITED,TRADE SUPPLIER,Winter Maintenance,North Winter,Salt for Highways
Cambridgeshire County Council,12-Feb-24,51302139521,"11,113.94",COMPASS MINERALS UK LIMITED,TRADE SUPPLIER,Winter Maintenance,East Winter,Salt for Highways
Cambridgeshire County Council,09-Feb-24,51302139523,"58,160.75",CHS GROUP,CARE ESTABLISHMENT,Adults Commissioning - short term prevention,PD and Sensory Grants,Living support grants
Cambridgeshire County Council,12-Feb-24,51302139537,"39,559.20",Safecote Limited,COMPANY,Winter Maintenance,Central Winter Maintenance,Salt for Highways
Cambridgeshire County Council,05-Feb-24,51302139541,"4,639.13",ROYAL MAIL,TRADE SUPPLIER,Information Management,Resources Franking Machine,Postage & Carriage
Cambridgeshire County Council,07-Feb-24,51302139549,"5,014.84",SOFTCAT LTD,TRADE SUPPLIER,ICT Service,ICT Service Sales,Materials for resale
Cambridgeshire County Council,09-Feb-24,51302139565,"62,982.53",THE CHURCH SCHOOLS OF CAMBRIDGE (THE OLD SCHOOLS),EDUCATION,St Philips,St Philips,"New Construction, Conversion and Renovation"
Cambridgeshire County Council,16-Feb-24,51302139580,756.00,YOUNG PEOPLE MARCH LTD,LOCAL CLUBS & GROUPS,Out of School Tuition,Out of School Provision EHCPs,Independent School Placements
Cambridgeshire County Council,12-Feb-24,51302139749,893.38,BLUE DIAMOND STL,TRADE SUPPLIER,Highways Maintenance,Highways Maintenance - Works,Potholes
Cambridgeshire County Council,12-Feb-24,51302139756,756.00,YOUNG PEOPLE MARCH LTD,LOCAL CLUBS & GROUPS,Out of School Tuition,Out of School Provision EHCPs,Independent School Placements
Cambridgeshire County Council,12-Feb-24,51302139777,"1,020.48",PHOENIX SOFTWARE LTD,TRADE SUPPLIER,ICT Service,ICT Service Sales,Materials for resale
Cambridgeshire County Council,02-Feb-24,51302139779,"4,519.84",SC Electrical Contracting Ltd,COMPANY,County Farms,County Farms,County Farms Maintenance
Cambridgeshire County Council,07-Feb-24,51302139784,"35,177.90",WSP UK LTD T/A WSP INTEGRATED BUILDING SERVICES,TRADE SUPPLIER,GCP - Milton Rd Bus and Cycling Priority,GCP - Milton Rd Bus and Cycling Priority,Construction - External Professional Fees
Cambridgeshire County Council,12-Feb-24,51302139789,"28,165.20",ATKINS LTD,COMPANY,GCP Melbourn Greenway,GCP Melbourn Greenway,Construction - External Professional Fees
Cambridgeshire County Council,12-Feb-24,51302139790,"17,512.80",ATKINS LTD,COMPANY,GCP Sawston Greenway,GCP Sawston Greenway,Construction - External Professional Fees
Cambridgeshire County Council,09-Feb-24,51302139794,"1,860.00",React2it (Building Refurbishments) Limited,COMPANY,Corporate Offices,Burwell House,Other Term maintenance contracts
Cambridgeshire County Council,09-Feb-24,51302139795,"3,000.00",React2it (Building Refurbishments) Limited,COMPANY,Corporate Offices,Property Rationalisation,Other Term maintenance contracts
Cambridgeshire County Council,12-Feb-24,51302139803,"1,774.80",OCS UK&I Limited,COMPANY,Environment Fund: Decarbonisation Fund - Council buildings Low Carbon Heating,March Community Centre low carbon heating,"New Construction, Conversion and Renovation"
Cambridgeshire County Council,12-Feb-24,51302139830,"1,800.00",BIBLIOTHECA LTD,TRADE SUPPLIER,Libraries - Support,Support - IT,Computer software - annual licence agreement
Cambridgeshire County Council,12-Feb-24,51302139834,"2,779.92",OCS UK&I Limited,COMPANY,Corporate Offices,Larkfield Resource Centre,Grounds Maintenance
Cambridgeshire County Council,05-Feb-24,51302139849,"2,058.82",SENSE,CARE ESTABLISHMENT,SEND High Needs Top Up,High Needs Top Up - Post 16,Independent School Placements
Cambridgeshire County Council,12-Feb-24,51302139850,"1,656.00",MLL Telecom Limited,TRADE SUPPLIER,Cherry Hinton Library - Hub project,Cherry Hinton Library - Hub project,IT Hardware
Cambridgeshire County Council,05-Feb-24,51302139851,"2,058.82",SENSE,CARE ESTABLISHMENT,SEND High Needs Top Up,High Needs Top Up - Post 16,Independent School Placements
Cambridgeshire County Council,12-Feb-24,51302139852,"4,950.00",J & P PLANT LTD,COMPANY,Highways - Carriageway Mtce,Highways - Carriageway Mtce,"New Construction, Conversion and Renovation"
Cambridgeshire County Council,12-Feb-24,51302139853,"4,758.00",J & P PLANT LTD,COMPANY,Highways - Carriageway Mtce,Highways - Carriageway Mtce,"New Construction, Conversion and Renovation"
Cambridgeshire County Council,12-Feb-24,51302139854,900.00,J & P PLANT LTD,COMPANY,Highways Maintenance,Highways Maintenance - South Cambs,Pathways
Cambridgeshire County Council,12-Feb-24,51302139855,"1,080.00",J & P PLANT LTD,COMPANY,Highways Maintenance,Highways Maintenance - South Cambs,Resurfacing & Reconstruction
Cambridgeshire County Council,12-Feb-24,51302139856,"1,740.00",J & P PLANT LTD,COMPANY,Highways Maintenance,Highways Maintenance - Fenland,Pathways
Cambridgeshire County Council,12-Feb-24,51302139857,"1,560.00",J & P PLANT LTD,COMPANY,Highways Maintenance,Highways Maintenance - Fenland,Pathways
Cambridgeshire County Council,07-Feb-24,51302139860,"1,567.80",SC Electrical Contracting Ltd,COMPANY,County Farms,County Farms,County Farms Maintenance
Cambridgeshire County Council,05-Feb-24,51302139862,555.48,SENSE,CARE ESTABLISHMENT,SEND High Needs Top Up,High Needs Top Up - Post 16,Independent School Placements
Cambridgeshire County Council,09-Feb-24,51302139871,"6,156.78",WSP UK Limited,COMPANY,St Ives Local Improvement Scheme,St Ives Local Improvement Scheme,Capital Consultancy
Cambridgeshire County Council,12-Feb-24,51302139876,648.00,Jackson Environmental Ltd,COMPANY,Health & Safety,POD - Health & Safety,Professional Fees and Hired Services
Cambridgeshire County Council,05-Feb-24,51302139877,"1,650.00",SOPHIA WAREHAM,TRADE SUPPLIER,SEND Specialist Services - Education Psychology,SEND Specialist Services - Education Psychology,Professional Fees and Hired Services
Cambridgeshire County Council,12-Feb-24,51302139883,"4,661.80",THE KINGS SCHOOL ELY,EDUCATION,SEND High Needs Top Up,High Needs Top Up - Free Schools,Independent School Placements
Cambridgeshire County Council,12-Feb-24,51302139884,"4,132.05",THE KINGS SCHOOL ELY,EDUCATION,SEND High Needs Top Up,High Needs Top Up - Free Schools,Independent School Placements
Cambridgeshire County Council,12-Feb-24,51302139885,720.00,NATIONAL EXTENSION COLLEGE,EDUCATION,SEND High Needs Top Up,High Needs Top Up - Post 16,Independent School Placements
Cambridgeshire County Council,14-Feb-24,51302139926,"6,660.00",NGS Gritting Services Ltd,COMPANY,Winter Maintenance,North Winter,Salt for Highways
Cambridgeshire County Council,14-Feb-24,51302139929,"21,528.00",ATKINS LTD,COMPANY,Flood Risk Management,Flood Risk Programme Development,Professional Fees and Hired Services
Cambridgeshire County Council,12-Feb-24,51302139936,540.00,DR RAHUL RAI T/A RAI PSYCHIATRY LTD,TRADE SUPPLIER,Safeguarding - DoLS,Deprivation of Liberty Safeguards,Professional Fees and Hired Services
